Workbook

Sheet Base (hidden)
A1: Categoría animal
A2: Mamones Macho procedentes de vacas lecheras | B2: 346 | E2: Validación entrada | F2: =DATE(B12-1,1,1) -> 2024-01-01 | G2: =F2 -> 45292 | H2: =DATE(B12,12,31) -> 2025-12-31 | I2: =H2 -> 46022
A3: Mamones Hembra procedentes de vacas lecheras | B3: 337 | E3: Validación salida | F3: =DATE(B12,1,1) -> 2025-01-01 | G3: =F3 -> 45658 | H3: =DATE(B12+1,12,31) -> 2026-12-31 | I3: =H3 -> 46387
A4: Mamones Macho procedentes de vacas nodriza | B4: 346
A5: Mamones Hembra procedentes de vacas nodriza | B5: 337
A6: Pasteros Macho procedentes de vacas nodriza | B6: 185
A7: Pasteros Hembra procedentes de vacas nodriza | B7: 165
A8: Hembras adultas de descarte o desvieje
A9: Cebones/Bueyes/Sementales de desvieje
A12: Año de declaración: | B12: =Entrada!G5 -> 2025

Sheet Entrada
E2: Archivo para agrupar lotes de vacuno de cebo, según categoría productiva
C5: Indique el año de declaración: | G5: 2025
B6: ="(En cada año n se hace la declaración del año n - 1. Por ejemplo, en el año "&L6&" se debe indicar que el año de declaración es el "&L7&")" -> (En cada año n se hace la declaración del año n - 1. Por ejemplo, en el año 2026 se debe indicar que el año de declaración es el 2025) | L6: =YEAR(TODAY()) -> 2026
L7: =L6-1 -> 2025
B9: En las hojas siguientes (una para cada categoría productiva) debe indicar:
C11: - El periodo productivo medio de la categoría productiva
C12: - nº de animales que entran en cada lote
C13: - nº de animales vivos que finalizan en cada lote
C14: - Fecha de entrada de cada lote
B15: NOTA: | C15: ="Si se desconoce el nº de animales vivos que finalizarán el lote porque su engorde llega más allá del año de declaración, considere el nº de animales que tenga a 31/12/"&G5 -> Si se desconoce el nº de animales vivos que finalizarán el lote porque su engorde llega más allá del año de declaración, considere el nº de animales que tenga a 31/12/2025
B17: NOTA: | C17: Lote es el grupo de animales que van entrando de forma escalonada a los corrales
B19: NOTA: | C19: El periodo productivo medio es la duración total desde que entra un animal dentro de cada alojamiento hasta que se lleva a sacrificio. Esto es, la duración del periodo productivo es el número de días que por término medio los animales de esa linea productiva permanecen en la granja desde que entran hasta que salen de ese alojamiento, de modo que el periodo es por ciclo productivo y no por año natural. Por ejemplo, los Mamones Macho procedentes de vacas lecheras tienen un periodo productivo alrededor de los 11 meses (desde 1 mes de vida hasta los 12 meses del sacrificio) y los Pasteros Macho procedentes de vacas nodriza tienen un periodo productivo alrededor de los 7 meses (desde los 6 meses de vida hasta los 13 meses del sacrificio )
B28: Si desea borrar datos grabados anteriormente, pulse aquí ¡Cuidado! Perderá toda la información

Sheet Ejemplo
B1: Año de declaración: | F1: =Base!B12 -> 2025 | O1: Datos a grabar en el paso 2 de ECOGAN | S1: Datos a grabar en el paso 4 de ECOGAN
Q2: nº total de animales que entran de esta categoría productiva: | R2: =AE160 -> 125 | W2: Periodo productivo total medio de la categoría productiva: | X2: =H4 -> 350
A3: Categoría productiva: | D3: Mamones Macho procedentes de vacas lecheras | Q3: nº total de animales vivos que finalizan de esta categoría productiva: | R3: =AF160 -> 122 | W3: días medios presentes de la categoría productiva: | X3: =AR160 -> 242
F4: Indique el periodo productivo medio de la categoría productiva (días): | H4: 350 | I4: *
F5: Periodo productivo medio de referencia (días): | H5: =IFERROR(VLOOKUP(D3,Base!A2:B7,2,FALSE),"sin dato") -> 346 | I5: =IF(H5="sin dato","","("&ROUND(H5*0.9,0) &" - "&ROUND(H5*1.1,0)&")") -> (311 - 381) | N5: Si desea borrar datos grabados anteriormente, pulse aquí ¡Cuidado! Perderá toda la información
A6: * | B6: Número de días que por término medio los animales de una linea productiva permanecen en la granja desde que entran hasta que salen de ese alojamiento, de modo que el periodo es por ciclo productivo y no por año natural.
M7: =Base!F2 -> 45292 | N7: =Base!H3 -> 46387
A8: u | B8: Lote es el grupo de animales que van entrando de forma escalonada a los corrales. | M8: Diagrama de entradas y salidas
A9: lote u | B9: nº de animales que entran en cada lote | C9: nº de animales vivos que finalizan en cada lote | D9: Fecha de entrada del lote (dd/mm/aa) | F9: Fecha de finalización del lote (dd/mm/aa) | H9: Periodo productivo total medio (días) | I9: ="días presentes del lote en el año " & F1 -> días presentes del lote en el año 2025 | K9: =IF(H5="sin dato","","Fecha fin según fecha entrada y periodo de "&H5&" días") -> Fecha fin según fecha entrada y periodo de 346 días | AI9: lote | AL9: Fecha de entrada del lote | AM9: Periodo productivo total | AN9: Fecha de entrada del lote | AO9: ="días presentes del lote en el año " & AL1 -> días presentes del lote en el año | AR9: ="días presentes del lote en el año " & AO1 -> días presentes del lote en el año | AS9: Periodo productivo total
A10: 1 | B10: 12 | C10: 14 | D10: 2024-10-11 | E10: =IF($D10 ="","",IF(YEAR($D10)=$F$1,$D10,"01/01/2025")) -> 01/01/2025 | F10: =IF(D10="","",D10+H10) -> 2025-09-26 | G10: =IF($F10="","",IF(YEAR($F10)=$F$1,$F10,"31/12/2025")) -> 2025-09-26 | H10: =IF(B10=0,"",$H$4) -> 350 | I10: =IF(G10="","",_xlfn.DAYS(G10,E10)) -> 268 | K10: =IF(H$5="sin dato","",IF(D10="","",D10+$H$5)) -> 2025-09-22 | AE10: =B10 -> 12 | AF10: 14 | AG10: =(AE10+AF10)/2 -> 13 | AH10: =IF($AG$160=0,0,AG10/$AG$160) -> 0.1048387097 | AI10: ="Lote "&A10 -> Lote 1 | AJ10: =IF(B10=0,"",B10&" animales") -> 12 animales | AK10: 14 animales | AL10: =IF(D10="","",D10) -> 2024-10-11 | AM10: =H10 -> 350 | AN10: =IF(F10="","",F10) -> 2025-09-26 | AO10: =I10 -> 268 | AP10: =IF(AO10=0,"",AO10& " días") -> 268 días | AR10: =IF(AH10=0,0,AO10*AH10) -> 28.09677419 | AS10: =IF(AH10=0,0,AM10*AH10) -> 36.69354839
A11: 2 | B11: 8 | C11: 8 | D11: 2025-03-05 | E11: 2025-03-05 | F11: =IF(D11="","",D11+H11) -> 2026-02-18 | G11: 31/12/2025 | H11: 350 | I11: =IF(G11="","",_xlfn.DAYS(G11,E11)) -> 301 | K11: 2026-02-14 | AE11: 8 | AF11: 8 | AG11: =(AE11+AF11)/2 -> 8 | AH11: =IF($AG$160=0,0,AG11/$AG$160) -> 0.06451612903 | AI11: Lote 2 | AJ11: 8 animales | AK11: 8 animales | AL11: 2025-03-05 | AM11: 350 | AN11: 2026-02-18 | AO11: 301 | AP11: =IF(AO11=0,"",AO11& " días") -> 301 días | AR11: 19.41935484 | AS11: 22.58064516
A12: 3 | B12: 7 | C12: 6 | D12: 2025-05-07 | E12: 2025-05-07 | F12: 2026-04-22 | G12: 31/12/2025 | H12: 350 | I12: 238 | K12: 2026-04-18 | AE12: 7 | AF12: 6 | AG12: 6.5 | AH12: 0.05241935484 | AI12: Lote 3 | AJ12: 7 animales | AK12: 6 animales | AL12: 2025-05-07 | AM12: 350 | AN12: 2026-04-22 | AO12: 238 | AP12: 238 días | AR12: 12.47580645 | AS12: 18.34677419
A13: 4 | B13: 11 | C13: 11 | D13: 2024-09-15 | E13: 01/01/2025 | F13: 2025-08-31 | G13: 2025-08-31 | H13: 350 | I13: 242 | K13: 2025-08-27 | AE13: 11 | AF13: 11 | AG13: 11 | AH13: 0.08870967742 | AI13: Lote 4 | AJ13: 11 animales | AK13: 11 animales | AL13: 2024-09-15 | AM13: 350 | AN13: 2025-08-31 | AO13: 242 | AP13: 242 días | AR13: 21.46774194 | AS13: 31.0483871
A14: 5 | B14: 8 | C14: 7 | D14: 2025-01-09 | E14: 2025-01-09 | F14: 2025-12-25 | G14: 2025-12-25 | H14: 350 | I14: 350 | K14: 2025-12-21 | AE14: 8 | AF14: 7 | AG14: 7.5 | AH14: 0.06048387097 | AI14: Lote 5 | AJ14: 8 animales | AK14: 7 animales | AL14: 2025-01-09 | AM14: 350 | AN14: 2025-12-25 | AO14: 350 | AP14: 350 días | AR14: 21.16935484 | AS14: 21.16935484
A15: 6 | B15: 16 | C15: 16 | D15: 2025-03-05 | E15: 2025-03-05 | F15: 2026-02-18 | G15: 31/12/2025 | H15: 350 | I15: 301 | K15: 2026-02-14 | AE15: 16 | AF15: 16 | AG15: 16 | AH15: 0.1290322581 | AI15: Lote 6 | AJ15: 16 animales | AK15: 16 animales | AL15: 2025-03-05 | AM15: 350 | AN15: 2026-02-18 | AO15: 301 | AP15: 301 días | AR15: 38.83870968 | AS15: 45.16129032
A16: 7 | B16: 6 | C16: 6 | D16: 2025-12-12 | E16: 2025-12-12 | F16: 2026-11-27 | G16: 31/12/2025 | H16: 350 | I16: 19 | K16: 2026-11-23 | AE16: 6 | AF16: 6 | AG16: 6 | AH16: 0.04838709677 | AI16: Lote 7 | AJ16: 6 animales | AK16: 6 animales | AL16: 2025-12-12 | AM16: 350 | AN16: 2026-11-27 | AO16: 19 | AP16: 19 días | AR16: 0.9193548387 | AS16: 16.93548387
A17: 8 | B17: 7 | C17: 6 | D17: 2024-07-02 | E17: 01/01/2025 | F17: 2025-06-17 | G17: 2025-06-17 | H17: 350 | I17: 167 | K17: 2025-06-13 | AE17: 7 | AF17: 6 | AG17: 6.5 | AH17: 0.05241935484 | AI17: Lote 8 | AJ17: 7 animales | AK17: 6 animales | AL17: 2024-07-02 | AM17: 350 | AN17: 2025-06-17 | AO17: 167 | AP17: 167 días | AR17: 8.754032258 | AS17: 18.34677419
A18: 9 | B18: 9 | C18: 9 | D18: 2024-07-05 | E18: 01/01/2025 | F18: 2025-06-20 | G18: 2025-06-20 | H18: 350 | I18: 170 | K18: 2025-06-16 | AE18: 9 | AF18: 9 | AG18: 9 | AH18: 0.07258064516 | AI18: Lote 9 | AJ18: 9 animales | AK18: 9 animales | AL18: 2024-07-05 | AM18: 350 | AN18: 2025-06-20 | AO18: 170 | AP18: 170 días | AR18: 12.33870968 | AS18: 25.40322581
A19: 10 | B19: 5 | C19: 5 | D19: 2024-08-12 | E19: 01/01/2025 | F19: 2025-07-28 | G19: 2025-07-28 | H19: 350 | I19: 208 | K19: 2025-07-24 | AE19: 5 | AF19: 5 | AG19: 5 | AH19: 0.04032258065 | AI19: Lote 10 | AJ19: 5 animales | AK19: 5 animales | AL19: 2024-08-12 | AM19: 350 | AN19: 2025-07-28 | AO19: 208 | AP19: 208 días | AR19: 8.387096774 | AS19: 14.11290323
A20: 11 | B20: 8 | C20: 8 | D20: 2025-02-20 | E20: 2025-02-20 | F20: 2026-02-05 | G20: 31/12/2025 | H20: 350 | I20: 314 | K20: 2026-02-01 | AE20: 8 | AF20: 8 | AG20: 8 | AH20: 0.06451612903 | AI20: Lote 11 | AJ20: 8 animales | AK20: 8 animales | AL20: 2025-02-20 | AM20: 350 | AN20: 2026-02-05 | AO20: 314 | AP20: 314 días | AR20: 20.25806452 | AS20: 22.58064516
A21: 12 | B21: 9 | C21: 8 | D21: 2025-02-18 | E21: 2025-02-18 | F21: 2026-02-03 | G21: 31/12/2025 | H21: 350 | I21: 316 | K21: 2026-01-30 | AE21: 9 | AF21: 8 | AG21: 8.5 | AH21: 0.0685483871 | AI21: Lote 12 | AJ21: 9 animales | AK21: 8 animales | AL21: 2025-02-18 | AM21: 350 | AN21: 2026-02-03 | AO21: 316 | AP21: 316 días | AR21: 21.66129032 | AS21: 23.99193548
A22: 13 | B22: 6 | C22: 6 | D22: 2025-02-05 | E22: 2025-02-05 | F22: 2026-01-21 | G22: 31/12/2025 | H22: 350 | I22: 329 | K22: 2026-01-17 | AE22: 6 | AF22: 6 | AG22: 6 | AH22: 0.04838709677 | AI22: Lote 13 | AJ22: 6 animales | AK22: 6 animales | AL22: 2025-02-05 | AM22: 350 | AN22: 2026-01-21 | AO22: 329 | AP22: 329 días | AR22: 15.91935484 | AS22: 16.93548387
A23: 14 | B23: 6 | C23: 6 | D23: 2025-09-02 | E23: 2025-09-02 | F23: 2026-08-18 | G23: 31/12/2025 | H23: 350 | I23: 120 | K23: 2026-08-14 | AE23: 6 | AF23: 6 | AG23: 6 | AH23: 0.04838709677 | AI23: Lote 14 | AJ23: 6 animales | AK23: 6 animales | AL23: 2025-09-02 | AM23: 350 | AN23: 2026-08-18 | AO23: 120 | AP23: 120 días | AR23: 5.806451613 | AS23: 16.93548387
A24: 15 | B24: 7 | C24: 6 | D24: 2025-09-05 | E24: 2025-09-05 | F24: 2026-08-21 | G24: 31/12/2025 | H24: 350 | I24: 117 | K24: 2026-08-17 | AE24: 7 | AF24: 6 | AG24: 6.5 | AH24: 0.05241935484 | AI24: Lote 15 | AJ24: 7 animales | AK24: 6 animales | AL24: 2025-09-05 | AM24: 350 | AN24: 2026-08-21 | AO24: 117 | AP24: 117 días | AR24: 6.133064516 | AS24: 18.34677419
A25: 16 | AE25: 0 | AF25: 0 | AG25: 0 | AH25: 0 | AI25: Lote 16 | AP25: días | AR25: 0 | AS25: 0
A26: 17 | AE26: 0 | AF26: 0 | AG26: 0 | AH26: 0 | AI26: Lote 17 | AP26: días | AR26: 0 | AS26: 0
A27: 18 | AE27: 0 | AF27: 0 | AG27: 0 | AH27: 0 | AI27: Lote 18 | AP27: días | AR27: 0 | AS27: 0
A28: 19 | AE28: 0 | AF28: 0 | AG28: 0 | AH28: 0 | AI28: Lote 19 | AP28: días | AR28: 0 | AS28: 0
A29: 20 | AE29: 0 | AF29: 0 | AG29: 0 | AH29: 0 | AI29: Lote 20 | AP29: días | AR29: 0 | AS29: 0
A30: 21 | AE30: 0 | AF30: 0 | AG30: 0 | AH30: 0 | AI30: Lote 21 | AP30: días | AR30: 0 | AS30: 0
A31: 22 | AE31: 0 | AF31: 0 | AG31: 0 | AH31: 0 | AI31: Lote 22 | AP31: días | AR31: 0 | AS31: 0
A32: 23 | AE32: 0 | AF32: 0 | AG32: 0 | AH32: 0 | AI32: Lote 23 | AP32: días | AR32: 0 | AS32: 0
A33: 24 | AE33: 0 | AF33: 0 | AG33: 0 | AH33: 0 | AI33: Lote 24 | AP33: días | AR33: 0 | AS33: 0
A34: 25 | AE34: 0 | AF34: 0 | AG34: 0 | AH34: 0 | AI34: Lote 25 | AP34: días | AR34: 0 | AS34: 0
A35: 26 | AE35: 0 | AF35: 0 | AG35: 0 | AH35: 0 | AI35: Lote 26 | AP35: días | AR35: 0 | AS35: 0
A36: 27 | AE36: 0 | AF36: 0 | AG36: 0 | AH36: 0 | AI36: Lote 27 | AP36: días | AR36: 0 | AS36: 0
A37: 28 | AE37: 0 | AF37: 0 | AG37: 0 | AH37: 0 | AI37: Lote 28 | AP37: días | AR37: 0 | AS37: 0
A38: 29 | AE38: 0 | AF38: 0 | AG38: 0 | AH38: 0 | AI38: Lote 29 | AP38: días | AR38: 0 | AS38: 0
A39: 30 | AE39: 0 | AF39: 0 | AG39: 0 | AH39: 0 | AI39: Lote 30 | AP39: días | AR39: 0 | AS39: 0
A40: 31 | AE40: 0 | AF40: 0 | AG40: 0 | AH40: 0 | AI40: Lote 31 | AP40: días | AR40: 0 | AS40: 0
A41: 32 | AE41: 0 | AF41: 0 | AG41: 0 | AH41: 0 | AI41: Lote 32 | AP41: días | AR41: 0 | AS41: 0
A42: 33 | H42: =IF(B42=0,"",$H$4) ->  | K42: =IF(H$5="sin dato","",IF(D42="","",D42+$H$5)) ->  | AE42: =B42 -> 0 | AF42: 0 | AG42: 0 | AH42: 0 | AI42: Lote 33 | AJ42: =IF(B42=0,"",B42&" animales") ->  | AP42: días | AR42: 0 | AS42: 0
A43: 34 | AE43: 0 | AF43: 0 | AG43: 0 | AH43: 0 | AI43: Lote 34 | AP43: días | AR43: 0 | AS43: 0
A44: 35 | AE44: 0 | AF44: 0 | AG44: 0 | AH44: 0 | AI44: Lote 35 | AP44: días | AR44: 0 | AS44: 0
A45: 36 | AE45: 0 | AF45: 0 | AG45: 0 | AH45: 0 | AI45: Lote 36 | AP45: días | AR45: 0 | AS45: 0
A46: 37 | AE46: 0 | AF46: 0 | AG46: 0 | AH46: 0 | AI46: Lote 37 | AP46: días | AR46: 0 | AS46: 0
A47: 38 | AE47: 0 | AF47: 0 | AG47: 0 | AH47: 0 | AI47: Lote 38 | AP47: días | AR47: 0 | AS47: 0
A48: 39 | AE48: 0 | AF48: 0 | AG48: 0 | AH48: 0 | AI48: Lote 39 | AP48: días | AR48: 0 | AS48: 0
A49: 40 | AE49: 0 | AF49: 0 | AG49: 0 | AH49: 0 | AI49: Lote 40 | AP49: días | AR49: 0 | AS49: 0
A50: 41 | AE50: 0 | AF50: 0 | AG50: 0 | AH50: 0 | AI50: Lote 41 | AP50: días | AR50: 0 | AS50: 0
A51: 42 | AE51: 0 | AF51: 0 | AG51: 0 | AH51: 0 | AI51: Lote 42 | AP51: días | AR51: 0 | AS51: 0
A52: 43 | AE52: 0 | AF52: 0 | AG52: 0 | AH52: 0 | AI52: Lote 43 | AP52: días | AR52: 0 | AS52: 0
A53: 44 | AE53: 0 | AF53: 0 | AG53: 0 | AH53: 0 | AI53: Lote 44 | AP53: días | AR53: 0 | AS53: 0
A54: 45 | AE54: 0 | AF54: 0 | AG54: 0 | AH54: 0 | AI54: Lote 45 | AP54: días | AR54: 0 | AS54: 0
A55: 46 | AE55: 0 | AF55: 0 | AG55: 0 | AH55: 0 | AI55: Lote 46 | AP55: días | AR55: 0 | AS55: 0
A56: 47 | AE56: 0 | AF56: 0 | AG56: 0 | AH56: 0 | AI56: Lote 47 | AP56: días | AR56: 0 | AS56: 0
A57: 48 | AE57: 0 | AF57: 0 | AG57: 0 | AH57: 0 | AI57: Lote 48 | AP57: días | AR57: 0 | AS57: 0
A58: 49 | AE58: 0 | AF58: 0 | AG58: 0 | AH58: 0 | AI58: Lote 49 | AP58: días | AR58: 0 | AS58: 0
A59: 50 | AE59: 0 | AF59: 0 | AG59: 0 | AH59: 0 | AI59: Lote 50 | AP59: días | AR59: 0 | AS59: 0
A60: 51 | AE60: 0 | AF60: 0 | AG60: 0 | AH60: 0 | AI60: Lote 51 | AP60: días | AR60: 0 | AS60: 0
A61: 52 | AE61: 0 | AF61: 0 | AG61: 0 | AH61: 0 | AI61: Lote 52 | AP61: días | AR61: 0 | AS61: 0
A62: 53 | AE62: 0 | AF62: 0 | AG62: 0 | AH62: 0 | AI62: Lote 53 | AP62: días | AR62: 0 | AS62: 0
A63: 54 | AE63: 0 | AF63: 0 | AG63: 0 | AH63: 0 | AI63: Lote 54 | AP63: días | AR63: 0 | AS63: 0
A64: 55 | AE64: 0 | AF64: 0 | AG64: 0 | AH64: 0 | AI64: Lote 55 | AP64: días | AR64: 0 | AS64: 0
A65: 56 | AE65: 0 | AF65: 0 | AG65: 0 | AH65: 0 | AI65: Lote 56 | AP65: días | AR65: 0 | AS65: 0
A66: 57 | AE66: 0 | AF66: 0 | AG66: 0 | AH66: 0 | AI66: Lote 57 | AP66: días | AR66: 0 | AS66: 0
A67: 58 | AE67: 0 | AF67: 0 | AG67: 0 | AH67: 0 | AI67: Lote 58 | AP67: días | AR67: 0 | AS67: 0
A68: 59 | AE68: 0 | AF68: 0 | AG68: 0 | AH68: 0 | AI68: Lote 59 | AP68: días | AR68: 0 | AS68: 0
A69: 60 | AE69: 0 | AF69: 0 | AG69: 0 | AH69: 0 | AI69: Lote 60 | AP69: días | AR69: 0 | AS69: 0
A70: 61 | AE70: 0 | AF70: 0 | AG70: 0 | AH70: 0 | AI70: Lote 61 | AP70: días | AR70: 0 | AS70: 0
A71: 62 | AE71: 0 | AF71: 0 | AG71: 0 | AH71: 0 | AI71: Lote 62 | AP71: días | AR71: 0 | AS71: 0
A72: 63 | AE72: 0 | AF72: 0 | AG72: 0 | AH72: 0 | AI72: Lote 63 | AP72: días | AR72: 0 | AS72: 0
A73: 64 | AE73: 0 | AF73: 0 | AG73: 0 | AH73: 0 | AI73: Lote 64 | AP73: días | AR73: 0 | AS73: 0
A74: 65 | E74: =IF($D74 ="","",IF(YEAR($D74)=$F$1,$D74,"01/01/2025")) ->  | G74: =IF($F74="","",IF(YEAR($F74)=$F$1,$F74,"31/12/2025")) ->  | H74: =IF(B74=0,"",$H$4) ->  | K74: =IF(H$5="sin dato","",IF(D74="","",D74+$H$5)) ->  | AE74: =B74 -> 0 | AF74: 0 | AG74: 0 | AH74: 0 | AI74: ="Lote "&A74 -> Lote 65 | AJ74: =IF(B74=0,"",B74&" animales") ->  | AL74: =IF(D74="","",D74) ->  | AM74: =H74 ->  | AN74: =IF(F74="","",F74) ->  | AO74: =I74 ->  | AP74: días | AR74: =IF(AH74=0,0,AO74*AH74) -> 0 | AS74: =IF(AH74=0,0,AM74*AH74) -> 0
A75: 66 | F75: =IF(D75="","",D75+H75) ->  | I75: =IF(G75="","",_xlfn.DAYS(G75,E75)) ->  | AE75: 0 | AF75: 0 | AG75: =(AE75+AF75)/2 -> 0 | AH75: =IF($AG$160=0,0,AG75/$AG$160) -> 0 | AI75: Lote 66 | AP75: =IF(AO75=0,"",AO75& " días") -> días | AR75: 0 | AS75: 0
A76: 67 | AE76: 0 | AF76: 0 | AG76: 0 | AH76: 0 | AI76: Lote 67 | AP76: días | AR76: 0 | AS76: 0
A77: 68 | AE77: 0 | AF77: 0 | AG77: 0 | AH77: 0 | AI77: Lote 68 | AP77: días | AR77: 0 | AS77: 0
A78: 69 | AE78: 0 | AF78: 0 | AG78: 0 | AH78: 0 | AI78: Lote 69 | AP78: días | AR78: 0 | AS78: 0
A79: 70 | AE79: 0 | AF79: 0 | AG79: 0 | AH79: 0 | AI79: Lote 70 | AP79: días | AR79: 0 | AS79: 0
A80: 71 | AE80: 0 | AF80: 0 | AG80: 0 | AH80: 0 | AI80: Lote 71 | AP80: días | AR80: 0 | AS80: 0
A81: 72 | AE81: 0 | AF81: 0 | AG81: 0 | AH81: 0 | AI81: Lote 72 | AP81: días | AR81: 0 | AS81: 0
A82: 73 | AE82: 0 | AF82: 0 | AG82: 0 | AH82: 0 | AI82: Lote 73 | AP82: días | AR82: 0 | AS82: 0
A83: 74 | AE83: 0 | AF83: 0 | AG83: 0 | AH83: 0 | AI83: Lote 74 | AP83: días | AR83: 0 | AS83: 0
A84: 75 | AE84: 0 | AF84: 0 | AG84: 0 | AH84: 0 | AI84: Lote 75 | AP84: días | AR84: 0 | AS84: 0
A85: 76 | AE85: 0 | AF85: 0 | AG85: 0 | AH85: 0 | AI85: Lote 76 | AP85: días | AR85: 0 | AS85: 0
A86: 77 | AE86: 0 | AF86: 0 | AG86: 0 | AH86: 0 | AI86: Lote 77 | AP86: días | AR86: 0 | AS86: 0
A87: 78 | AE87: 0 | AF87: 0 | AG87: 0 | AH87: 0 | AI87: Lote 78 | AP87: días | AR87: 0 | AS87: 0
A88: 79 | AE88: 0 | AF88: 0 | AG88: 0 | AH88: 0 | AI88: Lote 79 | AP88: días | AR88: 0 | AS88: 0
A89: 80 | AE89: 0 | AF89: 0 | AG89: 0 | AH89: 0 | AI89: Lote 80 | AP89: días | AR89: 0 | AS89: 0
A90: 81 | AE90: 0 | AF90: 0 | AG90: 0 | AH90: 0 | AI90: Lote 81 | AP90: días | AR90: 0 | AS90: 0
A91: 82 | AE91: 0 | AF91: 0 | AG91: 0 | AH91: 0 | AI91: Lote 82 | AP91: días | AR91: 0 | AS91: 0
A92: 83 | AE92: 0 | AF92: 0 | AG92: 0 | AH92: 0 | AI92: Lote 83 | AP92: días | AR92: 0 | AS92: 0
A93: 84 | AE93: 0 | AF93: 0 | AG93: 0 | AH93: 0 | AI93: Lote 84 | AP93: días | AR93: 0 | AS93: 0
A94: 85 | AE94: 0 | AF94: 0 | AG94: 0 | AH94: 0 | AI94: Lote 85 | AP94: días | AR94: 0 | AS94: 0
A95: 86 | AE95: 0 | AF95: 0 | AG95: 0 | AH95: 0 | AI95: Lote 86 | AP95: días | AR95: 0 | AS95: 0
A96: 87 | AE96: 0 | AF96: 0 | AG96: 0 | AH96: 0 | AI96: Lote 87 | AP96: días | AR96: 0 | AS96: 0
A97: 88 | AE97: 0 | AF97: 0 | AG97: 0 | AH97: 0 | AI97: Lote 88 | AP97: días | AR97: 0 | AS97: 0
A98: 89 | AE98: 0 | AF98: 0 | AG98: 0 | AH98: 0 | AI98: Lote 89 | AP98: días | AR98: 0 | AS98: 0
A99: 90 | AE99: 0 | AF99: 0 | AG99: 0 | AH99: 0 | AI99: Lote 90 | AP99: días | AR99: 0 | AS99: 0
A100: 91 | AE100: 0 | AF100: 0 | AG100: 0 | AH100: 0 | AI100: Lote 91 | AP100: días | AR100: 0 | AS100: 0
A101: 92 | AE101: 0 | AF101: 0 | AG101: 0 | AH101: 0 | AI101: Lote 92 | AP101: días | AR101: 0 | AS101: 0
A102: 93 | AE102: 0 | AF102: 0 | AG102: 0 | AH102: 0 | AI102: Lote 93 | AP102: días | AR102: 0 | AS102: 0
A103: 94 | AE103: 0 | AF103: 0 | AG103: 0 | AH103: 0 | AI103: Lote 94 | AP103: días | AR103: 0 | AS103: 0
A104: 95 | AE104: 0 | AF104: 0 | AG104: 0 | AH104: 0 | AI104: Lote 95 | AP104: días | AR104: 0 | AS104: 0
A105: 96 | AE105: 0 | AF105: 0 | AG105: 0 | AH105: 0 | AI105: Lote 96 | AP105: días | AR105: 0 | AS105: 0
A106: 97 | H106: =IF(B106=0,"",$H$4) ->  | K106: =IF(H$5="sin dato","",IF(D106="","",D106+$H$5)) ->  | AE106: =B106 -> 0 | AF106: 0 | AG106: 0 | AH106: 0 | AI106: Lote 97 | AJ106: =IF(B106=0,"",B106&" animales") ->  | AP106: días | AR106: 0 | AS106: 0
A107: 98 | AE107: 0 | AF107: 0 | AG107: 0 | AH107: 0 | AI107: Lote 98 | AP107: días | AR107: 0 | AS107: 0
A108: 99 | AE108: 0 | AF108: 0 | AG108: 0 | AH108: 0 | AI108: Lote 99 | AP108: días | AR108: 0 | AS108: 0
A109: 100 | AE109: 0 | AF109: 0 | AG109: 0 | AH109: 0 | AI109: Lote 100 | AP109: días | AR109: 0 | AS109: 0
A110: 101 | AE110: 0 | AF110: 0 | AG110: 0 | AH110: 0 | AI110: Lote 101 | AP110: días | AR110: 0 | AS110: 0
A111: 102 | AE111: 0 | AF111: 0 | AG111: 0 | AH111: 0 | AI111: Lote 102 | AP111: días | AR111: 0 | AS111: 0
A112: 103 | AE112: 0 | AF112: 0 | AG112: 0 | AH112: 0 | AI112: Lote 103 | AP112: días | AR112: 0 | AS112: 0
A113: 104 | AE113: 0 | AF113: 0 | AG113: 0 | AH113: 0 | AI113: Lote 104 | AP113: días | AR113: 0 | AS113: 0
A114: 105 | AE114: 0 | AF114: 0 | AG114: 0 | AH114: 0 | AI114: Lote 105 | AP114: días | AR114: 0 | AS114: 0
A115: 106 | AE115: 0 | AF115: 0 | AG115: 0 | AH115: 0 | AI115: Lote 106 | AP115: días | AR115: 0 | AS115: 0
A116: 107 | AE116: 0 | AF116: 0 | AG116: 0 | AH116: 0 | AI116: Lote 107 | AP116: días | AR116: 0 | AS116: 0
A117: 108 | AE117: 0 | AF117: 0 | AG117: 0 | AH117: 0 | AI117: Lote 108 | AP117: días | AR117: 0 | AS117: 0
A118: 109 | AE118: 0 | AF118: 0 | AG118: 0 | AH118: 0 | AI118: Lote 109 | AP118: días | AR118: 0 | AS118: 0
A119: 110 | AE119: 0 | AF119: 0 | AG119: 0 | AH119: 0 | AI119: Lote 110 | AP119: días | AR119: 0 | AS119: 0
A120: 111 | AE120: 0 | AF120: 0 | AG120: 0 | AH120: 0 | AI120: Lote 111 | AP120: días | AR120: 0 | AS120: 0
A121: 112 | AE121: 0 | AF121: 0 | AG121: 0 | AH121: 0 | AI121: Lote 112 | AP121: días | AR121: 0 | AS121: 0
A122: 113 | AE122: 0 | AF122: 0 | AG122: 0 | AH122: 0 | AI122: Lote 113 | AP122: días | AR122: 0 | AS122: 0
A123: 114 | AE123: 0 | AF123: 0 | AG123: 0 | AH123: 0 | AI123: Lote 114 | AP123: días | AR123: 0 | AS123: 0
A124: 115 | AE124: 0 | AF124: 0 | AG124: 0 | AH124: 0 | AI124: Lote 115 | AP124: días | AR124: 0 | AS124: 0
A125: 116 | AE125: 0 | AF125: 0 | AG125: 0 | AH125: 0 | AI125: Lote 116 | AP125: días | AR125: 0 | AS125: 0
A126: 117 | AE126: 0 | AF126: 0 | AG126: 0 | AH126: 0 | AI126: Lote 117 | AP126: días | AR126: 0 | AS126: 0
A127: 118 | AE127: 0 | AF127: 0 | AG127: 0 | AH127: 0 | AI127: Lote 118 | AP127: días | AR127: 0 | AS127: 0
A128: 119 | AE128: 0 | AF128: 0 | AG128: 0 | AH128: 0 | AI128: Lote 119 | AP128: días | AR128: 0 | AS128: 0
A129: 120 | AE129: 0 | AF129: 0 | AG129: 0 | AH129: 0 | AI129: Lote 120 | AP129: días | AR129: 0 | AS129: 0
A130: 121 | AE130: 0 | AF130: 0 | AG130: 0 | AH130: 0 | AI130: Lote 121 | AP130: días | AR130: 0 | AS130: 0
A131: 122 | AE131: 0 | AF131: 0 | AG131: 0 | AH131: 0 | AI131: Lote 122 | AP131: días | AR131: 0 | AS131: 0
A132: 123 | AE132: 0 | AF132: 0 | AG132: 0 | AH132: 0 | AI132: Lote 123 | AP132: días | AR132: 0 | AS132: 0
A133: 124 | AE133: 0 | AF133: 0 | AG133: 0 | AH133: 0 | AI133: Lote 124 | AP133: días | AR133: 0 | AS133: 0
A134: 125 | AE134: 0 | AF134: 0 | AG134: 0 | AH134: 0 | AI134: Lote 125 | AP134: días | AR134: 0 | AS134: 0
A135: 126 | AE135: 0 | AF135: 0 | AG135: 0 | AH135: 0 | AI135: Lote 126 | AP135: días | AR135: 0 | AS135: 0
A136: 127 | AE136: 0 | AF136: 0 | AG136: 0 | AH136: 0 | AI136: Lote 127 | AP136: días | AR136: 0 | AS136: 0
A137: 128 | AE137: 0 | AF137: 0 | AG137: 0 | AH137: 0 | AI137: Lote 128 | AP137: días | AR137: 0 | AS137: 0
A138: 129 | E138: =IF($D138 ="","",IF(YEAR($D138)=$F$1,$D138,"01/01/2025")) ->  | G138: =IF($F138="","",IF(YEAR($F138)=$F$1,$F138,"31/12/2025")) ->  | H138: =IF(B138=0,"",$H$4) ->  | K138: =IF(H$5="sin dato","",IF(D138="","",D138+$H$5)) ->  | AE138: =B138 -> 0 | AF138: 0 | AG138: 0 | AH138: 0 | AI138: ="Lote "&A138 -> Lote 129 | AJ138: =IF(B138=0,"",B138&" animales") ->  | AL138: =IF(D138="","",D138) ->  | AM138: =H138 ->  | AN138: =IF(F138="","",F138) ->  | AO138: =I138 ->  | AP138: días | AR138: =IF(AH138=0,0,AO138*AH138) -> 0 | AS138: =IF(AH138=0,0,AM138*AH138) -> 0
A139: 130 | F139: =IF(D139="","",D139+H139) ->  | I139: =IF(G139="","",_xlfn.DAYS(G139,E139)) ->  | AE139: 0 | AF139: 0 | AG139: =(AE139+AF139)/2 -> 0 | AH139: =IF($AG$160=0,0,AG139/$AG$160) -> 0 | AI139: Lote 130 | AP139: =IF(AO139=0,"",AO139& " días") -> días | AR139: 0 | AS139: 0
A140: 131 | AE140: 0 | AF140: 0 | AG140: 0 | AH140: 0 | AI140: Lote 131 | AP140: días | AR140: 0 | AS140: 0
A141: 132 | AE141: 0 | AF141: 0 | AG141: 0 | AH141: 0 | AI141: Lote 132 | AP141: días | AR141: 0 | AS141: 0
A142: 133 | AE142: 0 | AF142: 0 | AG142: 0 | AH142: 0 | AI142: Lote 133 | AP142: días | AR142: 0 | AS142: 0
A143: 134 | AE143: 0 | AF143: 0 | AG143: 0 | AH143: 0 | AI143: Lote 134 | AP143: días | AR143: 0 | AS143: 0
A144: 135 | AE144: 0 | AF144: 0 | AG144: 0 | AH144: 0 | AI144: Lote 135 | AP144: días | AR144: 0 | AS144: 0
A145: 136 | AE145: 0 | AF145: 0 | AG145: 0 | AH145: 0 | AI145: Lote 136 | AP145: días | AR145: 0 | AS145: 0
A146: 137 | AE146: 0 | AF146: 0 | AG146: 0 | AH146: 0 | AI146: Lote 137 | AP146: días | AR146: 0 | AS146: 0
A147: 138 | AE147: 0 | AF147: 0 | AG147: 0 | AH147: 0 | AI147: Lote 138 | AP147: días | AR147: 0 | AS147: 0
A148: 139 | AE148: 0 | AF148: 0 | AG148: 0 | AH148: 0 | AI148: Lote 139 | AP148: días | AR148: 0 | AS148: 0
A149: 140 | AE149: 0 | AF149: 0 | AG149: 0 | AH149: 0 | AI149: Lote 140 | AP149: días | AR149: 0 | AS149: 0
A150: 141 | AE150: 0 | AF150: 0 | AG150: 0 | AH150: 0 | AI150: Lote 141 | AP150: días | AR150: 0 | AS150: 0
A151: 142 | AE151: 0 | AF151: 0 | AG151: 0 | AH151: 0 | AI151: Lote 142 | AP151: días | AR151: 0 | AS151: 0
A152: 143 | AE152: 0 | AF152: 0 | AG152: 0 | AH152: 0 | AI152: Lote 143 | AP152: días | AR152: 0 | AS152: 0
A153: 144 | AE153: 0 | AF153: 0 | AG153: 0 | AH153: 0 | AI153: Lote 144 | AP153: días | AR153: 0 | AS153: 0
A154: 145 | AE154: 0 | AF154: 0 | AG154: 0 | AH154: 0 | AI154: Lote 145 | AP154: días | AR154: 0 | AS154: 0
A155: 146 | AE155: 0 | AF155: 0 | AG155: 0 | AH155: 0 | AI155: Lote 146 | AP155: días | AR155: 0 | AS155: 0
A156: 147 | AE156: 0 | AF156: 0 | AG156: 0 | AH156: 0 | AI156: Lote 147 | AP156: días | AR156: 0 | AS156: 0
A157: 148 | AE157: 0 | AF157: 0 | AG157: 0 | AH157: 0 | AI157: Lote 148 | AP157: días | AR157: 0 | AS157: 0
A158: 149 | AE158: 0 | AF158: 0 | AG158: 0 | AH158: 0 | AI158: Lote 149 | AP158: días | AR158: 0 | AS158: 0
A159: 150 | AE159: 0 | AF159: 0 | AG159: 0 | AH159: 0 | AI159: Lote 150 | AP159: días | AR159: 0 | AS159: 0
AE160: =SUM(AE10:AE159) -> 125 | AF160: =SUM(AF10:AF159) -> 122 | AG160: =ROUND(SUM(AG10:AG159),0) -> 124 | AH160: =SUM(AH10:AH159) -> 0.9959677419 | AR160: =ROUND(SUM(AR10:AR159),0) -> 242 | AS160: =ROUND(SUM(AS10:AS159),0) -> 349

Sheet Categoria 1
B1: Año de declaración: | F1: =Base!B12 -> 2025 | M1: Datos a grabar en el paso 2 de ECOGAN | S1: Datos a grabar en el paso 4 de ECOGAN
Q2: nº total de animales que entran de esta categoría productiva: | R2: =AE160 -> 0 | W2: Periodo productivo total medio de la categoría productiva: | X2: =H4 -> 0
A3: Categoría productiva: | D3: Mamones Macho procedentes de vacas lecheras | Q3: nº total de animales vivos que finalizan de esta categoría productiva: | R3: =AF160 -> 0 | W3: días medios presentes de la categoría productiva: | X3: =AR160 -> 0
F4: Indique el periodo productivo medio de la categoría productiva (días): | I4: *
F5: Periodo productivo medio de referencia (días): | H5: =IFERROR(VLOOKUP(D3,Base!A2:B7,2,FALSE),"sin dato") -> 346 | I5: =IF(H5="sin dato","","("&ROUND(H5*0.9,0) &" - "&ROUND(H5*1.1,0)&")") -> (311 - 381) | N5: Si desea borrar datos grabados anteriormente, pulse aquí ¡Cuidado! Perderá toda la información
A6: * | B6: Número de días que por término medio los animales de una linea productiva permanecen en la granja desde que entran hasta que salen de ese alojamiento, de modo que el periodo es por ciclo productivo y no por año natural.
M7: =Base!F2 -> 45292 | N7: =Base!H3 -> 46387
A8: u | B8: Lote es el grupo de animales que van entrando de forma escalonada a los corrales. | M8: Diagrama de entradas y salidas
A9: lote u | B9: nº de animales que entran en cada lote | C9: nº de animales vivos que finalizan en cada lote | D9: Fecha de entrada del lote (dd/mm/aa) | F9: Fecha de finalización del lote (dd/mm/aa) | H9: Periodo productivo total medio (días) | I9: ="días presentes del lote en el año " & F1 -> días presentes del lote en el año 2025 | K9: =IF(H5="sin dato","","Fecha fin según fecha entrada y periodo de "&H5&" días") -> Fecha fin según fecha entrada y periodo de 346 días | AI9: lote | AL9: Fecha de entrada del lote | AM9: Periodo productivo total | AN9: Fecha de entrada del lote | AO9: ="días presentes del lote en el año " & AL1 -> días presentes del lote en el año | AR9: ="días presentes del lote en el año " & AO1 -> días presentes del lote en el año | AS9: Periodo productivo total
A10: 1 | E10: =IF($D10 ="","",IF(YEAR($D10)=$F$1,$D10,"01/01/2025")) ->  | F10: =IF(D10="","",D10+H10) ->  | G10: =IF($F10="","",IF(YEAR($F10)=$F$1,$F10,"31/12/2025")) ->  | H10: =IF(B10=0,"",$H$4) ->  | I10: =IF(G10="","",_xlfn.DAYS(G10,E10)) ->  | K10: =IF(H$5="sin dato","",IF(D10="","",D10+$H$5)) ->  | AE10: =B10 -> 0 | AF10: 0 | AG10: =(AE10+AF10)/2 -> 0 | AH10: =IF($AG$160=0,0,AG10/$AG$160) -> 0 | AI10: ="Lote "&A10 -> Lote 1 | AJ10: =IF(B10=0,"",B10&" animales") ->  | AL10: =IF(D10="","",D10) ->  | AM10: =H10 ->  | AN10: =IF(F10="","",F10) ->  | AO10: =I10 ->  | AP10: =IF(AO10=0,"",AO10& " días") -> días | AR10: =IF(AH10=0,0,AO10*AH10) -> 0 | AS10: =IF(AH10=0,0,AM10*AH10) -> 0
A11: 2 | F11: =IF(D11="","",D11+H11) ->  | I11: =IF(G11="","",_xlfn.DAYS(G11,E11)) ->  | AE11: 0 | AF11: 0 | AG11: =(AE11+AF11)/2 -> 0 | AH11: =IF($AG$160=0,0,AG11/$AG$160) -> 0 | AI11: Lote 2 | AP11: =IF(AO11=0,"",AO11& " días") -> días | AR11: 0 | AS11: 0
A12: 3 | AE12: 0 | AF12: 0 | AG12: 0 | AH12: 0 | AI12: Lote 3 | AP12: días | AR12: 0 | AS12: 0
A13: 4 | AE13: 0 | AF13: 0 | AG13: 0 | AH13: 0 | AI13: Lote 4 | AP13: días | AR13: 0 | AS13: 0
A14: 5 | AE14: 0 | AF14: 0 | AG14: 0 | AH14: 0 | AI14: Lote 5 | AP14: días | AR14: 0 | AS14: 0
A15: 6 | AE15: 0 | AF15: 0 | AG15: 0 | AH15: 0 | AI15: Lote 6 | AP15: días | AR15: 0 | AS15: 0
A16: 7 | AE16: 0 | AF16: 0 | AG16: 0 | AH16: 0 | AI16: Lote 7 | AP16: días | AR16: 0 | AS16: 0
A17: 8 | AE17: 0 | AF17: 0 | AG17: 0 | AH17: 0 | AI17: Lote 8 | AP17: días | AR17: 0 | AS17: 0
A18: 9 | AE18: 0 | AF18: 0 | AG18: 0 | AH18: 0 | AI18: Lote 9 | AP18: días | AR18: 0 | AS18: 0
A19: 10 | AE19: 0 | AF19: 0 | AG19: 0 | AH19: 0 | AI19: Lote 10 | AP19: días | AR19: 0 | AS19: 0
A20: 11 | AE20: 0 | AF20: 0 | AG20: 0 | AH20: 0 | AI20: Lote 11 | AP20: días | AR20: 0 | AS20: 0
A21: 12 | AE21: 0 | AF21: 0 | AG21: 0 | AH21: 0 | AI21: Lote 12 | AP21: días | AR21: 0 | AS21: 0
A22: 13 | AE22: 0 | AF22: 0 | AG22: 0 | AH22: 0 | AI22: Lote 13 | AP22: días | AR22: 0 | AS22: 0
A23: 14 | AE23: 0 | AF23: 0 | AG23: 0 | AH23: 0 | AI23: Lote 14 | AP23: días | AR23: 0 | AS23: 0
A24: 15 | AE24: 0 | AF24: 0 | AG24: 0 | AH24: 0 | AI24: Lote 15 | AP24: días | AR24: 0 | AS24: 0
A25: 16 | AE25: 0 | AF25: 0 | AG25: 0 | AH25: 0 | AI25: Lote 16 | AP25: días | AR25: 0 | AS25: 0
A26: 17 | AE26: 0 | AF26: 0 | AG26: 0 | AH26: 0 | AI26: Lote 17 | AP26: días | AR26: 0 | AS26: 0
A27: 18 | AE27: 0 | AF27: 0 | AG27: 0 | AH27: 0 | AI27: Lote 18 | AP27: días | AR27: 0 | AS27: 0
A28: 19 | AE28: 0 | AF28: 0 | AG28: 0 | AH28: 0 | AI28: Lote 19 | AP28: días | AR28: 0 | AS28: 0
A29: 20 | AE29: 0 | AF29: 0 | AG29: 0 | AH29: 0 | AI29: Lote 20 | AP29: días | AR29: 0 | AS29: 0
A30: 21 | AE30: 0 | AF30: 0 | AG30: 0 | AH30: 0 | AI30: Lote 21 | AP30: días | AR30: 0 | AS30: 0
A31: 22 | AE31: 0 | AF31: 0 | AG31: 0 | AH31: 0 | AI31: Lote 22 | AP31: días | AR31: 0 | AS31: 0
A32: 23 | AE32: 0 | AF32: 0 | AG32: 0 | AH32: 0 | AI32: Lote 23 | AP32: días | AR32: 0 | AS32: 0
A33: 24 | AE33: 0 | AF33: 0 | AG33: 0 | AH33: 0 | AI33: Lote 24 | AP33: días | AR33: 0 | AS33: 0
A34: 25 | AE34: 0 | AF34: 0 | AG34: 0 | AH34: 0 | AI34: Lote 25 | AP34: días | AR34: 0 | AS34: 0
A35: 26 | AE35: 0 | AF35: 0 | AG35: 0 | AH35: 0 | AI35: Lote 26 | AP35: días | AR35: 0 | AS35: 0
A36: 27 | AE36: 0 | AF36: 0 | AG36: 0 | AH36: 0 | AI36: Lote 27 | AP36: días | AR36: 0 | AS36: 0
A37: 28 | AE37: 0 | AF37: 0 | AG37: 0 | AH37: 0 | AI37: Lote 28 | AP37: días | AR37: 0 | AS37: 0
A38: 29 | AE38: 0 | AF38: 0 | AG38: 0 | AH38: 0 | AI38: Lote 29 | AP38: días | AR38: 0 | AS38: 0
A39: 30 | AE39: 0 | AF39: 0 | AG39: 0 | AH39: 0 | AI39: Lote 30 | AP39: días | AR39: 0 | AS39: 0
A40: 31 | AE40: 0 | AF40: 0 | AG40: 0 | AH40: 0 | AI40: Lote 31 | AP40: días | AR40: 0 | AS40: 0
A41: 32 | AE41: 0 | AF41: 0 | AG41: 0 | AH41: 0 | AI41: Lote 32 | AP41: días | AR41: 0 | AS41: 0
A42: 33 | H42: =IF(B42=0,"",$H$4) ->  | K42: =IF(H$5="sin dato","",IF(D42="","",D42+$H$5)) ->  | AE42: =B42 -> 0 | AF42: 0 | AG42: 0 | AH42: 0 | AI42: Lote 33 | AJ42: =IF(B42=0,"",B42&" animales") ->  | AP42: días | AR42: 0 | AS42: 0
A43: 34 | AE43: 0 | AF43: 0 | AG43: 0 | AH43: 0 | AI43: Lote 34 | AP43: días | AR43: 0 | AS43: 0
A44: 35 | AE44: 0 | AF44: 0 | AG44: 0 | AH44: 0 | AI44: Lote 35 | AP44: días | AR44: 0 | AS44: 0
A45: 36 | AE45: 0 | AF45: 0 | AG45: 0 | AH45: 0 | AI45: Lote 36 | AP45: días | AR45: 0 | AS45: 0
A46: 37 | AE46: 0 | AF46: 0 | AG46: 0 | AH46: 0 | AI46: Lote 37 | AP46: días | AR46: 0 | AS46: 0
A47: 38 | AE47: 0 | AF47: 0 | AG47: 0 | AH47: 0 | AI47: Lote 38 | AP47: días | AR47: 0 | AS47: 0
A48: 39 | AE48: 0 | AF48: 0 | AG48: 0 | AH48: 0 | AI48: Lote 39 | AP48: días | AR48: 0 | AS48: 0
A49: 40 | AE49: 0 | AF49: 0 | AG49: 0 | AH49: 0 | AI49: Lote 40 | AP49: días | AR49: 0 | AS49: 0
A50: 41 | AE50: 0 | AF50: 0 | AG50: 0 | AH50: 0 | AI50: Lote 41 | AP50: días | AR50: 0 | AS50: 0
A51: 42 | AE51: 0 | AF51: 0 | AG51: 0 | AH51: 0 | AI51: Lote 42 | AP51: días | AR51: 0 | AS51: 0
A52: 43 | AE52: 0 | AF52: 0 | AG52: 0 | AH52: 0 | AI52: Lote 43 | AP52: días | AR52: 0 | AS52: 0
A53: 44 | AE53: 0 | AF53: 0 | AG53: 0 | AH53: 0 | AI53: Lote 44 | AP53: días | AR53: 0 | AS53: 0
A54: 45 | AE54: 0 | AF54: 0 | AG54: 0 | AH54: 0 | AI54: Lote 45 | AP54: días | AR54: 0 | AS54: 0
A55: 46 | AE55: 0 | AF55: 0 | AG55: 0 | AH55: 0 | AI55: Lote 46 | AP55: días | AR55: 0 | AS55: 0
A56: 47 | AE56: 0 | AF56: 0 | AG56: 0 | AH56: 0 | AI56: Lote 47 | AP56: días | AR56: 0 | AS56: 0
A57: 48 | AE57: 0 | AF57: 0 | AG57: 0 | AH57: 0 | AI57: Lote 48 | AP57: días | AR57: 0 | AS57: 0
A58: 49 | AE58: 0 | AF58: 0 | AG58: 0 | AH58: 0 | AI58: Lote 49 | AP58: días | AR58: 0 | AS58: 0
A59: 50 | AE59: 0 | AF59: 0 | AG59: 0 | AH59: 0 | AI59: Lote 50 | AP59: días | AR59: 0 | AS59: 0
A60: 51 | AE60: 0 | AF60: 0 | AG60: 0 | AH60: 0 | AI60: Lote 51 | AP60: días | AR60: 0 | AS60: 0
A61: 52 | AE61: 0 | AF61: 0 | AG61: 0 | AH61: 0 | AI61: Lote 52 | AP61: días | AR61: 0 | AS61: 0
A62: 53 | AE62: 0 | AF62: 0 | AG62: 0 | AH62: 0 | AI62: Lote 53 | AP62: días | AR62: 0 | AS62: 0
A63: 54 | AE63: 0 | AF63: 0 | AG63: 0 | AH63: 0 | AI63: Lote 54 | AP63: días | AR63: 0 | AS63: 0
A64: 55 | AE64: 0 | AF64: 0 | AG64: 0 | AH64: 0 | AI64: Lote 55 | AP64: días | AR64: 0 | AS64: 0
A65: 56 | AE65: 0 | AF65: 0 | AG65: 0 | AH65: 0 | AI65: Lote 56 | AP65: días | AR65: 0 | AS65: 0
A66: 57 | AE66: 0 | AF66: 0 | AG66: 0 | AH66: 0 | AI66: Lote 57 | AP66: días | AR66: 0 | AS66: 0
A67: 58 | AE67: 0 | AF67: 0 | AG67: 0 | AH67: 0 | AI67: Lote 58 | AP67: días | AR67: 0 | AS67: 0
A68: 59 | AE68: 0 | AF68: 0 | AG68: 0 | AH68: 0 | AI68: Lote 59 | AP68: días | AR68: 0 | AS68: 0
A69: 60 | AE69: 0 | AF69: 0 | AG69: 0 | AH69: 0 | AI69: Lote 60 | AP69: días | AR69: 0 | AS69: 0
A70: 61 | AE70: 0 | AF70: 0 | AG70: 0 | AH70: 0 | AI70: Lote 61 | AP70: días | AR70: 0 | AS70: 0
A71: 62 | AE71: 0 | AF71: 0 | AG71: 0 | AH71: 0 | AI71: Lote 62 | AP71: días | AR71: 0 | AS71: 0
A72: 63 | AE72: 0 | AF72: 0 | AG72: 0 | AH72: 0 | AI72: Lote 63 | AP72: días | AR72: 0 | AS72: 0
A73: 64 | AE73: 0 | AF73: 0 | AG73: 0 | AH73: 0 | AI73: Lote 64 | AP73: días | AR73: 0 | AS73: 0
A74: 65 | E74: =IF($D74 ="","",IF(YEAR($D74)=$F$1,$D74,"01/01/2025")) ->  | G74: =IF($F74="","",IF(YEAR($F74)=$F$1,$F74,"31/12/2025")) ->  | H74: =IF(B74=0,"",$H$4) ->  | K74: =IF(H$5="sin dato","",IF(D74="","",D74+$H$5)) ->  | AE74: =B74 -> 0 | AF74: 0 | AG74: 0 | AH74: 0 | AI74: ="Lote "&A74 -> Lote 65 | AJ74: =IF(B74=0,"",B74&" animales") ->  | AL74: =IF(D74="","",D74) ->  | AM74: =H74 ->  | AN74: =IF(F74="","",F74) ->  | AO74: =I74 ->  | AP74: días | AR74: =IF(AH74=0,0,AO74*AH74) -> 0 | AS74: =IF(AH74=0,0,AM74*AH74) -> 0
A75: 66 | F75: =IF(D75="","",D75+H75) ->  | I75: =IF(G75="","",_xlfn.DAYS(G75,E75)) ->  | AE75: 0 | AF75: 0 | AG75: =(AE75+AF75)/2 -> 0 | AH75: =IF($AG$160=0,0,AG75/$AG$160) -> 0 | AI75: Lote 66 | AP75: =IF(AO75=0,"",AO75& " días") -> días | AR75: 0 | AS75: 0
A76: 67 | AE76: 0 | AF76: 0 | AG76: 0 | AH76: 0 | AI76: Lote 67 | AP76: días | AR76: 0 | AS76: 0
A77: 68 | AE77: 0 | AF77: 0 | AG77: 0 | AH77: 0 | AI77: Lote 68 | AP77: días | AR77: 0 | AS77: 0
A78: 69 | AE78: 0 | AF78: 0 | AG78: 0 | AH78: 0 | AI78: Lote 69 | AP78: días | AR78: 0 | AS78: 0
A79: 70 | AE79: 0 | AF79: 0 | AG79: 0 | AH79: 0 | AI79: Lote 70 | AP79: días | AR79: 0 | AS79: 0
A80: 71 | AE80: 0 | AF80: 0 | AG80: 0 | AH80: 0 | AI80: Lote 71 | AP80: días | AR80: 0 | AS80: 0
A81: 72 | AE81: 0 | AF81: 0 | AG81: 0 | AH81: 0 | AI81: Lote 72 | AP81: días | AR81: 0 | AS81: 0
A82: 73 | AE82: 0 | AF82: 0 | AG82: 0 | AH82: 0 | AI82: Lote 73 | AP82: días | AR82: 0 | AS82: 0
A83: 74 | AE83: 0 | AF83: 0 | AG83: 0 | AH83: 0 | AI83: Lote 74 | AP83: días | AR83: 0 | AS83: 0
A84: 75 | AE84: 0 | AF84: 0 | AG84: 0 | AH84: 0 | AI84: Lote 75 | AP84: días | AR84: 0 | AS84: 0
A85: 76 | AE85: 0 | AF85: 0 | AG85: 0 | AH85: 0 | AI85: Lote 76 | AP85: días | AR85: 0 | AS85: 0
A86: 77 | AE86: 0 | AF86: 0 | AG86: 0 | AH86: 0 | AI86: Lote 77 | AP86: días | AR86: 0 | AS86: 0
A87: 78 | AE87: 0 | AF87: 0 | AG87: 0 | AH87: 0 | AI87: Lote 78 | AP87: días | AR87: 0 | AS87: 0
A88: 79 | AE88: 0 | AF88: 0 | AG88: 0 | AH88: 0 | AI88: Lote 79 | AP88: días | AR88: 0 | AS88: 0
A89: 80 | AE89: 0 | AF89: 0 | AG89: 0 | AH89: 0 | AI89: Lote 80 | AP89: días | AR89: 0 | AS89: 0
A90: 81 | AE90: 0 | AF90: 0 | AG90: 0 | AH90: 0 | AI90: Lote 81 | AP90: días | AR90: 0 | AS90: 0
A91: 82 | AE91: 0 | AF91: 0 | AG91: 0 | AH91: 0 | AI91: Lote 82 | AP91: días | AR91: 0 | AS91: 0
A92: 83 | AE92: 0 | AF92: 0 | AG92: 0 | AH92: 0 | AI92: Lote 83 | AP92: días | AR92: 0 | AS92: 0
A93: 84 | AE93: 0 | AF93: 0 | AG93: 0 | AH93: 0 | AI93: Lote 84 | AP93: días | AR93: 0 | AS93: 0
A94: 85 | AE94: 0 | AF94: 0 | AG94: 0 | AH94: 0 | AI94: Lote 85 | AP94: días | AR94: 0 | AS94: 0
A95: 86 | AE95: 0 | AF95: 0 | AG95: 0 | AH95: 0 | AI95: Lote 86 | AP95: días | AR95: 0 | AS95: 0
A96: 87 | AE96: 0 | AF96: 0 | AG96: 0 | AH96: 0 | AI96: Lote 87 | AP96: días | AR96: 0 | AS96: 0
A97: 88 | AE97: 0 | AF97: 0 | AG97: 0 | AH97: 0 | AI97: Lote 88 | AP97: días | AR97: 0 | AS97: 0
A98: 89 | AE98: 0 | AF98: 0 | AG98: 0 | AH98: 0 | AI98: Lote 89 | AP98: días | AR98: 0 | AS98: 0
A99: 90 | AE99: 0 | AF99: 0 | AG99: 0 | AH99: 0 | AI99: Lote 90 | AP99: días | AR99: 0 | AS99: 0
A100: 91 | AE100: 0 | AF100: 0 | AG100: 0 | AH100: 0 | AI100: Lote 91 | AP100: días | AR100: 0 | AS100: 0
A101: 92 | AE101: 0 | AF101: 0 | AG101: 0 | AH101: 0 | AI101: Lote 92 | AP101: días | AR101: 0 | AS101: 0
A102: 93 | AE102: 0 | AF102: 0 | AG102: 0 | AH102: 0 | AI102: Lote 93 | AP102: días | AR102: 0 | AS102: 0
A103: 94 | AE103: 0 | AF103: 0 | AG103: 0 | AH103: 0 | AI103: Lote 94 | AP103: días | AR103: 0 | AS103: 0
A104: 95 | AE104: 0 | AF104: 0 | AG104: 0 | AH104: 0 | AI104: Lote 95 | AP104: días | AR104: 0 | AS104: 0
A105: 96 | AE105: 0 | AF105: 0 | AG105: 0 | AH105: 0 | AI105: Lote 96 | AP105: días | AR105: 0 | AS105: 0
A106: 97 | H106: =IF(B106=0,"",$H$4) ->  | K106: =IF(H$5="sin dato","",IF(D106="","",D106+$H$5)) ->  | AE106: =B106 -> 0 | AF106: 0 | AG106: 0 | AH106: 0 | AI106: Lote 97 | AJ106: =IF(B106=0,"",B106&" animales") ->  | AP106: días | AR106: 0 | AS106: 0
A107: 98 | AE107: 0 | AF107: 0 | AG107: 0 | AH107: 0 | AI107: Lote 98 | AP107: días | AR107: 0 | AS107: 0
A108: 99 | AE108: 0 | AF108: 0 | AG108: 0 | AH108: 0 | AI108: Lote 99 | AP108: días | AR108: 0 | AS108: 0
A109: 100 | AE109: 0 | AF109: 0 | AG109: 0 | AH109: 0 | AI109: Lote 100 | AP109: días | AR109: 0 | AS109: 0
A110: 101 | AE110: 0 | AF110: 0 | AG110: 0 | AH110: 0 | AI110: Lote 101 | AP110: días | AR110: 0 | AS110: 0
A111: 102 | AE111: 0 | AF111: 0 | AG111: 0 | AH111: 0 | AI111: Lote 102 | AP111: días | AR111: 0 | AS111: 0
A112: 103 | AE112: 0 | AF112: 0 | AG112: 0 | AH112: 0 | AI112: Lote 103 | AP112: días | AR112: 0 | AS112: 0
A113: 104 | AE113: 0 | AF113: 0 | AG113: 0 | AH113: 0 | AI113: Lote 104 | AP113: días | AR113: 0 | AS113: 0
A114: 105 | AE114: 0 | AF114: 0 | AG114: 0 | AH114: 0 | AI114: Lote 105 | AP114: días | AR114: 0 | AS114: 0
A115: 106 | AE115: 0 | AF115: 0 | AG115: 0 | AH115: 0 | AI115: Lote 106 | AP115: días | AR115: 0 | AS115: 0
A116: 107 | AE116: 0 | AF116: 0 | AG116: 0 | AH116: 0 | AI116: Lote 107 | AP116: días | AR116: 0 | AS116: 0
A117: 108 | AE117: 0 | AF117: 0 | AG117: 0 | AH117: 0 | AI117: Lote 108 | AP117: días | AR117: 0 | AS117: 0
A118: 109 | AE118: 0 | AF118: 0 | AG118: 0 | AH118: 0 | AI118: Lote 109 | AP118: días | AR118: 0 | AS118: 0
A119: 110 | AE119: 0 | AF119: 0 | AG119: 0 | AH119: 0 | AI119: Lote 110 | AP119: días | AR119: 0 | AS119: 0
A120: 111 | AE120: 0 | AF120: 0 | AG120: 0 | AH120: 0 | AI120: Lote 111 | AP120: días | AR120: 0 | AS120: 0
A121: 112 | AE121: 0 | AF121: 0 | AG121: 0 | AH121: 0 | AI121: Lote 112 | AP121: días | AR121: 0 | AS121: 0
A122: 113 | AE122: 0 | AF122: 0 | AG122: 0 | AH122: 0 | AI122: Lote 113 | AP122: días | AR122: 0 | AS122: 0
A123: 114 | AE123: 0 | AF123: 0 | AG123: 0 | AH123: 0 | AI123: Lote 114 | AP123: días | AR123: 0 | AS123: 0
A124: 115 | AE124: 0 | AF124: 0 | AG124: 0 | AH124: 0 | AI124: Lote 115 | AP124: días | AR124: 0 | AS124: 0
A125: 116 | AE125: 0 | AF125: 0 | AG125: 0 | AH125: 0 | AI125: Lote 116 | AP125: días | AR125: 0 | AS125: 0
A126: 117 | AE126: 0 | AF126: 0 | AG126: 0 | AH126: 0 | AI126: Lote 117 | AP126: días | AR126: 0 | AS126: 0
A127: 118 | AE127: 0 | AF127: 0 | AG127: 0 | AH127: 0 | AI127: Lote 118 | AP127: días | AR127: 0 | AS127: 0
A128: 119 | AE128: 0 | AF128: 0 | AG128: 0 | AH128: 0 | AI128: Lote 119 | AP128: días | AR128: 0 | AS128: 0
A129: 120 | AE129: 0 | AF129: 0 | AG129: 0 | AH129: 0 | AI129: Lote 120 | AP129: días | AR129: 0 | AS129: 0
A130: 121 | AE130: 0 | AF130: 0 | AG130: 0 | AH130: 0 | AI130: Lote 121 | AP130: días | AR130: 0 | AS130: 0
A131: 122 | AE131: 0 | AF131: 0 | AG131: 0 | AH131: 0 | AI131: Lote 122 | AP131: días | AR131: 0 | AS131: 0
A132: 123 | AE132: 0 | AF132: 0 | AG132: 0 | AH132: 0 | AI132: Lote 123 | AP132: días | AR132: 0 | AS132: 0
A133: 124 | AE133: 0 | AF133: 0 | AG133: 0 | AH133: 0 | AI133: Lote 124 | AP133: días | AR133: 0 | AS133: 0
A134: 125 | AE134: 0 | AF134: 0 | AG134: 0 | AH134: 0 | AI134: Lote 125 | AP134: días | AR134: 0 | AS134: 0
A135: 126 | AE135: 0 | AF135: 0 | AG135: 0 | AH135: 0 | AI135: Lote 126 | AP135: días | AR135: 0 | AS135: 0
A136: 127 | AE136: 0 | AF136: 0 | AG136: 0 | AH136: 0 | AI136: Lote 127 | AP136: días | AR136: 0 | AS136: 0
A137: 128 | AE137: 0 | AF137: 0 | AG137: 0 | AH137: 0 | AI137: Lote 128 | AP137: días | AR137: 0 | AS137: 0
A138: 129 | E138: =IF($D138 ="","",IF(YEAR($D138)=$F$1,$D138,"01/01/2025")) ->  | G138: =IF($F138="","",IF(YEAR($F138)=$F$1,$F138,"31/12/2025")) ->  | H138: =IF(B138=0,"",$H$4) ->  | K138: =IF(H$5="sin dato","",IF(D138="","",D138+$H$5)) ->  | AE138: =B138 -> 0 | AF138: 0 | AG138: 0 | AH138: 0 | AI138: ="Lote "&A138 -> Lote 129 | AJ138: =IF(B138=0,"",B138&" animales") ->  | AL138: =IF(D138="","",D138) ->  | AM138: =H138 ->  | AN138: =IF(F138="","",F138) ->  | AO138: =I138 ->  | AP138: días | AR138: =IF(AH138=0,0,AO138*AH138) -> 0 | AS138: =IF(AH138=0,0,AM138*AH138) -> 0
A139: 130 | F139: =IF(D139="","",D139+H139) ->  | I139: =IF(G139="","",_xlfn.DAYS(G139,E139)) ->  | AE139: 0 | AF139: 0 | AG139: =(AE139+AF139)/2 -> 0 | AH139: =IF($AG$160=0,0,AG139/$AG$160) -> 0 | AI139: Lote 130 | AP139: =IF(AO139=0,"",AO139& " días") -> días | AR139: 0 | AS139: 0
A140: 131 | AE140: 0 | AF140: 0 | AG140: 0 | AH140: 0 | AI140: Lote 131 | AP140: días | AR140: 0 | AS140: 0
A141: 132 | AE141: 0 | AF141: 0 | AG141: 0 | AH141: 0 | AI141: Lote 132 | AP141: días | AR141: 0 | AS141: 0
A142: 133 | AE142: 0 | AF142: 0 | AG142: 0 | AH142: 0 | AI142: Lote 133 | AP142: días | AR142: 0 | AS142: 0
A143: 134 | AE143: 0 | AF143: 0 | AG143: 0 | AH143: 0 | AI143: Lote 134 | AP143: días | AR143: 0 | AS143: 0
A144: 135 | AE144: 0 | AF144: 0 | AG144: 0 | AH144: 0 | AI144: Lote 135 | AP144: días | AR144: 0 | AS144: 0
A145: 136 | AE145: 0 | AF145: 0 | AG145: 0 | AH145: 0 | AI145: Lote 136 | AP145: días | AR145: 0 | AS145: 0
A146: 137 | AE146: 0 | AF146: 0 | AG146: 0 | AH146: 0 | AI146: Lote 137 | AP146: días | AR146: 0 | AS146: 0
A147: 138 | AE147: 0 | AF147: 0 | AG147: 0 | AH147: 0 | AI147: Lote 138 | AP147: días | AR147: 0 | AS147: 0
A148: 139 | AE148: 0 | AF148: 0 | AG148: 0 | AH148: 0 | AI148: Lote 139 | AP148: días | AR148: 0 | AS148: 0
A149: 140 | AE149: 0 | AF149: 0 | AG149: 0 | AH149: 0 | AI149: Lote 140 | AP149: días | AR149: 0 | AS149: 0
A150: 141 | AE150: 0 | AF150: 0 | AG150: 0 | AH150: 0 | AI150: Lote 141 | AP150: días | AR150: 0 | AS150: 0
A151: 142 | AE151: 0 | AF151: 0 | AG151: 0 | AH151: 0 | AI151: Lote 142 | AP151: días | AR151: 0 | AS151: 0
A152: 143 | AE152: 0 | AF152: 0 | AG152: 0 | AH152: 0 | AI152: Lote 143 | AP152: días | AR152: 0 | AS152: 0
A153: 144 | AE153: 0 | AF153: 0 | AG153: 0 | AH153: 0 | AI153: Lote 144 | AP153: días | AR153: 0 | AS153: 0
A154: 145 | AE154: 0 | AF154: 0 | AG154: 0 | AH154: 0 | AI154: Lote 145 | AP154: días | AR154: 0 | AS154: 0
A155: 146 | AE155: 0 | AF155: 0 | AG155: 0 | AH155: 0 | AI155: Lote 146 | AP155: días | AR155: 0 | AS155: 0
A156: 147 | AE156: 0 | AF156: 0 | AG156: 0 | AH156: 0 | AI156: Lote 147 | AP156: días | AR156: 0 | AS156: 0
A157: 148 | AE157: 0 | AF157: 0 | AG157: 0 | AH157: 0 | AI157: Lote 148 | AP157: días | AR157: 0 | AS157: 0
A158: 149 | AE158: 0 | AF158: 0 | AG158: 0 | AH158: 0 | AI158: Lote 149 | AP158: días | AR158: 0 | AS158: 0
A159: 150 | AE159: 0 | AF159: 0 | AG159: 0 | AH159: 0 | AI159: Lote 150 | AP159: días | AR159: 0 | AS159: 0
AE160: =SUM(AE10:AE159) -> 0 | AF160: =SUM(AF10:AF159) -> 0 | AG160: =ROUND(SUM(AG10:AG159),0) -> 0 | AH160: =SUM(AH10:AH159) -> 0 | AR160: =ROUND(SUM(AR10:AR159),0) -> 0 | AS160: =ROUND(SUM(AS10:AS159),0) -> 0

Sheet Categoria 2
B1: Año de declaración: | F1: =Base!B12 -> 2025 | M1: Datos a grabar en el paso 2 de ECOGAN | S1: Datos a grabar en el paso 4 de ECOGAN
Q2: nº total de animales que entran de esta categoría productiva: | R2: =AE160 -> 0 | W2: Periodo productivo total medio de la categoría productiva: | X2: =H4 -> 0
A3: Categoría productiva: | D3: Mamones Hembra procedentes de vacas lecheras | Q3: nº total de animales vivos que finalizan de esta categoría productiva: | R3: =AF160 -> 0 | W3: días medios presentes de la categoría productiva: | X3: =AR160 -> 0
F4: Indique el periodo productivo medio de la categoría productiva (días): | I4: *
F5: Periodo productivo medio de referencia (días): | H5: =IFERROR(VLOOKUP(D3,Base!A2:B7,2,FALSE),"sin dato") -> 337 | I5: =IF(H5="sin dato","","("&ROUND(H5*0.9,0) &" - "&ROUND(H5*1.1,0)&")") -> (303 - 371) | N5: Si desea borrar datos grabados anteriormente, pulse aquí ¡Cuidado! Perderá toda la información
A6: * | B6: Número de días que por término medio los animales de una linea productiva permanecen en la granja desde que entran hasta que salen de ese alojamiento, de modo que el periodo es por ciclo productivo y no por año natural.
M7: =Base!F2 -> 45292 | N7: =Base!H3 -> 46387
A8: u | B8: Lote es el grupo de animales que van entrando de forma escalonada a los corrales. | M8: Diagrama de entradas y salidas
A9: lote u | B9: nº de animales que entran en cada lote | C9: nº de animales vivos que finalizan en cada lote | D9: Fecha de entrada del lote (dd/mm/aa) | F9: Fecha de finalización del lote (dd/mm/aa) | H9: Periodo productivo total medio (días) | I9: ="días presentes del lote en el año " & F1 -> días presentes del lote en el año 2025 | K9: =IF(H5="sin dato","","Fecha fin según fecha entrada y periodo de "&H5&" días") -> Fecha fin según fecha entrada y periodo de 337 días | AI9: lote | AL9: Fecha de entrada del lote | AM9: Periodo productivo total | AN9: Fecha de entrada del lote | AO9: ="días presentes del lote en el año " & AL1 -> días presentes del lote en el año | AR9: ="días presentes del lote en el año " & AO1 -> días presentes del lote en el año | AS9: Periodo productivo total
A10: 1 | E10: =IF($D10 ="","",IF(YEAR($D10)=$F$1,$D10,"01/01/2025")) ->  | F10: =IF(D10="","",D10+H10) ->  | G10: =IF($F10="","",IF(YEAR($F10)=$F$1,$F10,"31/12/2025")) ->  | H10: =IF(B10=0,"",$H$4) ->  | I10: =IF(G10="","",_xlfn.DAYS(G10,E10)) ->  | K10: =IF(H$5="sin dato","",IF(D10="","",D10+$H$5)) ->  | AE10: =B10 -> 0 | AF10: 0 | AG10: =(AE10+AF10)/2 -> 0 | AH10: =IF($AG$160=0,0,AG10/$AG$160) -> 0 | AI10: ="Lote "&A10 -> Lote 1 | AJ10: =IF(B10=0,"",B10&" animales") ->  | AL10: =IF(D10="","",D10) ->  | AM10: =H10 ->  | AN10: =IF(F10="","",F10) ->  | AO10: =I10 ->  | AP10: =IF(AO10=0,"",AO10& " días") -> días | AR10: =IF(AH10=0,0,AO10*AH10) -> 0 | AS10: =IF(AH10=0,0,AM10*AH10) -> 0
A11: 2 | F11: =IF(D11="","",D11+H11) ->  | I11: =IF(G11="","",_xlfn.DAYS(G11,E11)) ->  | AE11: 0 | AF11: 0 | AG11: =(AE11+AF11)/2 -> 0 | AH11: =IF($AG$160=0,0,AG11/$AG$160) -> 0 | AI11: Lote 2 | AP11: =IF(AO11=0,"",AO11& " días") -> días | AR11: 0 | AS11: 0
A12: 3 | AE12: 0 | AF12: 0 | AG12: 0 | AH12: 0 | AI12: Lote 3 | AP12: días | AR12: 0 | AS12: 0
A13: 4 | AE13: 0 | AF13: 0 | AG13: 0 | AH13: 0 | AI13: Lote 4 | AP13: días | AR13: 0 | AS13: 0
A14: 5 | AE14: 0 | AF14: 0 | AG14: 0 | AH14: 0 | AI14: Lote 5 | AP14: días | AR14: 0 | AS14: 0
A15: 6 | AE15: 0 | AF15: 0 | AG15: 0 | AH15: 0 | AI15: Lote 6 | AP15: días | AR15: 0 | AS15: 0
A16: 7 | AE16: 0 | AF16: 0 | AG16: 0 | AH16: 0 | AI16: Lote 7 | AP16: días | AR16: 0 | AS16: 0
A17: 8 | AE17: 0 | AF17: 0 | AG17: 0 | AH17: 0 | AI17: Lote 8 | AP17: días | AR17: 0 | AS17: 0
A18: 9 | AE18: 0 | AF18: 0 | AG18: 0 | AH18: 0 | AI18: Lote 9 | AP18: días | AR18: 0 | AS18: 0
A19: 10 | AE19: 0 | AF19: 0 | AG19: 0 | AH19: 0 | AI19: Lote 10 | AP19: días | AR19: 0 | AS19: 0
A20: 11 | AE20: 0 | AF20: 0 | AG20: 0 | AH20: 0 | AI20: Lote 11 | AP20: días | AR20: 0 | AS20: 0
A21: 12 | AE21: 0 | AF21: 0 | AG21: 0 | AH21: 0 | AI21: Lote 12 | AP21: días | AR21: 0 | AS21: 0
A22: 13 | AE22: 0 | AF22: 0 | AG22: 0 | AH22: 0 | AI22: Lote 13 | AP22: días | AR22: 0 | AS22: 0
A23: 14 | AE23: 0 | AF23: 0 | AG23: 0 | AH23: 0 | AI23: Lote 14 | AP23: días | AR23: 0 | AS23: 0
A24: 15 | AE24: 0 | AF24: 0 | AG24: 0 | AH24: 0 | AI24: Lote 15 | AP24: días | AR24: 0 | AS24: 0
A25: 16 | AE25: 0 | AF25: 0 | AG25: 0 | AH25: 0 | AI25: Lote 16 | AP25: días | AR25: 0 | AS25: 0
A26: 17 | AE26: 0 | AF26: 0 | AG26: 0 | AH26: 0 | AI26: Lote 17 | AP26: días | AR26: 0 | AS26: 0
A27: 18 | AE27: 0 | AF27: 0 | AG27: 0 | AH27: 0 | AI27: Lote 18 | AP27: días | AR27: 0 | AS27: 0
A28: 19 | AE28: 0 | AF28: 0 | AG28: 0 | AH28: 0 | AI28: Lote 19 | AP28: días | AR28: 0 | AS28: 0
A29: 20 | AE29: 0 | AF29: 0 | AG29: 0 | AH29: 0 | AI29: Lote 20 | AP29: días | AR29: 0 | AS29: 0
A30: 21 | AE30: 0 | AF30: 0 | AG30: 0 | AH30: 0 | AI30: Lote 21 | AP30: días | AR30: 0 | AS30: 0
A31: 22 | AE31: 0 | AF31: 0 | AG31: 0 | AH31: 0 | AI31: Lote 22 | AP31: días | AR31: 0 | AS31: 0
A32: 23 | AE32: 0 | AF32: 0 | AG32: 0 | AH32: 0 | AI32: Lote 23 | AP32: días | AR32: 0 | AS32: 0
A33: 24 | AE33: 0 | AF33: 0 | AG33: 0 | AH33: 0 | AI33: Lote 24 | AP33: días | AR33: 0 | AS33: 0
A34: 25 | AE34: 0 | AF34: 0 | AG34: 0 | AH34: 0 | AI34: Lote 25 | AP34: días | AR34: 0 | AS34: 0
A35: 26 | AE35: 0 | AF35: 0 | AG35: 0 | AH35: 0 | AI35: Lote 26 | AP35: días | AR35: 0 | AS35: 0
A36: 27 | AE36: 0 | AF36: 0 | AG36: 0 | AH36: 0 | AI36: Lote 27 | AP36: días | AR36: 0 | AS36: 0
A37: 28 | AE37: 0 | AF37: 0 | AG37: 0 | AH37: 0 | AI37: Lote 28 | AP37: días | AR37: 0 | AS37: 0
A38: 29 | AE38: 0 | AF38: 0 | AG38: 0 | AH38: 0 | AI38: Lote 29 | AP38: días | AR38: 0 | AS38: 0
A39: 30 | AE39: 0 | AF39: 0 | AG39: 0 | AH39: 0 | AI39: Lote 30 | AP39: días | AR39: 0 | AS39: 0
A40: 31 | AE40: 0 | AF40: 0 | AG40: 0 | AH40: 0 | AI40: Lote 31 | AP40: días | AR40: 0 | AS40: 0
A41: 32 | AE41: 0 | AF41: 0 | AG41: 0 | AH41: 0 | AI41: Lote 32 | AP41: días | AR41: 0 | AS41: 0
A42: 33 | H42: =IF(B42=0,"",$H$4) ->  | K42: =IF(H$5="sin dato","",IF(D42="","",D42+$H$5)) ->  | AE42: =B42 -> 0 | AF42: 0 | AG42: 0 | AH42: 0 | AI42: Lote 33 | AJ42: =IF(B42=0,"",B42&" animales") ->  | AP42: días | AR42: 0 | AS42: 0
A43: 34 | AE43: 0 | AF43: 0 | AG43: 0 | AH43: 0 | AI43: Lote 34 | AP43: días | AR43: 0 | AS43: 0
A44: 35 | AE44: 0 | AF44: 0 | AG44: 0 | AH44: 0 | AI44: Lote 35 | AP44: días | AR44: 0 | AS44: 0
A45: 36 | AE45: 0 | AF45: 0 | AG45: 0 | AH45: 0 | AI45: Lote 36 | AP45: días | AR45: 0 | AS45: 0
A46: 37 | AE46: 0 | AF46: 0 | AG46: 0 | AH46: 0 | AI46: Lote 37 | AP46: días | AR46: 0 | AS46: 0
A47: 38 | AE47: 0 | AF47: 0 | AG47: 0 | AH47: 0 | AI47: Lote 38 | AP47: días | AR47: 0 | AS47: 0
A48: 39 | AE48: 0 | AF48: 0 | AG48: 0 | AH48: 0 | AI48: Lote 39 | AP48: días | AR48: 0 | AS48: 0
A49: 40 | AE49: 0 | AF49: 0 | AG49: 0 | AH49: 0 | AI49: Lote 40 | AP49: días | AR49: 0 | AS49: 0
A50: 41 | AE50: 0 | AF50: 0 | AG50: 0 | AH50: 0 | AI50: Lote 41 | AP50: días | AR50: 0 | AS50: 0
A51: 42 | AE51: 0 | AF51: 0 | AG51: 0 | AH51: 0 | AI51: Lote 42 | AP51: días | AR51: 0 | AS51: 0
A52: 43 | AE52: 0 | AF52: 0 | AG52: 0 | AH52: 0 | AI52: Lote 43 | AP52: días | AR52: 0 | AS52: 0
A53: 44 | AE53: 0 | AF53: 0 | AG53: 0 | AH53: 0 | AI53: Lote 44 | AP53: días | AR53: 0 | AS53: 0
A54: 45 | AE54: 0 | AF54: 0 | AG54: 0 | AH54: 0 | AI54: Lote 45 | AP54: días | AR54: 0 | AS54: 0
A55: 46 | AE55: 0 | AF55: 0 | AG55: 0 | AH55: 0 | AI55: Lote 46 | AP55: días | AR55: 0 | AS55: 0
A56: 47 | AE56: 0 | AF56: 0 | AG56: 0 | AH56: 0 | AI56: Lote 47 | AP56: días | AR56: 0 | AS56: 0
A57: 48 | AE57: 0 | AF57: 0 | AG57: 0 | AH57: 0 | AI57: Lote 48 | AP57: días | AR57: 0 | AS57: 0
A58: 49 | AE58: 0 | AF58: 0 | AG58: 0 | AH58: 0 | AI58: Lote 49 | AP58: días | AR58: 0 | AS58: 0
A59: 50 | AE59: 0 | AF59: 0 | AG59: 0 | AH59: 0 | AI59: Lote 50 | AP59: días | AR59: 0 | AS59: 0
A60: 51 | AE60: 0 | AF60: 0 | AG60: 0 | AH60: 0 | AI60: Lote 51 | AP60: días | AR60: 0 | AS60: 0
A61: 52 | AE61: 0 | AF61: 0 | AG61: 0 | AH61: 0 | AI61: Lote 52 | AP61: días | AR61: 0 | AS61: 0
A62: 53 | AE62: 0 | AF62: 0 | AG62: 0 | AH62: 0 | AI62: Lote 53 | AP62: días | AR62: 0 | AS62: 0
A63: 54 | AE63: 0 | AF63: 0 | AG63: 0 | AH63: 0 | AI63: Lote 54 | AP63: días | AR63: 0 | AS63: 0
A64: 55 | AE64: 0 | AF64: 0 | AG64: 0 | AH64: 0 | AI64: Lote 55 | AP64: días | AR64: 0 | AS64: 0
A65: 56 | AE65: 0 | AF65: 0 | AG65: 0 | AH65: 0 | AI65: Lote 56 | AP65: días | AR65: 0 | AS65: 0
A66: 57 | AE66: 0 | AF66: 0 | AG66: 0 | AH66: 0 | AI66: Lote 57 | AP66: días | AR66: 0 | AS66: 0
A67: 58 | AE67: 0 | AF67: 0 | AG67: 0 | AH67: 0 | AI67: Lote 58 | AP67: días | AR67: 0 | AS67: 0
A68: 59 | AE68: 0 | AF68: 0 | AG68: 0 | AH68: 0 | AI68: Lote 59 | AP68: días | AR68: 0 | AS68: 0
A69: 60 | AE69: 0 | AF69: 0 | AG69: 0 | AH69: 0 | AI69: Lote 60 | AP69: días | AR69: 0 | AS69: 0
A70: 61 | AE70: 0 | AF70: 0 | AG70: 0 | AH70: 0 | AI70: Lote 61 | AP70: días | AR70: 0 | AS70: 0
A71: 62 | AE71: 0 | AF71: 0 | AG71: 0 | AH71: 0 | AI71: Lote 62 | AP71: días | AR71: 0 | AS71: 0
A72: 63 | AE72: 0 | AF72: 0 | AG72: 0 | AH72: 0 | AI72: Lote 63 | AP72: días | AR72: 0 | AS72: 0
A73: 64 | AE73: 0 | AF73: 0 | AG73: 0 | AH73: 0 | AI73: Lote 64 | AP73: días | AR73: 0 | AS73: 0
A74: 65 | E74: =IF($D74 ="","",IF(YEAR($D74)=$F$1,$D74,"01/01/2025")) ->  | G74: =IF($F74="","",IF(YEAR($F74)=$F$1,$F74,"31/12/2025")) ->  | H74: =IF(B74=0,"",$H$4) ->  | K74: =IF(H$5="sin dato","",IF(D74="","",D74+$H$5)) ->  | AE74: =B74 -> 0 | AF74: 0 | AG74: 0 | AH74: 0 | AI74: ="Lote "&A74 -> Lote 65 | AJ74: =IF(B74=0,"",B74&" animales") ->  | AL74: =IF(D74="","",D74) ->  | AM74: =H74 ->  | AN74: =IF(F74="","",F74) ->  | AO74: =I74 ->  | AP74: días | AR74: =IF(AH74=0,0,AO74*AH74) -> 0 | AS74: =IF(AH74=0,0,AM74*AH74) -> 0
A75: 66 | F75: =IF(D75="","",D75+H75) ->  | I75: =IF(G75="","",_xlfn.DAYS(G75,E75)) ->  | AE75: 0 | AF75: 0 | AG75: =(AE75+AF75)/2 -> 0 | AH75: =IF($AG$160=0,0,AG75/$AG$160) -> 0 | AI75: Lote 66 | AP75: =IF(AO75=0,"",AO75& " días") -> días | AR75: 0 | AS75: 0
A76: 67 | AE76: 0 | AF76: 0 | AG76: 0 | AH76: 0 | AI76: Lote 67 | AP76: días | AR76: 0 | AS76: 0
A77: 68 | AE77: 0 | AF77: 0 | AG77: 0 | AH77: 0 | AI77: Lote 68 | AP77: días | AR77: 0 | AS77: 0
A78: 69 | AE78: 0 | AF78: 0 | AG78: 0 | AH78: 0 | AI78: Lote 69 | AP78: días | AR78: 0 | AS78: 0
A79: 70 | AE79: 0 | AF79: 0 | AG79: 0 | AH79: 0 | AI79: Lote 70 | AP79: días | AR79: 0 | AS79: 0
A80: 71 | AE80: 0 | AF80: 0 | AG80: 0 | AH80: 0 | AI80: Lote 71 | AP80: días | AR80: 0 | AS80: 0
A81: 72 | AE81: 0 | AF81: 0 | AG81: 0 | AH81: 0 | AI81: Lote 72 | AP81: días | AR81: 0 | AS81: 0
A82: 73 | AE82: 0 | AF82: 0 | AG82: 0 | AH82: 0 | AI82: Lote 73 | AP82: días | AR82: 0 | AS82: 0
A83: 74 | AE83: 0 | AF83: 0 | AG83: 0 | AH83: 0 | AI83: Lote 74 | AP83: días | AR83: 0 | AS83: 0
A84: 75 | AE84: 0 | AF84: 0 | AG84: 0 | AH84: 0 | AI84: Lote 75 | AP84: días | AR84: 0 | AS84: 0
A85: 76 | AE85: 0 | AF85: 0 | AG85: 0 | AH85: 0 | AI85: Lote 76 | AP85: días | AR85: 0 | AS85: 0
A86: 77 | AE86: 0 | AF86: 0 | AG86: 0 | AH86: 0 | AI86: Lote 77 | AP86: días | AR86: 0 | AS86: 0
A87: 78 | AE87: 0 | AF87: 0 | AG87: 0 | AH87: 0 | AI87: Lote 78 | AP87: días | AR87: 0 | AS87: 0
A88: 79 | AE88: 0 | AF88: 0 | AG88: 0 | AH88: 0 | AI88: Lote 79 | AP88: días | AR88: 0 | AS88: 0
A89: 80 | AE89: 0 | AF89: 0 | AG89: 0 | AH89: 0 | AI89: Lote 80 | AP89: días | AR89: 0 | AS89: 0
A90: 81 | AE90: 0 | AF90: 0 | AG90: 0 | AH90: 0 | AI90: Lote 81 | AP90: días | AR90: 0 | AS90: 0
A91: 82 | AE91: 0 | AF91: 0 | AG91: 0 | AH91: 0 | AI91: Lote 82 | AP91: días | AR91: 0 | AS91: 0
A92: 83 | AE92: 0 | AF92: 0 | AG92: 0 | AH92: 0 | AI92: Lote 83 | AP92: días | AR92: 0 | AS92: 0
A93: 84 | AE93: 0 | AF93: 0 | AG93: 0 | AH93: 0 | AI93: Lote 84 | AP93: días | AR93: 0 | AS93: 0
A94: 85 | AE94: 0 | AF94: 0 | AG94: 0 | AH94: 0 | AI94: Lote 85 | AP94: días | AR94: 0 | AS94: 0
A95: 86 | AE95: 0 | AF95: 0 | AG95: 0 | AH95: 0 | AI95: Lote 86 | AP95: días | AR95: 0 | AS95: 0
A96: 87 | AE96: 0 | AF96: 0 | AG96: 0 | AH96: 0 | AI96: Lote 87 | AP96: días | AR96: 0 | AS96: 0
A97: 88 | AE97: 0 | AF97: 0 | AG97: 0 | AH97: 0 | AI97: Lote 88 | AP97: días | AR97: 0 | AS97: 0
A98: 89 | AE98: 0 | AF98: 0 | AG98: 0 | AH98: 0 | AI98: Lote 89 | AP98: días | AR98: 0 | AS98: 0
A99: 90 | AE99: 0 | AF99: 0 | AG99: 0 | AH99: 0 | AI99: Lote 90 | AP99: días | AR99: 0 | AS99: 0
A100: 91 | AE100: 0 | AF100: 0 | AG100: 0 | AH100: 0 | AI100: Lote 91 | AP100: días | AR100: 0 | AS100: 0
A101: 92 | AE101: 0 | AF101: 0 | AG101: 0 | AH101: 0 | AI101: Lote 92 | AP101: días | AR101: 0 | AS101: 0
A102: 93 | AE102: 0 | AF102: 0 | AG102: 0 | AH102: 0 | AI102: Lote 93 | AP102: días | AR102: 0 | AS102: 0
A103: 94 | AE103: 0 | AF103: 0 | AG103: 0 | AH103: 0 | AI103: Lote 94 | AP103: días | AR103: 0 | AS103: 0
A104: 95 | AE104: 0 | AF104: 0 | AG104: 0 | AH104: 0 | AI104: Lote 95 | AP104: días | AR104: 0 | AS104: 0
A105: 96 | AE105: 0 | AF105: 0 | AG105: 0 | AH105: 0 | AI105: Lote 96 | AP105: días | AR105: 0 | AS105: 0
A106: 97 | H106: =IF(B106=0,"",$H$4) ->  | K106: =IF(H$5="sin dato","",IF(D106="","",D106+$H$5)) ->  | AE106: =B106 -> 0 | AF106: 0 | AG106: 0 | AH106: 0 | AI106: Lote 97 | AJ106: =IF(B106=0,"",B106&" animales") ->  | AP106: días | AR106: 0 | AS106: 0
A107: 98 | AE107: 0 | AF107: 0 | AG107: 0 | AH107: 0 | AI107: Lote 98 | AP107: días | AR107: 0 | AS107: 0
A108: 99 | AE108: 0 | AF108: 0 | AG108: 0 | AH108: 0 | AI108: Lote 99 | AP108: días | AR108: 0 | AS108: 0
A109: 100 | AE109: 0 | AF109: 0 | AG109: 0 | AH109: 0 | AI109: Lote 100 | AP109: días | AR109: 0 | AS109: 0
A110: 101 | AE110: 0 | AF110: 0 | AG110: 0 | AH110: 0 | AI110: Lote 101 | AP110: días | AR110: 0 | AS110: 0
A111: 102 | AE111: 0 | AF111: 0 | AG111: 0 | AH111: 0 | AI111: Lote 102 | AP111: días | AR111: 0 | AS111: 0
A112: 103 | AE112: 0 | AF112: 0 | AG112: 0 | AH112: 0 | AI112: Lote 103 | AP112: días | AR112: 0 | AS112: 0
A113: 104 | AE113: 0 | AF113: 0 | AG113: 0 | AH113: 0 | AI113: Lote 104 | AP113: días | AR113: 0 | AS113: 0
A114: 105 | AE114: 0 | AF114: 0 | AG114: 0 | AH114: 0 | AI114: Lote 105 | AP114: días | AR114: 0 | AS114: 0
A115: 106 | AE115: 0 | AF115: 0 | AG115: 0 | AH115: 0 | AI115: Lote 106 | AP115: días | AR115: 0 | AS115: 0
A116: 107 | AE116: 0 | AF116: 0 | AG116: 0 | AH116: 0 | AI116: Lote 107 | AP116: días | AR116: 0 | AS116: 0
A117: 108 | AE117: 0 | AF117: 0 | AG117: 0 | AH117: 0 | AI117: Lote 108 | AP117: días | AR117: 0 | AS117: 0
A118: 109 | AE118: 0 | AF118: 0 | AG118: 0 | AH118: 0 | AI118: Lote 109 | AP118: días | AR118: 0 | AS118: 0
A119: 110 | AE119: 0 | AF119: 0 | AG119: 0 | AH119: 0 | AI119: Lote 110 | AP119: días | AR119: 0 | AS119: 0
A120: 111 | AE120: 0 | AF120: 0 | AG120: 0 | AH120: 0 | AI120: Lote 111 | AP120: días | AR120: 0 | AS120: 0
A121: 112 | AE121: 0 | AF121: 0 | AG121: 0 | AH121: 0 | AI121: Lote 112 | AP121: días | AR121: 0 | AS121: 0
A122: 113 | AE122: 0 | AF122: 0 | AG122: 0 | AH122: 0 | AI122: Lote 113 | AP122: días | AR122: 0 | AS122: 0
A123: 114 | AE123: 0 | AF123: 0 | AG123: 0 | AH123: 0 | AI123: Lote 114 | AP123: días | AR123: 0 | AS123: 0
A124: 115 | AE124: 0 | AF124: 0 | AG124: 0 | AH124: 0 | AI124: Lote 115 | AP124: días | AR124: 0 | AS124: 0
A125: 116 | AE125: 0 | AF125: 0 | AG125: 0 | AH125: 0 | AI125: Lote 116 | AP125: días | AR125: 0 | AS125: 0
A126: 117 | AE126: 0 | AF126: 0 | AG126: 0 | AH126: 0 | AI126: Lote 117 | AP126: días | AR126: 0 | AS126: 0
A127: 118 | AE127: 0 | AF127: 0 | AG127: 0 | AH127: 0 | AI127: Lote 118 | AP127: días | AR127: 0 | AS127: 0
A128: 119 | AE128: 0 | AF128: 0 | AG128: 0 | AH128: 0 | AI128: Lote 119 | AP128: días | AR128: 0 | AS128: 0
A129: 120 | AE129: 0 | AF129: 0 | AG129: 0 | AH129: 0 | AI129: Lote 120 | AP129: días | AR129: 0 | AS129: 0
A130: 121 | AE130: 0 | AF130: 0 | AG130: 0 | AH130: 0 | AI130: Lote 121 | AP130: días | AR130: 0 | AS130: 0
A131: 122 | AE131: 0 | AF131: 0 | AG131: 0 | AH131: 0 | AI131: Lote 122 | AP131: días | AR131: 0 | AS131: 0
A132: 123 | AE132: 0 | AF132: 0 | AG132: 0 | AH132: 0 | AI132: Lote 123 | AP132: días | AR132: 0 | AS132: 0
A133: 124 | AE133: 0 | AF133: 0 | AG133: 0 | AH133: 0 | AI133: Lote 124 | AP133: días | AR133: 0 | AS133: 0
A134: 125 | AE134: 0 | AF134: 0 | AG134: 0 | AH134: 0 | AI134: Lote 125 | AP134: días | AR134: 0 | AS134: 0
A135: 126 | AE135: 0 | AF135: 0 | AG135: 0 | AH135: 0 | AI135: Lote 126 | AP135: días | AR135: 0 | AS135: 0
A136: 127 | AE136: 0 | AF136: 0 | AG136: 0 | AH136: 0 | AI136: Lote 127 | AP136: días | AR136: 0 | AS136: 0
A137: 128 | AE137: 0 | AF137: 0 | AG137: 0 | AH137: 0 | AI137: Lote 128 | AP137: días | AR137: 0 | AS137: 0
A138: 129 | E138: =IF($D138 ="","",IF(YEAR($D138)=$F$1,$D138,"01/01/2025")) ->  | G138: =IF($F138="","",IF(YEAR($F138)=$F$1,$F138,"31/12/2025")) ->  | H138: =IF(B138=0,"",$H$4) ->  | K138: =IF(H$5="sin dato","",IF(D138="","",D138+$H$5)) ->  | AE138: =B138 -> 0 | AF138: 0 | AG138: 0 | AH138: 0 | AI138: ="Lote "&A138 -> Lote 129 | AJ138: =IF(B138=0,"",B138&" animales") ->  | AL138: =IF(D138="","",D138) ->  | AM138: =H138 ->  | AN138: =IF(F138="","",F138) ->  | AO138: =I138 ->  | AP138: días | AR138: =IF(AH138=0,0,AO138*AH138) -> 0 | AS138: =IF(AH138=0,0,AM138*AH138) -> 0
A139: 130 | F139: =IF(D139="","",D139+H139) ->  | I139: =IF(G139="","",_xlfn.DAYS(G139,E139)) ->  | AE139: 0 | AF139: 0 | AG139: =(AE139+AF139)/2 -> 0 | AH139: =IF($AG$160=0,0,AG139/$AG$160) -> 0 | AI139: Lote 130 | AP139: =IF(AO139=0,"",AO139& " días") -> días | AR139: 0 | AS139: 0
A140: 131 | AE140: 0 | AF140: 0 | AG140: 0 | AH140: 0 | AI140: Lote 131 | AP140: días | AR140: 0 | AS140: 0
A141: 132 | AE141: 0 | AF141: 0 | AG141: 0 | AH141: 0 | AI141: Lote 132 | AP141: días | AR141: 0 | AS141: 0
A142: 133 | AE142: 0 | AF142: 0 | AG142: 0 | AH142: 0 | AI142: Lote 133 | AP142: días | AR142: 0 | AS142: 0
A143: 134 | AE143: 0 | AF143: 0 | AG143: 0 | AH143: 0 | AI143: Lote 134 | AP143: días | AR143: 0 | AS143: 0
A144: 135 | AE144: 0 | AF144: 0 | AG144: 0 | AH144: 0 | AI144: Lote 135 | AP144: días | AR144: 0 | AS144: 0
A145: 136 | AE145: 0 | AF145: 0 | AG145: 0 | AH145: 0 | AI145: Lote 136 | AP145: días | AR145: 0 | AS145: 0
A146: 137 | AE146: 0 | AF146: 0 | AG146: 0 | AH146: 0 | AI146: Lote 137 | AP146: días | AR146: 0 | AS146: 0
A147: 138 | AE147: 0 | AF147: 0 | AG147: 0 | AH147: 0 | AI147: Lote 138 | AP147: días | AR147: 0 | AS147: 0
A148: 139 | AE148: 0 | AF148: 0 | AG148: 0 | AH148: 0 | AI148: Lote 139 | AP148: días | AR148: 0 | AS148: 0
A149: 140 | AE149: 0 | AF149: 0 | AG149: 0 | AH149: 0 | AI149: Lote 140 | AP149: días | AR149: 0 | AS149: 0
A150: 141 | AE150: 0 | AF150: 0 | AG150: 0 | AH150: 0 | AI150: Lote 141 | AP150: días | AR150: 0 | AS150: 0
A151: 142 | AE151: 0 | AF151: 0 | AG151: 0 | AH151: 0 | AI151: Lote 142 | AP151: días | AR151: 0 | AS151: 0
A152: 143 | AE152: 0 | AF152: 0 | AG152: 0 | AH152: 0 | AI152: Lote 143 | AP152: días | AR152: 0 | AS152: 0
A153: 144 | AE153: 0 | AF153: 0 | AG153: 0 | AH153: 0 | AI153: Lote 144 | AP153: días | AR153: 0 | AS153: 0
A154: 145 | AE154: 0 | AF154: 0 | AG154: 0 | AH154: 0 | AI154: Lote 145 | AP154: días | AR154: 0 | AS154: 0
A155: 146 | AE155: 0 | AF155: 0 | AG155: 0 | AH155: 0 | AI155: Lote 146 | AP155: días | AR155: 0 | AS155: 0
A156: 147 | AE156: 0 | AF156: 0 | AG156: 0 | AH156: 0 | AI156: Lote 147 | AP156: días | AR156: 0 | AS156: 0
A157: 148 | AE157: 0 | AF157: 0 | AG157: 0 | AH157: 0 | AI157: Lote 148 | AP157: días | AR157: 0 | AS157: 0
A158: 149 | AE158: 0 | AF158: 0 | AG158: 0 | AH158: 0 | AI158: Lote 149 | AP158: días | AR158: 0 | AS158: 0
A159: 150 | AE159: 0 | AF159: 0 | AG159: 0 | AH159: 0 | AI159: Lote 150 | AP159: días | AR159: 0 | AS159: 0
AE160: =SUM(AE10:AE159) -> 0 | AF160: =SUM(AF10:AF159) -> 0 | AG160: =ROUND(SUM(AG10:AG159),0) -> 0 | AH160: =SUM(AH10:AH159) -> 0 | AR160: =ROUND(SUM(AR10:AR159),0) -> 0 | AS160: =ROUND(SUM(AS10:AS159),0) -> 0

Sheet Categoria 3
B1: Año de declaración: | F1: =Base!B12 -> 2025 | M1: Datos a grabar en el paso 2 de ECOGAN | S1: Datos a grabar en el paso 4 de ECOGAN
Q2: nº total de animales que entran de esta categoría productiva: | R2: =AE160 -> 0 | W2: Periodo productivo total medio de la categoría productiva: | X2: =H4 -> 0
A3: Categoría productiva: | D3: Mamones Macho procedentes de vacas nodriza | Q3: nº total de animales vivos que finalizan de esta categoría productiva: | R3: =AF160 -> 0 | W3: días medios presentes de la categoría productiva: | X3: =AR160 -> 0
F4: Indique el periodo productivo medio de la categoría productiva (días): | I4: *
F5: Periodo productivo medio de referencia (días): | H5: =IFERROR(VLOOKUP(D3,Base!A2:B7,2,FALSE),"sin dato") -> 346 | I5: =IF(H5="sin dato","","("&ROUND(H5*0.9,0) &" - "&ROUND(H5*1.1,0)&")") -> (311 - 381) | N5: Si desea borrar datos grabados anteriormente, pulse aquí ¡Cuidado! Perderá toda la información
A6: * | B6: Número de días que por término medio los animales de una linea productiva permanecen en la granja desde que entran hasta que salen de ese alojamiento, de modo que el periodo es por ciclo productivo y no por año natural.
M7: =Base!F2 -> 45292 | N7: =Base!H3 -> 46387
A8: u | B8: Lote es el grupo de animales que van entrando de forma escalonada a los corrales. | M8: Diagrama de entradas y salidas
A9: lote u | B9: nº de animales que entran en cada lote | C9: nº de animales vivos que finalizan en cada lote | D9: Fecha de entrada del lote (dd/mm/aa) | F9: Fecha de finalización del lote (dd/mm/aa) | H9: Periodo productivo total medio (días) | I9: ="días presentes del lote en el año " & F1 -> días presentes del lote en el año 2025 | K9: =IF(H5="sin dato","","Fecha fin según fecha entrada y periodo de "&H5&" días") -> Fecha fin según fecha entrada y periodo de 346 días | AI9: lote | AL9: Fecha de entrada del lote | AM9: Periodo productivo total | AN9: Fecha de entrada del lote | AO9: ="días presentes del lote en el año " & AL1 -> días presentes del lote en el año | AR9: ="días presentes del lote en el año " & AO1 -> días presentes del lote en el año | AS9: Periodo productivo total
A10: 1 | E10: =IF($D10 ="","",IF(YEAR($D10)=$F$1,$D10,"01/01/2025")) ->  | F10: =IF(D10="","",D10+H10) ->  | G10: =IF($F10="","",IF(YEAR($F10)=$F$1,$F10,"31/12/2025")) ->  | H10: =IF(B10=0,"",$H$4) ->  | I10: =IF(G10="","",_xlfn.DAYS(G10,E10)) ->  | K10: =IF(H$5="sin dato","",IF(D10="","",D10+$H$5)) ->  | AE10: =B10 -> 0 | AF10: =C10 -> 0 | AG10: =(AE10+AF10)/2 -> 0 | AH10: =IF($AG$160=0,0,AG10/$AG$160) -> 0 | AI10: ="Lote "&A10 -> Lote 1 | AJ10: =IF(B10=0,"",B10&" animales") ->  | AK10: =IF(C10=0,"",C10&" animales") ->  | AL10: =IF(D10="","",D10) ->  | AM10: =H10 ->  | AN10: =IF(F10="","",F10) ->  | AO10: =I10 ->  | AP10: =IF(AO10=0,"",AO10& " días") -> días | AR10: =IF(AH10=0,0,AO10*AH10) -> 0 | AS10: =IF(AH10=0,0,AM10*AH10) -> 0
A11: 2 | F11: =IF(D11="","",D11+H11) ->  | I11: =IF(G11="","",_xlfn.DAYS(G11,E11)) ->  | AE11: 0 | AF11: 0 | AG11: =(AE11+AF11)/2 -> 0 | AH11: =IF($AG$160=0,0,AG11/$AG$160) -> 0 | AI11: Lote 2 | AP11: =IF(AO11=0,"",AO11& " días") -> días | AR11: 0 | AS11: 0
A12: 3 | AE12: 0 | AF12: 0 | AG12: 0 | AH12: 0 | AI12: Lote 3 | AP12: días | AR12: 0 | AS12: 0
A13: 4 | AE13: 0 | AF13: 0 | AG13: 0 | AH13: 0 | AI13: Lote 4 | AP13: días | AR13: 0 | AS13: 0
A14: 5 | AE14: 0 | AF14: 0 | AG14: 0 | AH14: 0 | AI14: Lote 5 | AP14: días | AR14: 0 | AS14: 0
A15: 6 | AE15: 0 | AF15: 0 | AG15: 0 | AH15: 0 | AI15: Lote 6 | AP15: días | AR15: 0 | AS15: 0
A16: 7 | AE16: 0 | AF16: 0 | AG16: 0 | AH16: 0 | AI16: Lote 7 | AP16: días | AR16: 0 | AS16: 0
A17: 8 | AE17: 0 | AF17: 0 | AG17: 0 | AH17: 0 | AI17: Lote 8 | AP17: días | AR17: 0 | AS17: 0
A18: 9 | I18: =IF(G18="","",_xlfn.DAYS(G18,E18)) ->  | AE18: 0 | AF18: 0 | AG18: 0 | AH18: 0 | AI18: Lote 9 | AP18: días | AR18: 0 | AS18: 0
A19: 10 | AE19: 0 | AF19: 0 | AG19: 0 | AH19: 0 | AI19: Lote 10 | AP19: días | AR19: 0 | AS19: 0
A20: 11 | AE20: 0 | AF20: 0 | AG20: 0 | AH20: 0 | AI20: Lote 11 | AP20: días | AR20: 0 | AS20: 0
A21: 12 | AE21: 0 | AF21: 0 | AG21: 0 | AH21: 0 | AI21: Lote 12 | AP21: días | AR21: 0 | AS21: 0
A22: 13 | AE22: 0 | AF22: 0 | AG22: 0 | AH22: 0 | AI22: Lote 13 | AP22: días | AR22: 0 | AS22: 0
A23: 14 | AE23: 0 | AF23: 0 | AG23: 0 | AH23: 0 | AI23: Lote 14 | AP23: días | AR23: 0 | AS23: 0
A24: 15 | AE24: 0 | AF24: 0 | AG24: 0 | AH24: 0 | AI24: Lote 15 | AP24: días | AR24: 0 | AS24: 0
A25: 16 | AE25: 0 | AF25: 0 | AG25: 0 | AH25: 0 | AI25: Lote 16 | AP25: días | AR25: 0 | AS25: 0
A26: 17 | AE26: 0 | AF26: 0 | AG26: 0 | AH26: 0 | AI26: Lote 17 | AP26: días | AR26: 0 | AS26: 0
A27: 18 | AE27: 0 | AF27: 0 | AG27: 0 | AH27: 0 | AI27: Lote 18 | AP27: días | AR27: 0 | AS27: 0
A28: 19 | AE28: 0 | AF28: 0 | AG28: 0 | AH28: 0 | AI28: Lote 19 | AP28: días | AR28: 0 | AS28: 0
A29: 20 | AE29: 0 | AF29: 0 | AG29: 0 | AH29: 0 | AI29: Lote 20 | AP29: días | AR29: 0 | AS29: 0
A30: 21 | AE30: 0 | AF30: 0 | AG30: 0 | AH30: 0 | AI30: Lote 21 | AP30: días | AR30: 0 | AS30: 0
A31: 22 | AE31: 0 | AF31: 0 | AG31: 0 | AH31: 0 | AI31: Lote 22 | AP31: días | AR31: 0 | AS31: 0
A32: 23 | AE32: 0 | AF32: 0 | AG32: 0 | AH32: 0 | AI32: Lote 23 | AP32: días | AR32: 0 | AS32: 0
A33: 24 | AE33: 0 | AF33: 0 | AG33: 0 | AH33: 0 | AI33: Lote 24 | AP33: días | AR33: 0 | AS33: 0
A34: 25 | AE34: 0 | AF34: 0 | AG34: 0 | AH34: 0 | AI34: Lote 25 | AP34: días | AR34: 0 | AS34: 0
A35: 26 | AE35: 0 | AF35: 0 | AG35: 0 | AH35: 0 | AI35: Lote 26 | AP35: días | AR35: 0 | AS35: 0
A36: 27 | AE36: 0 | AF36: 0 | AG36: 0 | AH36: 0 | AI36: Lote 27 | AP36: días | AR36: 0 | AS36: 0
A37: 28 | AE37: 0 | AF37: 0 | AG37: 0 | AH37: 0 | AI37: Lote 28 | AP37: días | AR37: 0 | AS37: 0
A38: 29 | AE38: 0 | AF38: 0 | AG38: 0 | AH38: 0 | AI38: Lote 29 | AP38: días | AR38: 0 | AS38: 0
A39: 30 | AE39: 0 | AF39: 0 | AG39: 0 | AH39: 0 | AI39: Lote 30 | AP39: días | AR39: 0 | AS39: 0
A40: 31 | AE40: 0 | AF40: 0 | AG40: 0 | AH40: 0 | AI40: Lote 31 | AP40: días | AR40: 0 | AS40: 0
A41: 32 | AE41: 0 | AF41: 0 | AG41: 0 | AH41: 0 | AI41: Lote 32 | AP41: días | AR41: 0 | AS41: 0
A42: 33 | H42: =IF(B42=0,"",$H$4) ->  | K42: =IF(H$5="sin dato","",IF(D42="","",D42+$H$5)) ->  | AE42: =B42 -> 0 | AF42: =C42 -> 0 | AG42: 0 | AH42: 0 | AI42: ="Lote "&A42 -> Lote 33 | AJ42: =IF(B42=0,"",B42&" animales") ->  | AK42: =IF(C42=0,"",C42&" animales") ->  | AL42: =IF(D42="","",D42) ->  | AM42: =H42 ->  | AN42: =IF(F42="","",F42) ->  | AO42: =I42 ->  | AP42: días | AR42: =IF(AH42=0,0,AO42*AH42) -> 0 | AS42: =IF(AH42=0,0,AM42*AH42) -> 0
A43: 34 | AE43: 0 | AF43: 0 | AG43: 0 | AH43: 0 | AI43: Lote 34 | AP43: días | AR43: 0 | AS43: 0
A44: 35 | AE44: 0 | AF44: 0 | AG44: 0 | AH44: 0 | AI44: Lote 35 | AP44: días | AR44: 0 | AS44: 0
A45: 36 | AE45: 0 | AF45: 0 | AG45: 0 | AH45: 0 | AI45: Lote 36 | AP45: días | AR45: 0 | AS45: 0
A46: 37 | AE46: 0 | AF46: 0 | AG46: 0 | AH46: 0 | AI46: Lote 37 | AP46: días | AR46: 0 | AS46: 0
A47: 38 | AE47: 0 | AF47: 0 | AG47: 0 | AH47: 0 | AI47: Lote 38 | AP47: días | AR47: 0 | AS47: 0
A48: 39 | AE48: 0 | AF48: 0 | AG48: 0 | AH48: 0 | AI48: Lote 39 | AP48: días | AR48: 0 | AS48: 0
A49: 40 | AE49: 0 | AF49: 0 | AG49: 0 | AH49: 0 | AI49: Lote 40 | AP49: días | AR49: 0 | AS49: 0
A50: 41 | AE50: 0 | AF50: 0 | AG50: 0 | AH50: 0 | AI50: Lote 41 | AP50: días | AR50: 0 | AS50: 0
A51: 42 | AE51: 0 | AF51: 0 | AG51: 0 | AH51: 0 | AI51: Lote 42 | AP51: días | AR51: 0 | AS51: 0
A52: 43 | AE52: 0 | AF52: 0 | AG52: 0 | AH52: 0 | AI52: Lote 43 | AP52: días | AR52: 0 | AS52: 0
A53: 44 | AE53: 0 | AF53: 0 | AG53: 0 | AH53: 0 | AI53: Lote 44 | AP53: días | AR53: 0 | AS53: 0
A54: 45 | AE54: 0 | AF54: 0 | AG54: 0 | AH54: 0 | AI54: Lote 45 | AP54: días | AR54: 0 | AS54: 0
A55: 46 | AE55: 0 | AF55: 0 | AG55: 0 | AH55: 0 | AI55: Lote 46 | AP55: días | AR55: 0 | AS55: 0
A56: 47 | AE56: 0 | AF56: 0 | AG56: 0 | AH56: 0 | AI56: Lote 47 | AP56: días | AR56: 0 | AS56: 0
A57: 48 | AE57: 0 | AF57: 0 | AG57: 0 | AH57: 0 | AI57: Lote 48 | AP57: días | AR57: 0 | AS57: 0
A58: 49 | AE58: 0 | AF58: 0 | AG58: 0 | AH58: 0 | AI58: Lote 49 | AP58: días | AR58: 0 | AS58: 0
A59: 50 | AE59: 0 | AF59: 0 | AG59: 0 | AH59: 0 | AI59: Lote 50 | AP59: días | AR59: 0 | AS59: 0
A60: 51 | AE60: 0 | AF60: 0 | AG60: 0 | AH60: 0 | AI60: Lote 51 | AP60: días | AR60: 0 | AS60: 0
A61: 52 | AE61: 0 | AF61: 0 | AG61: 0 | AH61: 0 | AI61: Lote 52 | AP61: días | AR61: 0 | AS61: 0
A62: 53 | AE62: 0 | AF62: 0 | AG62: 0 | AH62: 0 | AI62: Lote 53 | AP62: días | AR62: 0 | AS62: 0
A63: 54 | AE63: 0 | AF63: 0 | AG63: 0 | AH63: 0 | AI63: Lote 54 | AP63: días | AR63: 0 | AS63: 0
A64: 55 | AE64: 0 | AF64: 0 | AG64: 0 | AH64: 0 | AI64: Lote 55 | AP64: días | AR64: 0 | AS64: 0
A65: 56 | AE65: 0 | AF65: 0 | AG65: 0 | AH65: 0 | AI65: Lote 56 | AP65: días | AR65: 0 | AS65: 0
A66: 57 | AE66: 0 | AF66: 0 | AG66: 0 | AH66: 0 | AI66: Lote 57 | AP66: días | AR66: 0 | AS66: 0
A67: 58 | AE67: 0 | AF67: 0 | AG67: 0 | AH67: 0 | AI67: Lote 58 | AP67: días | AR67: 0 | AS67: 0
A68: 59 | AE68: 0 | AF68: 0 | AG68: 0 | AH68: 0 | AI68: Lote 59 | AP68: días | AR68: 0 | AS68: 0
A69: 60 | AE69: 0 | AF69: 0 | AG69: 0 | AH69: 0 | AI69: Lote 60 | AP69: días | AR69: 0 | AS69: 0
A70: 61 | AE70: 0 | AF70: 0 | AG70: 0 | AH70: 0 | AI70: Lote 61 | AP70: días | AR70: 0 | AS70: 0
A71: 62 | AE71: 0 | AF71: 0 | AG71: 0 | AH71: 0 | AI71: Lote 62 | AP71: días | AR71: 0 | AS71: 0
A72: 63 | AE72: 0 | AF72: 0 | AG72: 0 | AH72: 0 | AI72: Lote 63 | AP72: días | AR72: 0 | AS72: 0
A73: 64 | AE73: 0 | AF73: 0 | AG73: 0 | AH73: 0 | AI73: Lote 64 | AP73: días | AR73: 0 | AS73: 0
A74: 65 | E74: =IF($D74 ="","",IF(YEAR($D74)=$F$1,$D74,"01/01/2025")) ->  | G74: =IF($F74="","",IF(YEAR($F74)=$F$1,$F74,"31/12/2025")) ->  | H74: =IF(B74=0,"",$H$4) ->  | K74: =IF(H$5="sin dato","",IF(D74="","",D74+$H$5)) ->  | AE74: =B74 -> 0 | AF74: =C74 -> 0 | AG74: 0 | AH74: 0 | AI74: ="Lote "&A74 -> Lote 65 | AJ74: =IF(B74=0,"",B74&" animales") ->  | AK74: =IF(C74=0,"",C74&" animales") ->  | AL74: =IF(D74="","",D74) ->  | AM74: =H74 ->  | AN74: =IF(F74="","",F74) ->  | AO74: =I74 ->  | AP74: días | AR74: =IF(AH74=0,0,AO74*AH74) -> 0 | AS74: =IF(AH74=0,0,AM74*AH74) -> 0
A75: 66 | F75: =IF(D75="","",D75+H75) ->  | I75: =IF(G75="","",_xlfn.DAYS(G75,E75)) ->  | AE75: 0 | AF75: 0 | AG75: =(AE75+AF75)/2 -> 0 | AH75: =IF($AG$160=0,0,AG75/$AG$160) -> 0 | AI75: Lote 66 | AP75: =IF(AO75=0,"",AO75& " días") -> días | AR75: 0 | AS75: 0
A76: 67 | AE76: 0 | AF76: 0 | AG76: 0 | AH76: 0 | AI76: Lote 67 | AP76: días | AR76: 0 | AS76: 0
A77: 68 | AE77: 0 | AF77: 0 | AG77: 0 | AH77: 0 | AI77: Lote 68 | AP77: días | AR77: 0 | AS77: 0
A78: 69 | AE78: 0 | AF78: 0 | AG78: 0 | AH78: 0 | AI78: Lote 69 | AP78: días | AR78: 0 | AS78: 0
A79: 70 | AE79: 0 | AF79: 0 | AG79: 0 | AH79: 0 | AI79: Lote 70 | AP79: días | AR79: 0 | AS79: 0
A80: 71 | AE80: 0 | AF80: 0 | AG80: 0 | AH80: 0 | AI80: Lote 71 | AP80: días | AR80: 0 | AS80: 0
A81: 72 | AE81: 0 | AF81: 0 | AG81: 0 | AH81: 0 | AI81: Lote 72 | AP81: días | AR81: 0 | AS81: 0
A82: 73 | AE82: 0 | AF82: 0 | AG82: 0 | AH82: 0 | AI82: Lote 73 | AP82: días | AR82: 0 | AS82: 0
A83: 74 | AE83: 0 | AF83: 0 | AG83: 0 | AH83: 0 | AI83: Lote 74 | AP83: días | AR83: 0 | AS83: 0
A84: 75 | AE84: 0 | AF84: 0 | AG84: 0 | AH84: 0 | AI84: Lote 75 | AP84: días | AR84: 0 | AS84: 0
A85: 76 | AE85: 0 | AF85: 0 | AG85: 0 | AH85: 0 | AI85: Lote 76 | AP85: días | AR85: 0 | AS85: 0
A86: 77 | AE86: 0 | AF86: 0 | AG86: 0 | AH86: 0 | AI86: Lote 77 | AP86: días | AR86: 0 | AS86: 0
A87: 78 | AE87: 0 | AF87: 0 | AG87: 0 | AH87: 0 | AI87: Lote 78 | AP87: días | AR87: 0 | AS87: 0
A88: 79 | AE88: 0 | AF88: 0 | AG88: 0 | AH88: 0 | AI88: Lote 79 | AP88: días | AR88: 0 | AS88: 0
A89: 80 | AE89: 0 | AF89: 0 | AG89: 0 | AH89: 0 | AI89: Lote 80 | AP89: días | AR89: 0 | AS89: 0
A90: 81 | AE90: 0 | AF90: 0 | AG90: 0 | AH90: 0 | AI90: Lote 81 | AP90: días | AR90: 0 | AS90: 0
A91: 82 | AE91: 0 | AF91: 0 | AG91: 0 | AH91: 0 | AI91: Lote 82 | AP91: días | AR91: 0 | AS91: 0
A92: 83 | AE92: 0 | AF92: 0 | AG92: 0 | AH92: 0 | AI92: Lote 83 | AP92: días | AR92: 0 | AS92: 0
A93: 84 | AE93: 0 | AF93: 0 | AG93: 0 | AH93: 0 | AI93: Lote 84 | AP93: días | AR93: 0 | AS93: 0
A94: 85 | AE94: 0 | AF94: 0 | AG94: 0 | AH94: 0 | AI94: Lote 85 | AP94: días | AR94: 0 | AS94: 0
A95: 86 | AE95: 0 | AF95: 0 | AG95: 0 | AH95: 0 | AI95: Lote 86 | AP95: días | AR95: 0 | AS95: 0
A96: 87 | AE96: 0 | AF96: 0 | AG96: 0 | AH96: 0 | AI96: Lote 87 | AP96: días | AR96: 0 | AS96: 0
A97: 88 | AE97: 0 | AF97: 0 | AG97: 0 | AH97: 0 | AI97: Lote 88 | AP97: días | AR97: 0 | AS97: 0
A98: 89 | AE98: 0 | AF98: 0 | AG98: 0 | AH98: 0 | AI98: Lote 89 | AP98: días | AR98: 0 | AS98: 0
A99: 90 | AE99: 0 | AF99: 0 | AG99: 0 | AH99: 0 | AI99: Lote 90 | AP99: días | AR99: 0 | AS99: 0
A100: 91 | AE100: 0 | AF100: 0 | AG100: 0 | AH100: 0 | AI100: Lote 91 | AP100: días | AR100: 0 | AS100: 0
A101: 92 | AE101: 0 | AF101: 0 | AG101: 0 | AH101: 0 | AI101: Lote 92 | AP101: días | AR101: 0 | AS101: 0
A102: 93 | AE102: 0 | AF102: 0 | AG102: 0 | AH102: 0 | AI102: Lote 93 | AP102: días | AR102: 0 | AS102: 0
A103: 94 | AE103: 0 | AF103: 0 | AG103: 0 | AH103: 0 | AI103: Lote 94 | AP103: días | AR103: 0 | AS103: 0
A104: 95 | AE104: 0 | AF104: 0 | AG104: 0 | AH104: 0 | AI104: Lote 95 | AP104: días | AR104: 0 | AS104: 0
A105: 96 | AE105: 0 | AF105: 0 | AG105: 0 | AH105: 0 | AI105: Lote 96 | AP105: días | AR105: 0 | AS105: 0
A106: 97 | H106: =IF(B106=0,"",$H$4) ->  | K106: =IF(H$5="sin dato","",IF(D106="","",D106+$H$5)) ->  | AE106: =B106 -> 0 | AF106: =C106 -> 0 | AG106: 0 | AH106: 0 | AI106: ="Lote "&A106 -> Lote 97 | AJ106: =IF(B106=0,"",B106&" animales") ->  | AK106: =IF(C106=0,"",C106&" animales") ->  | AL106: =IF(D106="","",D106) ->  | AM106: =H106 ->  | AN106: =IF(F106="","",F106) ->  | AO106: =I106 ->  | AP106: días | AR106: =IF(AH106=0,0,AO106*AH106) -> 0 | AS106: =IF(AH106=0,0,AM106*AH106) -> 0
A107: 98 | AE107: 0 | AF107: 0 | AG107: 0 | AH107: 0 | AI107: Lote 98 | AP107: días | AR107: 0 | AS107: 0
A108: 99 | AE108: 0 | AF108: 0 | AG108: 0 | AH108: 0 | AI108: Lote 99 | AP108: días | AR108: 0 | AS108: 0
A109: 100 | AE109: 0 | AF109: 0 | AG109: 0 | AH109: 0 | AI109: Lote 100 | AP109: días | AR109: 0 | AS109: 0
A110: 101 | AE110: 0 | AF110: 0 | AG110: 0 | AH110: 0 | AI110: Lote 101 | AP110: días | AR110: 0 | AS110: 0
A111: 102 | AE111: 0 | AF111: 0 | AG111: 0 | AH111: 0 | AI111: Lote 102 | AP111: días | AR111: 0 | AS111: 0
A112: 103 | AE112: 0 | AF112: 0 | AG112: 0 | AH112: 0 | AI112: Lote 103 | AP112: días | AR112: 0 | AS112: 0
A113: 104 | AE113: 0 | AF113: 0 | AG113: 0 | AH113: 0 | AI113: Lote 104 | AP113: días | AR113: 0 | AS113: 0
A114: 105 | AE114: 0 | AF114: 0 | AG114: 0 | AH114: 0 | AI114: Lote 105 | AP114: días | AR114: 0 | AS114: 0
A115: 106 | AE115: 0 | AF115: 0 | AG115: 0 | AH115: 0 | AI115: Lote 106 | AP115: días | AR115: 0 | AS115: 0
A116: 107 | AE116: 0 | AF116: 0 | AG116: 0 | AH116: 0 | AI116: Lote 107 | AP116: días | AR116: 0 | AS116: 0
A117: 108 | AE117: 0 | AF117: 0 | AG117: 0 | AH117: 0 | AI117: Lote 108 | AP117: días | AR117: 0 | AS117: 0
A118: 109 | AE118: 0 | AF118: 0 | AG118: 0 | AH118: 0 | AI118: Lote 109 | AP118: días | AR118: 0 | AS118: 0
A119: 110 | AE119: 0 | AF119: 0 | AG119: 0 | AH119: 0 | AI119: Lote 110 | AP119: días | AR119: 0 | AS119: 0
A120: 111 | AE120: 0 | AF120: 0 | AG120: 0 | AH120: 0 | AI120: Lote 111 | AP120: días | AR120: 0 | AS120: 0
A121: 112 | AE121: 0 | AF121: 0 | AG121: 0 | AH121: 0 | AI121: Lote 112 | AP121: días | AR121: 0 | AS121: 0
A122: 113 | AE122: 0 | AF122: 0 | AG122: 0 | AH122: 0 | AI122: Lote 113 | AP122: días | AR122: 0 | AS122: 0
A123: 114 | AE123: 0 | AF123: 0 | AG123: 0 | AH123: 0 | AI123: Lote 114 | AP123: días | AR123: 0 | AS123: 0
A124: 115 | AE124: 0 | AF124: 0 | AG124: 0 | AH124: 0 | AI124: Lote 115 | AP124: días | AR124: 0 | AS124: 0
A125: 116 | AE125: 0 | AF125: 0 | AG125: 0 | AH125: 0 | AI125: Lote 116 | AP125: días | AR125: 0 | AS125: 0
A126: 117 | AE126: 0 | AF126: 0 | AG126: 0 | AH126: 0 | AI126: Lote 117 | AP126: días | AR126: 0 | AS126: 0
A127: 118 | AE127: 0 | AF127: 0 | AG127: 0 | AH127: 0 | AI127: Lote 118 | AP127: días | AR127: 0 | AS127: 0
A128: 119 | AE128: 0 | AF128: 0 | AG128: 0 | AH128: 0 | AI128: Lote 119 | AP128: días | AR128: 0 | AS128: 0
A129: 120 | AE129: 0 | AF129: 0 | AG129: 0 | AH129: 0 | AI129: Lote 120 | AP129: días | AR129: 0 | AS129: 0
A130: 121 | AE130: 0 | AF130: 0 | AG130: 0 | AH130: 0 | AI130: Lote 121 | AP130: días | AR130: 0 | AS130: 0
A131: 122 | AE131: 0 | AF131: 0 | AG131: 0 | AH131: 0 | AI131: Lote 122 | AP131: días | AR131: 0 | AS131: 0
A132: 123 | AE132: 0 | AF132: 0 | AG132: 0 | AH132: 0 | AI132: Lote 123 | AP132: días | AR132: 0 | AS132: 0
A133: 124 | AE133: 0 | AF133: 0 | AG133: 0 | AH133: 0 | AI133: Lote 124 | AP133: días | AR133: 0 | AS133: 0
A134: 125 | AE134: 0 | AF134: 0 | AG134: 0 | AH134: 0 | AI134: Lote 125 | AP134: días | AR134: 0 | AS134: 0
A135: 126 | AE135: 0 | AF135: 0 | AG135: 0 | AH135: 0 | AI135: Lote 126 | AP135: días | AR135: 0 | AS135: 0
A136: 127 | AE136: 0 | AF136: 0 | AG136: 0 | AH136: 0 | AI136: Lote 127 | AP136: días | AR136: 0 | AS136: 0
A137: 128 | AE137: 0 | AF137: 0 | AG137: 0 | AH137: 0 | AI137: Lote 128 | AP137: días | AR137: 0 | AS137: 0
A138: 129 | E138: =IF($D138 ="","",IF(YEAR($D138)=$F$1,$D138,"01/01/2025")) ->  | G138: =IF($F138="","",IF(YEAR($F138)=$F$1,$F138,"31/12/2025")) ->  | H138: =IF(B138=0,"",$H$4) ->  | K138: =IF(H$5="sin dato","",IF(D138="","",D138+$H$5)) ->  | AE138: =B138 -> 0 | AF138: =C138 -> 0 | AG138: 0 | AH138: 0 | AI138: ="Lote "&A138 -> Lote 129 | AJ138: =IF(B138=0,"",B138&" animales") ->  | AK138: =IF(C138=0,"",C138&" animales") ->  | AL138: =IF(D138="","",D138) ->  | AM138: =H138 ->  | AN138: =IF(F138="","",F138) ->  | AO138: =I138 ->  | AP138: días | AR138: =IF(AH138=0,0,AO138*AH138) -> 0 | AS138: 0
A139: 130 | F139: =IF(D139="","",D139+H139) ->  | I139: =IF(G139="","",_xlfn.DAYS(G139,E139)) ->  | AE139: 0 | AF139: 0 | AG139: =(AE139+AF139)/2 -> 0 | AH139: =IF($AG$160=0,0,AG139/$AG$160) -> 0 | AI139: Lote 130 | AP139: =IF(AO139=0,"",AO139& " días") -> días | AR139: 0 | AS139: =IF(AH139=0,0,AM139*AH139) -> 0
A140: 131 | AE140: 0 | AF140: 0 | AG140: 0 | AH140: 0 | AI140: Lote 131 | AP140: días | AR140: 0 | AS140: 0
A141: 132 | AE141: 0 | AF141: 0 | AG141: 0 | AH141: 0 | AI141: Lote 132 | AP141: días | AR141: 0 | AS141: 0
A142: 133 | AE142: 0 | AF142: 0 | AG142: 0 | AH142: 0 | AI142: Lote 133 | AP142: días | AR142: 0 | AS142: 0
A143: 134 | AE143: 0 | AF143: 0 | AG143: 0 | AH143: 0 | AI143: Lote 134 | AP143: días | AR143: 0 | AS143: 0
A144: 135 | AE144: 0 | AF144: 0 | AG144: 0 | AH144: 0 | AI144: Lote 135 | AP144: días | AR144: 0 | AS144: 0
A145: 136 | AE145: 0 | AF145: 0 | AG145: 0 | AH145: 0 | AI145: Lote 136 | AP145: días | AR145: 0 | AS145: 0
A146: 137 | AE146: 0 | AF146: 0 | AG146: 0 | AH146: 0 | AI146: Lote 137 | AP146: días | AR146: 0 | AS146: 0
A147: 138 | AE147: 0 | AF147: 0 | AG147: 0 | AH147: 0 | AI147: Lote 138 | AP147: días | AR147: 0 | AS147: 0
A148: 139 | AE148: 0 | AF148: 0 | AG148: 0 | AH148: 0 | AI148: Lote 139 | AP148: días | AR148: 0 | AS148: 0
A149: 140 | AE149: 0 | AF149: 0 | AG149: 0 | AH149: 0 | AI149: Lote 140 | AP149: días | AR149: 0 | AS149: 0
A150: 141 | AE150: 0 | AF150: 0 | AG150: 0 | AH150: 0 | AI150: Lote 141 | AP150: días | AR150: 0 | AS150: 0
A151: 142 | AE151: 0 | AF151: 0 | AG151: 0 | AH151: 0 | AI151: Lote 142 | AP151: días | AR151: 0 | AS151: 0
A152: 143 | AE152: 0 | AF152: 0 | AG152: 0 | AH152: 0 | AI152: Lote 143 | AP152: días | AR152: 0 | AS152: 0
A153: 144 | AE153: 0 | AF153: 0 | AG153: 0 | AH153: 0 | AI153: Lote 144 | AP153: días | AR153: 0 | AS153: 0
A154: 145 | AE154: 0 | AF154: 0 | AG154: 0 | AH154: 0 | AI154: Lote 145 | AP154: días | AR154: 0 | AS154: 0
A155: 146 | AE155: 0 | AF155: 0 | AG155: 0 | AH155: 0 | AI155: Lote 146 | AP155: días | AR155: 0 | AS155: 0
A156: 147 | AE156: 0 | AF156: 0 | AG156: 0 | AH156: 0 | AI156: Lote 147 | AP156: días | AR156: 0 | AS156: 0
A157: 148 | AE157: 0 | AF157: 0 | AG157: 0 | AH157: 0 | AI157: Lote 148 | AP157: días | AR157: 0 | AS157: 0
A158: 149 | AE158: 0 | AF158: 0 | AG158: 0 | AH158: 0 | AI158: Lote 149 | AP158: días | AR158: 0 | AS158: 0
A159: 150 | AE159: 0 | AF159: 0 | AG159: 0 | AH159: 0 | AI159: Lote 150 | AP159: días | AR159: 0 | AS159: 0
AE160: =SUM(AE10:AE159) -> 0 | AF160: =SUM(AF10:AF159) -> 0 | AG160: =ROUND(SUM(AG10:AG159),0) -> 0 | AH160: =SUM(AH10:AH159) -> 0 | AR160: =ROUND(SUM(AR10:AR159),0) -> 0 | AS160: =ROUND(SUM(AS10:AS159),0) -> 0

Sheet Categoria 4
B1: Año de declaración: | F1: =Base!B12 -> 2025 | M1: Datos a grabar en el paso 2 de ECOGAN | S1: Datos a grabar en el paso 4 de ECOGAN
Q2: nº total de animales que entran de esta categoría productiva: | R2: =AE160 -> 0 | W2: Periodo productivo total medio de la categoría productiva: | X2: =H4 -> 0
A3: Categoría productiva: | D3: Mamones Hembra procedentes de vacas nodriza | Q3: nº total de animales vivos que finalizan de esta categoría productiva: | R3: =AF160 -> 0 | W3: días medios presentes de la categoría productiva: | X3: =AR160 -> 0
F4: Indique el periodo productivo medio de la categoría productiva (días): | I4: *
F5: Periodo productivo medio de referencia (días): | H5: =IFERROR(VLOOKUP(D3,Base!A2:B7,2,FALSE),"sin dato") -> 337 | I5: =IF(H5="sin dato","","("&ROUND(H5*0.9,0) &" - "&ROUND(H5*1.1,0)&")") -> (303 - 371) | N5: Si desea borrar datos grabados anteriormente, pulse aquí ¡Cuidado! Perderá toda la información
A6: * | B6: Número de días que por término medio los animales de una linea productiva permanecen en la granja desde que entran hasta que salen de ese alojamiento, de modo que el periodo es por ciclo productivo y no por año natural.
M7: =Base!F2 -> 45292 | N7: =Base!H3 -> 46387
A8: u | B8: Lote es el grupo de animales que van entrando de forma escalonada a los corrales. | M8: Diagrama de entradas y salidas
A9: lote u | B9: nº de animales que entran en cada lote | C9: nº de animales vivos que finalizan en cada lote | D9: Fecha de entrada del lote (dd/mm/aa) | F9: Fecha de finalización del lote (dd/mm/aa) | H9: Periodo productivo total medio (días) | I9: ="días presentes del lote en el año " & F1 -> días presentes del lote en el año 2025 | K9: =IF(H5="sin dato","","Fecha fin según fecha entrada y periodo de "&H5&" días") -> Fecha fin según fecha entrada y periodo de 337 días | AI9: lote | AL9: Fecha de entrada del lote | AM9: Periodo productivo total | AN9: Fecha de entrada del lote | AO9: ="días presentes del lote en el año " & AL1 -> días presentes del lote en el año | AR9: ="días presentes del lote en el año " & AO1 -> días presentes del lote en el año | AS9: Periodo productivo total
A10: 1 | E10: =IF($D10 ="","",IF(YEAR($D10)=$F$1,$D10,"01/01/2025")) ->  | F10: =IF(D10="","",D10+H10) ->  | G10: =IF($F10="","",IF(YEAR($F10)=$F$1,$F10,"31/12/2025")) ->  | H10: =IF(B10=0,"",$H$4) ->  | I10: =IF(G10="","",_xlfn.DAYS(G10,E10)) ->  | K10: =IF(H$5="sin dato","",IF(D10="","",D10+$H$5)) ->  | AE10: =B10 -> 0 | AF10: 0 | AG10: =(AE10+AF10)/2 -> 0 | AH10: =IF($AG$160=0,0,AG10/$AG$160) -> 0 | AI10: ="Lote "&A10 -> Lote 1 | AJ10: =IF(B10=0,"",B10&" animales") ->  | AL10: =IF(D10="","",D10) ->  | AM10: =H10 ->  | AN10: =IF(F10="","",F10) ->  | AO10: =I10 ->  | AP10: =IF(AO10=0,"",AO10& " días") -> días | AR10: =IF(AH10=0,0,AO10*AH10) -> 0 | AS10: =IF(AH10=0,0,AM10*AH10) -> 0
A11: 2 | F11: =IF(D11="","",D11+H11) ->  | I11: =IF(G11="","",_xlfn.DAYS(G11,E11)) ->  | AE11: 0 | AF11: 0 | AG11: =(AE11+AF11)/2 -> 0 | AH11: =IF($AG$160=0,0,AG11/$AG$160) -> 0 | AI11: Lote 2 | AP11: =IF(AO11=0,"",AO11& " días") -> días | AR11: 0 | AS11: 0
A12: 3 | AE12: 0 | AF12: 0 | AG12: 0 | AH12: 0 | AI12: Lote 3 | AP12: días | AR12: 0 | AS12: 0
A13: 4 | AE13: 0 | AF13: 0 | AG13: 0 | AH13: 0 | AI13: Lote 4 | AP13: días | AR13: 0 | AS13: 0
A14: 5 | AE14: 0 | AF14: 0 | AG14: 0 | AH14: 0 | AI14: Lote 5 | AP14: días | AR14: 0 | AS14: 0
A15: 6 | AE15: 0 | AF15: 0 | AG15: 0 | AH15: 0 | AI15: Lote 6 | AP15: días | AR15: 0 | AS15: 0
A16: 7 | AE16: 0 | AF16: 0 | AG16: 0 | AH16: 0 | AI16: Lote 7 | AP16: días | AR16: 0 | AS16: 0
A17: 8 | AE17: 0 | AF17: 0 | AG17: 0 | AH17: 0 | AI17: Lote 8 | AP17: días | AR17: 0 | AS17: 0
A18: 9 | AE18: 0 | AF18: 0 | AG18: 0 | AH18: 0 | AI18: Lote 9 | AP18: días | AR18: 0 | AS18: 0
A19: 10 | AE19: 0 | AF19: 0 | AG19: 0 | AH19: 0 | AI19: Lote 10 | AP19: días | AR19: 0 | AS19: 0
A20: 11 | AE20: 0 | AF20: 0 | AG20: 0 | AH20: 0 | AI20: Lote 11 | AP20: días | AR20: 0 | AS20: 0
A21: 12 | AE21: 0 | AF21: 0 | AG21: 0 | AH21: 0 | AI21: Lote 12 | AP21: días | AR21: 0 | AS21: 0
A22: 13 | AE22: 0 | AF22: 0 | AG22: 0 | AH22: 0 | AI22: Lote 13 | AP22: días | AR22: 0 | AS22: 0
A23: 14 | AE23: 0 | AF23: 0 | AG23: 0 | AH23: 0 | AI23: Lote 14 | AP23: días | AR23: 0 | AS23: 0
A24: 15 | AE24: 0 | AF24: 0 | AG24: 0 | AH24: 0 | AI24: Lote 15 | AP24: días | AR24: 0 | AS24: 0
A25: 16 | AE25: 0 | AF25: 0 | AG25: 0 | AH25: 0 | AI25: Lote 16 | AP25: días | AR25: 0 | AS25: 0
A26: 17 | AE26: 0 | AF26: 0 | AG26: 0 | AH26: 0 | AI26: Lote 17 | AP26: días | AR26: 0 | AS26: 0
A27: 18 | AE27: 0 | AF27: 0 | AG27: 0 | AH27: 0 | AI27: Lote 18 | AP27: días | AR27: 0 | AS27: 0
A28: 19 | AE28: 0 | AF28: 0 | AG28: 0 | AH28: 0 | AI28: Lote 19 | AP28: días | AR28: 0 | AS28: 0
A29: 20 | AE29: 0 | AF29: 0 | AG29: 0 | AH29: 0 | AI29: Lote 20 | AP29: días | AR29: 0 | AS29: 0
A30: 21 | AE30: 0 | AF30: 0 | AG30: 0 | AH30: 0 | AI30: Lote 21 | AP30: días | AR30: 0 | AS30: 0
A31: 22 | AE31: 0 | AF31: 0 | AG31: 0 | AH31: 0 | AI31: Lote 22 | AP31: días | AR31: 0 | AS31: 0
A32: 23 | AE32: 0 | AF32: 0 | AG32: 0 | AH32: 0 | AI32: Lote 23 | AP32: días | AR32: 0 | AS32: 0
A33: 24 | AE33: 0 | AF33: 0 | AG33: 0 | AH33: 0 | AI33: Lote 24 | AP33: días | AR33: 0 | AS33: 0
A34: 25 | AE34: 0 | AF34: 0 | AG34: 0 | AH34: 0 | AI34: Lote 25 | AP34: días | AR34: 0 | AS34: 0
A35: 26 | AE35: 0 | AF35: 0 | AG35: 0 | AH35: 0 | AI35: Lote 26 | AP35: días | AR35: 0 | AS35: 0
A36: 27 | AE36: 0 | AF36: 0 | AG36: 0 | AH36: 0 | AI36: Lote 27 | AP36: días | AR36: 0 | AS36: 0
A37: 28 | AE37: 0 | AF37: 0 | AG37: 0 | AH37: 0 | AI37: Lote 28 | AP37: días | AR37: 0 | AS37: 0
A38: 29 | AE38: 0 | AF38: 0 | AG38: 0 | AH38: 0 | AI38: Lote 29 | AP38: días | AR38: 0 | AS38: 0
A39: 30 | AE39: 0 | AF39: 0 | AG39: 0 | AH39: 0 | AI39: Lote 30 | AP39: días | AR39: 0 | AS39: 0
A40: 31 | AE40: 0 | AF40: 0 | AG40: 0 | AH40: 0 | AI40: Lote 31 | AP40: días | AR40: 0 | AS40: 0
A41: 32 | AE41: 0 | AF41: 0 | AG41: 0 | AH41: 0 | AI41: Lote 32 | AP41: días | AR41: 0 | AS41: 0
A42: 33 | H42: =IF(B42=0,"",$H$4) ->  | K42: =IF(H$5="sin dato","",IF(D42="","",D42+$H$5)) ->  | AE42: =B42 -> 0 | AF42: 0 | AG42: 0 | AH42: 0 | AI42: Lote 33 | AJ42: =IF(B42=0,"",B42&" animales") ->  | AP42: días | AR42: 0 | AS42: 0
A43: 34 | AE43: 0 | AF43: 0 | AG43: 0 | AH43: 0 | AI43: Lote 34 | AP43: días | AR43: 0 | AS43: 0
A44: 35 | AE44: 0 | AF44: 0 | AG44: 0 | AH44: 0 | AI44: Lote 35 | AP44: días | AR44: 0 | AS44: 0
A45: 36 | AE45: 0 | AF45: 0 | AG45: 0 | AH45: 0 | AI45: Lote 36 | AP45: días | AR45: 0 | AS45: 0
A46: 37 | AE46: 0 | AF46: 0 | AG46: 0 | AH46: 0 | AI46: Lote 37 | AP46: días | AR46: 0 | AS46: 0
A47: 38 | AE47: 0 | AF47: 0 | AG47: 0 | AH47: 0 | AI47: Lote 38 | AP47: días | AR47: 0 | AS47: 0
A48: 39 | AE48: 0 | AF48: 0 | AG48: 0 | AH48: 0 | AI48: Lote 39 | AP48: días | AR48: 0 | AS48: 0
A49: 40 | AE49: 0 | AF49: 0 | AG49: 0 | AH49: 0 | AI49: Lote 40 | AP49: días | AR49: 0 | AS49: 0
A50: 41 | AE50: 0 | AF50: 0 | AG50: 0 | AH50: 0 | AI50: Lote 41 | AP50: días | AR50: 0 | AS50: 0
A51: 42 | AE51: 0 | AF51: 0 | AG51: 0 | AH51: 0 | AI51: Lote 42 | AP51: días | AR51: 0 | AS51: 0
A52: 43 | AE52: 0 | AF52: 0 | AG52: 0 | AH52: 0 | AI52: Lote 43 | AP52: días | AR52: 0 | AS52: 0
A53: 44 | AE53: 0 | AF53: 0 | AG53: 0 | AH53: 0 | AI53: Lote 44 | AP53: días | AR53: 0 | AS53: 0
A54: 45 | AE54: 0 | AF54: 0 | AG54: 0 | AH54: 0 | AI54: Lote 45 | AP54: días | AR54: 0 | AS54: 0
A55: 46 | AE55: 0 | AF55: 0 | AG55: 0 | AH55: 0 | AI55: Lote 46 | AP55: días | AR55: 0 | AS55: 0
A56: 47 | AE56: 0 | AF56: 0 | AG56: 0 | AH56: 0 | AI56: Lote 47 | AP56: días | AR56: 0 | AS56: 0
A57: 48 | AE57: 0 | AF57: 0 | AG57: 0 | AH57: 0 | AI57: Lote 48 | AP57: días | AR57: 0 | AS57: 0
A58: 49 | AE58: 0 | AF58: 0 | AG58: 0 | AH58: 0 | AI58: Lote 49 | AP58: días | AR58: 0 | AS58: 0
A59: 50 | AE59: 0 | AF59: 0 | AG59: 0 | AH59: 0 | AI59: Lote 50 | AP59: días | AR59: 0 | AS59: 0
A60: 51 | AE60: 0 | AF60: 0 | AG60: 0 | AH60: 0 | AI60: Lote 51 | AP60: días | AR60: 0 | AS60: 0
A61: 52 | AE61: 0 | AF61: 0 | AG61: 0 | AH61: 0 | AI61: Lote 52 | AP61: días | AR61: 0 | AS61: 0
A62: 53 | AE62: 0 | AF62: 0 | AG62: 0 | AH62: 0 | AI62: Lote 53 | AP62: días | AR62: 0 | AS62: 0
A63: 54 | AE63: 0 | AF63: 0 | AG63: 0 | AH63: 0 | AI63: Lote 54 | AP63: días | AR63: 0 | AS63: 0
A64: 55 | AE64: 0 | AF64: 0 | AG64: 0 | AH64: 0 | AI64: Lote 55 | AP64: días | AR64: 0 | AS64: 0
A65: 56 | AE65: 0 | AF65: 0 | AG65: 0 | AH65: 0 | AI65: Lote 56 | AP65: días | AR65: 0 | AS65: 0
A66: 57 | AE66: 0 | AF66: 0 | AG66: 0 | AH66: 0 | AI66: Lote 57 | AP66: días | AR66: 0 | AS66: 0
A67: 58 | AE67: 0 | AF67: 0 | AG67: 0 | AH67: 0 | AI67: Lote 58 | AP67: días | AR67: 0 | AS67: 0
A68: 59 | AE68: 0 | AF68: 0 | AG68: 0 | AH68: 0 | AI68: Lote 59 | AP68: días | AR68: 0 | AS68: 0
A69: 60 | AE69: 0 | AF69: 0 | AG69: 0 | AH69: 0 | AI69: Lote 60 | AP69: días | AR69: 0 | AS69: 0
A70: 61 | AE70: 0 | AF70: 0 | AG70: 0 | AH70: 0 | AI70: Lote 61 | AP70: días | AR70: 0 | AS70: 0
A71: 62 | AE71: 0 | AF71: 0 | AG71: 0 | AH71: 0 | AI71: Lote 62 | AP71: días | AR71: 0 | AS71: 0
A72: 63 | AE72: 0 | AF72: 0 | AG72: 0 | AH72: 0 | AI72: Lote 63 | AP72: días | AR72: 0 | AS72: 0
A73: 64 | AE73: 0 | AF73: 0 | AG73: 0 | AH73: 0 | AI73: Lote 64 | AP73: días | AR73: 0 | AS73: 0
A74: 65 | E74: =IF($D74 ="","",IF(YEAR($D74)=$F$1,$D74,"01/01/2025")) ->  | G74: =IF($F74="","",IF(YEAR($F74)=$F$1,$F74,"31/12/2025")) ->  | H74: =IF(B74=0,"",$H$4) ->  | K74: =IF(H$5="sin dato","",IF(D74="","",D74+$H$5)) ->  | AE74: =B74 -> 0 | AF74: 0 | AG74: 0 | AH74: 0 | AI74: ="Lote "&A74 -> Lote 65 | AJ74: =IF(B74=0,"",B74&" animales") ->  | AL74: =IF(D74="","",D74) ->  | AM74: =H74 ->  | AN74: =IF(F74="","",F74) ->  | AO74: =I74 ->  | AP74: días | AR74: =IF(AH74=0,0,AO74*AH74) -> 0 | AS74: =IF(AH74=0,0,AM74*AH74) -> 0
A75: 66 | F75: =IF(D75="","",D75+H75) ->  | I75: =IF(G75="","",_xlfn.DAYS(G75,E75)) ->  | AE75: 0 | AF75: 0 | AG75: =(AE75+AF75)/2 -> 0 | AH75: =IF($AG$160=0,0,AG75/$AG$160) -> 0 | AI75: Lote 66 | AP75: =IF(AO75=0,"",AO75& " días") -> días | AR75: 0 | AS75: 0
A76: 67 | AE76: 0 | AF76: 0 | AG76: 0 | AH76: 0 | AI76: Lote 67 | AP76: días | AR76: 0 | AS76: 0
A77: 68 | AE77: 0 | AF77: 0 | AG77: 0 | AH77: 0 | AI77: Lote 68 | AP77: días | AR77: 0 | AS77: 0
A78: 69 | AE78: 0 | AF78: 0 | AG78: 0 | AH78: 0 | AI78: Lote 69 | AP78: días | AR78: 0 | AS78: 0
A79: 70 | AE79: 0 | AF79: 0 | AG79: 0 | AH79: 0 | AI79: Lote 70 | AP79: días | AR79: 0 | AS79: 0
A80: 71 | AE80: 0 | AF80: 0 | AG80: 0 | AH80: 0 | AI80: Lote 71 | AP80: días | AR80: 0 | AS80: 0
A81: 72 | AE81: 0 | AF81: 0 | AG81: 0 | AH81: 0 | AI81: Lote 72 | AP81: días | AR81: 0 | AS81: 0
A82: 73 | AE82: 0 | AF82: 0 | AG82: 0 | AH82: 0 | AI82: Lote 73 | AP82: días | AR82: 0 | AS82: 0
A83: 74 | AE83: 0 | AF83: 0 | AG83: 0 | AH83: 0 | AI83: Lote 74 | AP83: días | AR83: 0 | AS83: 0
A84: 75 | AE84: 0 | AF84: 0 | AG84: 0 | AH84: 0 | AI84: Lote 75 | AP84: días | AR84: 0 | AS84: 0
A85: 76 | AE85: 0 | AF85: 0 | AG85: 0 | AH85: 0 | AI85: Lote 76 | AP85: días | AR85: 0 | AS85: 0
A86: 77 | AE86: 0 | AF86: 0 | AG86: 0 | AH86: 0 | AI86: Lote 77 | AP86: días | AR86: 0 | AS86: 0
A87: 78 | AE87: 0 | AF87: 0 | AG87: 0 | AH87: 0 | AI87: Lote 78 | AP87: días | AR87: 0 | AS87: 0
A88: 79 | AE88: 0 | AF88: 0 | AG88: 0 | AH88: 0 | AI88: Lote 79 | AP88: días | AR88: 0 | AS88: 0
A89: 80 | AE89: 0 | AF89: 0 | AG89: 0 | AH89: 0 | AI89: Lote 80 | AP89: días | AR89: 0 | AS89: 0
A90: 81 | AE90: 0 | AF90: 0 | AG90: 0 | AH90: 0 | AI90: Lote 81 | AP90: días | AR90: 0 | AS90: 0
A91: 82 | AE91: 0 | AF91: 0 | AG91: 0 | AH91: 0 | AI91: Lote 82 | AP91: días | AR91: 0 | AS91: 0
A92: 83 | AE92: 0 | AF92: 0 | AG92: 0 | AH92: 0 | AI92: Lote 83 | AP92: días | AR92: 0 | AS92: 0
A93: 84 | AE93: 0 | AF93: 0 | AG93: 0 | AH93: 0 | AI93: Lote 84 | AP93: días | AR93: 0 | AS93: 0
A94: 85 | AE94: 0 | AF94: 0 | AG94: 0 | AH94: 0 | AI94: Lote 85 | AP94: días | AR94: 0 | AS94: 0
A95: 86 | AE95: 0 | AF95: 0 | AG95: 0 | AH95: 0 | AI95: Lote 86 | AP95: días | AR95: 0 | AS95: 0
A96: 87 | AE96: 0 | AF96: 0 | AG96: 0 | AH96: 0 | AI96: Lote 87 | AP96: días | AR96: 0 | AS96: 0
A97: 88 | AE97: 0 | AF97: 0 | AG97: 0 | AH97: 0 | AI97: Lote 88 | AP97: días | AR97: 0 | AS97: 0
A98: 89 | AE98: 0 | AF98: 0 | AG98: 0 | AH98: 0 | AI98: Lote 89 | AP98: días | AR98: 0 | AS98: 0
A99: 90 | AE99: 0 | AF99: 0 | AG99: 0 | AH99: 0 | AI99: Lote 90 | AP99: días | AR99: 0 | AS99: 0
A100: 91 | AE100: 0 | AF100: 0 | AG100: 0 | AH100: 0 | AI100: Lote 91 | AP100: días | AR100: 0 | AS100: 0
A101: 92 | AE101: 0 | AF101: 0 | AG101: 0 | AH101: 0 | AI101: Lote 92 | AP101: días | AR101: 0 | AS101: 0
A102: 93 | AE102: 0 | AF102: 0 | AG102: 0 | AH102: 0 | AI102: Lote 93 | AP102: días | AR102: 0 | AS102: 0
A103: 94 | AE103: 0 | AF103: 0 | AG103: 0 | AH103: 0 | AI103: Lote 94 | AP103: días | AR103: 0 | AS103: 0
A104: 95 | AE104: 0 | AF104: 0 | AG104: 0 | AH104: 0 | AI104: Lote 95 | AP104: días | AR104: 0 | AS104: 0
A105: 96 | AE105: 0 | AF105: 0 | AG105: 0 | AH105: 0 | AI105: Lote 96 | AP105: días | AR105: 0 | AS105: 0
A106: 97 | H106: =IF(B106=0,"",$H$4) ->  | K106: =IF(H$5="sin dato","",IF(D106="","",D106+$H$5)) ->  | AE106: =B106 -> 0 | AF106: 0 | AG106: 0 | AH106: 0 | AI106: Lote 97 | AJ106: =IF(B106=0,"",B106&" animales") ->  | AP106: días | AR106: 0 | AS106: 0
A107: 98 | AE107: 0 | AF107: 0 | AG107: 0 | AH107: 0 | AI107: Lote 98 | AP107: días | AR107: 0 | AS107: 0
A108: 99 | AE108: 0 | AF108: 0 | AG108: 0 | AH108: 0 | AI108: Lote 99 | AP108: días | AR108: 0 | AS108: 0
A109: 100 | AE109: 0 | AF109: 0 | AG109: 0 | AH109: 0 | AI109: Lote 100 | AP109: días | AR109: 0 | AS109: 0
A110: 101 | AE110: 0 | AF110: 0 | AG110: 0 | AH110: 0 | AI110: Lote 101 | AP110: días | AR110: 0 | AS110: 0
A111: 102 | AE111: 0 | AF111: 0 | AG111: 0 | AH111: 0 | AI111: Lote 102 | AP111: días | AR111: 0 | AS111: 0
A112: 103 | AE112: 0 | AF112: 0 | AG112: 0 | AH112: 0 | AI112: Lote 103 | AP112: días | AR112: 0 | AS112: 0
A113: 104 | AE113: 0 | AF113: 0 | AG113: 0 | AH113: 0 | AI113: Lote 104 | AP113: días | AR113: 0 | AS113: 0
A114: 105 | AE114: 0 | AF114: 0 | AG114: 0 | AH114: 0 | AI114: Lote 105 | AP114: días | AR114: 0 | AS114: 0
A115: 106 | AE115: 0 | AF115: 0 | AG115: 0 | AH115: 0 | AI115: Lote 106 | AP115: días | AR115: 0 | AS115: 0
A116: 107 | AE116: 0 | AF116: 0 | AG116: 0 | AH116: 0 | AI116: Lote 107 | AP116: días | AR116: 0 | AS116: 0
A117: 108 | AE117: 0 | AF117: 0 | AG117: 0 | AH117: 0 | AI117: Lote 108 | AP117: días | AR117: 0 | AS117: 0
A118: 109 | AE118: 0 | AF118: 0 | AG118: 0 | AH118: 0 | AI118: Lote 109 | AP118: días | AR118: 0 | AS118: 0
A119: 110 | AE119: 0 | AF119: 0 | AG119: 0 | AH119: 0 | AI119: Lote 110 | AP119: días | AR119: 0 | AS119: 0
A120: 111 | AE120: 0 | AF120: 0 | AG120: 0 | AH120: 0 | AI120: Lote 111 | AP120: días | AR120: 0 | AS120: 0
A121: 112 | AE121: 0 | AF121: 0 | AG121: 0 | AH121: 0 | AI121: Lote 112 | AP121: días | AR121: 0 | AS121: 0
A122: 113 | AE122: 0 | AF122: 0 | AG122: 0 | AH122: 0 | AI122: Lote 113 | AP122: días | AR122: 0 | AS122: 0
A123: 114 | AE123: 0 | AF123: 0 | AG123: 0 | AH123: 0 | AI123: Lote 114 | AP123: días | AR123: 0 | AS123: 0
A124: 115 | AE124: 0 | AF124: 0 | AG124: 0 | AH124: 0 | AI124: Lote 115 | AP124: días | AR124: 0 | AS124: 0
A125: 116 | AE125: 0 | AF125: 0 | AG125: 0 | AH125: 0 | AI125: Lote 116 | AP125: días | AR125: 0 | AS125: 0
A126: 117 | AE126: 0 | AF126: 0 | AG126: 0 | AH126: 0 | AI126: Lote 117 | AP126: días | AR126: 0 | AS126: 0
A127: 118 | AE127: 0 | AF127: 0 | AG127: 0 | AH127: 0 | AI127: Lote 118 | AP127: días | AR127: 0 | AS127: 0
A128: 119 | AE128: 0 | AF128: 0 | AG128: 0 | AH128: 0 | AI128: Lote 119 | AP128: días | AR128: 0 | AS128: 0
A129: 120 | AE129: 0 | AF129: 0 | AG129: 0 | AH129: 0 | AI129: Lote 120 | AP129: días | AR129: 0 | AS129: 0
A130: 121 | AE130: 0 | AF130: 0 | AG130: 0 | AH130: 0 | AI130: Lote 121 | AP130: días | AR130: 0 | AS130: 0
A131: 122 | AE131: 0 | AF131: 0 | AG131: 0 | AH131: 0 | AI131: Lote 122 | AP131: días | AR131: 0 | AS131: 0
A132: 123 | AE132: 0 | AF132: 0 | AG132: 0 | AH132: 0 | AI132: Lote 123 | AP132: días | AR132: 0 | AS132: 0
A133: 124 | AE133: 0 | AF133: 0 | AG133: 0 | AH133: 0 | AI133: Lote 124 | AP133: días | AR133: 0 | AS133: 0
A134: 125 | AE134: 0 | AF134: 0 | AG134: 0 | AH134: 0 | AI134: Lote 125 | AP134: días | AR134: 0 | AS134: 0
A135: 126 | AE135: 0 | AF135: 0 | AG135: 0 | AH135: 0 | AI135: Lote 126 | AP135: días | AR135: 0 | AS135: 0
A136: 127 | AE136: 0 | AF136: 0 | AG136: 0 | AH136: 0 | AI136: Lote 127 | AP136: días | AR136: 0 | AS136: 0
A137: 128 | AE137: 0 | AF137: 0 | AG137: 0 | AH137: 0 | AI137: Lote 128 | AP137: días | AR137: 0 | AS137: 0
A138: 129 | E138: =IF($D138 ="","",IF(YEAR($D138)=$F$1,$D138,"01/01/2025")) ->  | G138: =IF($F138="","",IF(YEAR($F138)=$F$1,$F138,"31/12/2025")) ->  | H138: =IF(B138=0,"",$H$4) ->  | K138: =IF(H$5="sin dato","",IF(D138="","",D138+$H$5)) ->  | AE138: =B138 -> 0 | AF138: 0 | AG138: 0 | AH138: 0 | AI138: ="Lote "&A138 -> Lote 129 | AJ138: =IF(B138=0,"",B138&" animales") ->  | AL138: =IF(D138="","",D138) ->  | AM138: =H138 ->  | AN138: =IF(F138="","",F138) ->  | AO138: =I138 ->  | AP138: días | AR138: =IF(AH138=0,0,AO138*AH138) -> 0 | AS138: =IF(AH138=0,0,AM138*AH138) -> 0
A139: 130 | F139: =IF(D139="","",D139+H139) ->  | I139: =IF(G139="","",_xlfn.DAYS(G139,E139)) ->  | AE139: 0 | AF139: 0 | AG139: =(AE139+AF139)/2 -> 0 | AH139: =IF($AG$160=0,0,AG139/$AG$160) -> 0 | AI139: Lote 130 | AP139: =IF(AO139=0,"",AO139& " días") -> días | AR139: 0 | AS139: 0
A140: 131 | AE140: 0 | AF140: 0 | AG140: 0 | AH140: 0 | AI140: Lote 131 | AP140: días | AR140: 0 | AS140: 0
A141: 132 | AE141: 0 | AF141: 0 | AG141: 0 | AH141: 0 | AI141: Lote 132 | AP141: días | AR141: 0 | AS141: 0
A142: 133 | AE142: 0 | AF142: 0 | AG142: 0 | AH142: 0 | AI142: Lote 133 | AP142: días | AR142: 0 | AS142: 0
A143: 134 | AE143: 0 | AF143: 0 | AG143: 0 | AH143: 0 | AI143: Lote 134 | AP143: días | AR143: 0 | AS143: 0
A144: 135 | AE144: 0 | AF144: 0 | AG144: 0 | AH144: 0 | AI144: Lote 135 | AP144: días | AR144: 0 | AS144: 0
A145: 136 | AE145: 0 | AF145: 0 | AG145: 0 | AH145: 0 | AI145: Lote 136 | AP145: días | AR145: 0 | AS145: 0
A146: 137 | AE146: 0 | AF146: 0 | AG146: 0 | AH146: 0 | AI146: Lote 137 | AP146: días | AR146: 0 | AS146: 0
A147: 138 | AE147: 0 | AF147: 0 | AG147: 0 | AH147: 0 | AI147: Lote 138 | AP147: días | AR147: 0 | AS147: 0
A148: 139 | AE148: 0 | AF148: 0 | AG148: 0 | AH148: 0 | AI148: Lote 139 | AP148: días | AR148: 0 | AS148: 0
A149: 140 | AE149: 0 | AF149: 0 | AG149: 0 | AH149: 0 | AI149: Lote 140 | AP149: días | AR149: 0 | AS149: 0
A150: 141 | AE150: 0 | AF150: 0 | AG150: 0 | AH150: 0 | AI150: Lote 141 | AP150: días | AR150: 0 | AS150: 0
A151: 142 | AE151: 0 | AF151: 0 | AG151: 0 | AH151: 0 | AI151: Lote 142 | AP151: días | AR151: 0 | AS151: 0
A152: 143 | AE152: 0 | AF152: 0 | AG152: 0 | AH152: 0 | AI152: Lote 143 | AP152: días | AR152: 0 | AS152: 0
A153: 144 | AE153: 0 | AF153: 0 | AG153: 0 | AH153: 0 | AI153: Lote 144 | AP153: días | AR153: 0 | AS153: 0
A154: 145 | AE154: 0 | AF154: 0 | AG154: 0 | AH154: 0 | AI154: Lote 145 | AP154: días | AR154: 0 | AS154: 0
A155: 146 | AE155: 0 | AF155: 0 | AG155: 0 | AH155: 0 | AI155: Lote 146 | AP155: días | AR155: 0 | AS155: 0
A156: 147 | AE156: 0 | AF156: 0 | AG156: 0 | AH156: 0 | AI156: Lote 147 | AP156: días | AR156: 0 | AS156: 0
A157: 148 | AE157: 0 | AF157: 0 | AG157: 0 | AH157: 0 | AI157: Lote 148 | AP157: días | AR157: 0 | AS157: 0
A158: 149 | AE158: 0 | AF158: 0 | AG158: 0 | AH158: 0 | AI158: Lote 149 | AP158: días | AR158: 0 | AS158: 0
A159: 150 | AE159: 0 | AF159: 0 | AG159: 0 | AH159: 0 | AI159: Lote 150 | AP159: días | AR159: 0 | AS159: 0
AE160: =SUM(AE10:AE159) -> 0 | AF160: =SUM(AF10:AF159) -> 0 | AG160: =ROUND(SUM(AG10:AG159),0) -> 0 | AH160: =SUM(AH10:AH159) -> 0 | AR160: =ROUND(SUM(AR10:AR159),0) -> 0 | AS160: =ROUND(SUM(AS10:AS159),0) -> 0

Sheet Categoria 5
B1: Año de declaración: | F1: =Base!B12 -> 2025 | M1: Datos a grabar en el paso 2 de ECOGAN | S1: Datos a grabar en el paso 4 de ECOGAN
Q2: nº total de animales que entran de esta categoría productiva: | R2: =AE160 -> 0 | W2: Periodo productivo total medio de la categoría productiva: | X2: =H4 -> 0
A3: Categoría productiva: | D3: Pasteros Macho procedentes de vacas nodriza | Q3: nº total de animales vivos que finalizan de esta categoría productiva: | R3: =AF160 -> 0 | W3: días medios presentes de la categoría productiva: | X3: =AR160 -> 0
F4: Indique el periodo productivo medio de la categoría productiva (días): | I4: *
F5: Periodo productivo medio de referencia (días): | H5: =IFERROR(VLOOKUP(D3,Base!A2:B7,2,FALSE),"sin dato") -> 185 | I5: =IF(H5="sin dato","","("&ROUND(H5*0.9,0) &" - "&ROUND(H5*1.1,0)&")") -> (167 - 204) | N5: Si desea borrar datos grabados anteriormente, pulse aquí ¡Cuidado! Perderá toda la información
A6: * | B6: Número de días que por término medio los animales de una linea productiva permanecen en la granja desde que entran hasta que salen de ese alojamiento, de modo que el periodo es por ciclo productivo y no por año natural.
M7: =Base!F2 -> 45292 | N7: =Base!H3 -> 46387
A8: u | B8: Lote es el grupo de animales que van entrando de forma escalonada a los corrales. | M8: Diagrama de entradas y salidas
A9: lote u | B9: nº de animales que entran en cada lote | C9: nº de animales vivos que finalizan en cada lote | D9: Fecha de entrada del lote (dd/mm/aa) | F9: Fecha de finalización del lote (dd/mm/aa) | H9: Periodo productivo total medio (días) | I9: ="días presentes del lote en el año " & F1 -> días presentes del lote en el año 2025 | K9: =IF(H5="sin dato","","Fecha fin según fecha entrada y periodo de "&H5&" días") -> Fecha fin según fecha entrada y periodo de 185 días | AI9: lote | AL9: Fecha de entrada del lote | AM9: Periodo productivo total | AN9: Fecha de entrada del lote | AO9: ="días presentes del lote en el año " & AL1 -> días presentes del lote en el año | AR9: ="días presentes del lote en el año " & AO1 -> días presentes del lote en el año | AS9: Periodo productivo total
A10: 1 | E10: =IF($D10 ="","",IF(YEAR($D10)=$F$1,$D10,"01/01/2025")) ->  | F10: =IF(D10="","",D10+H10) ->  | G10: =IF($F10="","",IF(YEAR($F10)=$F$1,$F10,"31/12/2025")) ->  | H10: =IF(B10=0,"",$H$4) ->  | I10: =IF(G10="","",_xlfn.DAYS(G10,E10)) ->  | K10: =IF(H$5="sin dato","",IF(D10="","",D10+$H$5)) ->  | AE10: =B10 -> 0 | AF10: =C10 -> 0 | AG10: =(AE10+AF10)/2 -> 0 | AH10: =IF($AG$160=0,0,AG10/$AG$160) -> 0 | AI10: ="Lote "&A10 -> Lote 1 | AJ10: =IF(B10=0,"",B10&" animales") ->  | AK10: =IF(C10=0,"",C10&" animales") ->  | AL10: =IF(D10="","",D10) ->  | AM10: =H10 ->  | AN10: =IF(F10="","",F10) ->  | AO10: =I10 ->  | AP10: =IF(AO10=0,"",AO10& " días") -> días | AR10: =IF(AH10=0,0,AO10*AH10) -> 0 | AS10: =IF(AH10=0,0,AM10*AH10) -> 0
A11: 2 | F11: =IF(D11="","",D11+H11) ->  | I11: =IF(G11="","",_xlfn.DAYS(G11,E11)) ->  | AE11: 0 | AF11: 0 | AG11: =(AE11+AF11)/2 -> 0 | AH11: =IF($AG$160=0,0,AG11/$AG$160) -> 0 | AI11: Lote 2 | AP11: =IF(AO11=0,"",AO11& " días") -> días | AR11: 0 | AS11: 0 | AT11: 2024-01-01
A12: 3 | AE12: 0 | AF12: 0 | AG12: 0 | AH12: 0 | AI12: Lote 3 | AP12: días | AR12: 0 | AS12: 0
A13: 4 | AE13: 0 | AF13: 0 | AG13: 0 | AH13: 0 | AI13: Lote 4 | AP13: días | AR13: 0 | AS13: 0
A14: 5 | AE14: 0 | AF14: 0 | AG14: 0 | AH14: 0 | AI14: Lote 5 | AP14: días | AR14: 0 | AS14: 0
A15: 6 | AE15: 0 | AF15: 0 | AG15: 0 | AH15: 0 | AI15: Lote 6 | AP15: días | AR15: 0 | AS15: 0
A16: 7 | AE16: 0 | AF16: 0 | AG16: 0 | AH16: 0 | AI16: Lote 7 | AP16: días | AR16: 0 | AS16: 0
A17: 8 | AE17: 0 | AF17: 0 | AG17: 0 | AH17: 0 | AI17: Lote 8 | AP17: días | AR17: 0 | AS17: 0
A18: 9 | AE18: 0 | AF18: 0 | AG18: 0 | AH18: 0 | AI18: Lote 9 | AP18: días | AR18: 0 | AS18: 0
A19: 10 | AE19: 0 | AF19: 0 | AG19: 0 | AH19: 0 | AI19: Lote 10 | AP19: días | AR19: 0 | AS19: 0
A20: 11 | AE20: 0 | AF20: 0 | AG20: 0 | AH20: 0 | AI20: Lote 11 | AP20: días | AR20: 0 | AS20: 0
A21: 12 | AE21: 0 | AF21: 0 | AG21: 0 | AH21: 0 | AI21: Lote 12 | AP21: días | AR21: 0 | AS21: 0
A22: 13 | AE22: 0 | AF22: 0 | AG22: 0 | AH22: 0 | AI22: Lote 13 | AP22: días | AR22: 0 | AS22: 0
A23: 14 | AE23: 0 | AF23: 0 | AG23: 0 | AH23: 0 | AI23: Lote 14 | AP23: días | AR23: 0 | AS23: 0
A24: 15 | AE24: 0 | AF24: 0 | AG24: 0 | AH24: 0 | AI24: Lote 15 | AP24: días | AR24: 0 | AS24: 0
A25: 16 | AE25: 0 | AF25: 0 | AG25: 0 | AH25: 0 | AI25: Lote 16 | AP25: días | AR25: 0 | AS25: 0
A26: 17 | AE26: 0 | AF26: 0 | AG26: 0 | AH26: 0 | AI26: Lote 17 | AP26: días | AR26: 0 | AS26: 0
A27: 18 | AE27: 0 | AF27: 0 | AG27: 0 | AH27: 0 | AI27: Lote 18 | AP27: días | AR27: 0 | AS27: 0
A28: 19 | AE28: 0 | AF28: 0 | AG28: 0 | AH28: 0 | AI28: Lote 19 | AP28: días | AR28: 0 | AS28: 0
A29: 20 | AE29: 0 | AF29: 0 | AG29: 0 | AH29: 0 | AI29: Lote 20 | AP29: días | AR29: 0 | AS29: 0
A30: 21 | AE30: 0 | AF30: 0 | AG30: 0 | AH30: 0 | AI30: Lote 21 | AP30: días | AR30: 0 | AS30: 0
A31: 22 | AE31: 0 | AF31: 0 | AG31: 0 | AH31: 0 | AI31: Lote 22 | AP31: días | AR31: 0 | AS31: 0
A32: 23 | AE32: 0 | AF32: 0 | AG32: 0 | AH32: 0 | AI32: Lote 23 | AP32: días | AR32: 0 | AS32: 0
A33: 24 | AE33: 0 | AF33: 0 | AG33: 0 | AH33: 0 | AI33: Lote 24 | AP33: días | AR33: 0 | AS33: 0
A34: 25 | AE34: 0 | AF34: 0 | AG34: 0 | AH34: 0 | AI34: Lote 25 | AP34: días | AR34: 0 | AS34: 0
A35: 26 | AE35: 0 | AF35: 0 | AG35: 0 | AH35: 0 | AI35: Lote 26 | AP35: días | AR35: 0 | AS35: 0
A36: 27 | AE36: 0 | AF36: 0 | AG36: 0 | AH36: 0 | AI36: Lote 27 | AP36: días | AR36: 0 | AS36: 0
A37: 28 | AE37: 0 | AF37: 0 | AG37: 0 | AH37: 0 | AI37: Lote 28 | AP37: días | AR37: 0 | AS37: 0
A38: 29 | AE38: 0 | AF38: 0 | AG38: 0 | AH38: 0 | AI38: Lote 29 | AP38: días | AR38: 0 | AS38: 0
A39: 30 | AE39: 0 | AF39: 0 | AG39: 0 | AH39: 0 | AI39: Lote 30 | AP39: días | AR39: 0 | AS39: 0
A40: 31 | AE40: 0 | AF40: 0 | AG40: 0 | AH40: 0 | AI40: Lote 31 | AP40: días | AR40: 0 | AS40: 0
A41: 32 | AE41: 0 | AF41: 0 | AG41: 0 | AH41: 0 | AI41: Lote 32 | AP41: días | AR41: 0 | AS41: 0
A42: 33 | H42: =IF(B42=0,"",$H$4) ->  | K42: =IF(H$5="sin dato","",IF(D42="","",D42+$H$5)) ->  | AE42: =B42 -> 0 | AF42: =C42 -> 0 | AG42: 0 | AH42: 0 | AI42: ="Lote "&A42 -> Lote 33 | AJ42: =IF(B42=0,"",B42&" animales") ->  | AK42: =IF(C42=0,"",C42&" animales") ->  | AL42: =IF(D42="","",D42) ->  | AM42: =H42 ->  | AN42: =IF(F42="","",F42) ->  | AO42: =I42 ->  | AP42: días | AR42: =IF(AH42=0,0,AO42*AH42) -> 0 | AS42: =IF(AH42=0,0,AM42*AH42) -> 0
A43: 34 | AE43: 0 | AF43: 0 | AG43: 0 | AH43: 0 | AI43: Lote 34 | AP43: días | AR43: 0 | AS43: 0
A44: 35 | AE44: 0 | AF44: 0 | AG44: 0 | AH44: 0 | AI44: Lote 35 | AP44: días | AR44: 0 | AS44: 0
A45: 36 | AE45: 0 | AF45: 0 | AG45: 0 | AH45: 0 | AI45: Lote 36 | AP45: días | AR45: 0 | AS45: 0
A46: 37 | AE46: 0 | AF46: 0 | AG46: 0 | AH46: 0 | AI46: Lote 37 | AP46: días | AR46: 0 | AS46: 0
A47: 38 | AE47: 0 | AF47: 0 | AG47: 0 | AH47: 0 | AI47: Lote 38 | AP47: días | AR47: 0 | AS47: 0
A48: 39 | AE48: 0 | AF48: 0 | AG48: 0 | AH48: 0 | AI48: Lote 39 | AP48: días | AR48: 0 | AS48: 0
A49: 40 | AE49: 0 | AF49: 0 | AG49: 0 | AH49: 0 | AI49: Lote 40 | AP49: días | AR49: 0 | AS49: 0
A50: 41 | AE50: 0 | AF50: 0 | AG50: 0 | AH50: 0 | AI50: Lote 41 | AP50: días | AR50: 0 | AS50: 0
A51: 42 | AE51: 0 | AF51: 0 | AG51: 0 | AH51: 0 | AI51: Lote 42 | AP51: días | AR51: 0 | AS51: 0
A52: 43 | AE52: 0 | AF52: 0 | AG52: 0 | AH52: 0 | AI52: Lote 43 | AP52: días | AR52: 0 | AS52: 0
A53: 44 | AE53: 0 | AF53: 0 | AG53: 0 | AH53: 0 | AI53: Lote 44 | AP53: días | AR53: 0 | AS53: 0
A54: 45 | AE54: 0 | AF54: 0 | AG54: 0 | AH54: 0 | AI54: Lote 45 | AP54: días | AR54: 0 | AS54: 0
A55: 46 | AE55: 0 | AF55: 0 | AG55: 0 | AH55: 0 | AI55: Lote 46 | AP55: días | AR55: 0 | AS55: 0
A56: 47 | AE56: 0 | AF56: 0 | AG56: 0 | AH56: 0 | AI56: Lote 47 | AP56: días | AR56: 0 | AS56: 0
A57: 48 | AE57: 0 | AF57: 0 | AG57: 0 | AH57: 0 | AI57: Lote 48 | AP57: días | AR57: 0 | AS57: 0
A58: 49 | AE58: 0 | AF58: 0 | AG58: 0 | AH58: 0 | AI58: Lote 49 | AP58: días | AR58: 0 | AS58: 0
A59: 50 | AE59: 0 | AF59: 0 | AG59: 0 | AH59: 0 | AI59: Lote 50 | AP59: días | AR59: 0 | AS59: 0
A60: 51 | AE60: 0 | AF60: 0 | AG60: 0 | AH60: 0 | AI60: Lote 51 | AP60: días | AR60: 0 | AS60: 0
A61: 52 | AE61: 0 | AF61: 0 | AG61: 0 | AH61: 0 | AI61: Lote 52 | AP61: días | AR61: 0 | AS61: 0
A62: 53 | AE62: 0 | AF62: 0 | AG62: 0 | AH62: 0 | AI62: Lote 53 | AP62: días | AR62: 0 | AS62: 0
A63: 54 | AE63: 0 | AF63: 0 | AG63: 0 | AH63: 0 | AI63: Lote 54 | AP63: días | AR63: 0 | AS63: 0
A64: 55 | AE64: 0 | AF64: 0 | AG64: 0 | AH64: 0 | AI64: Lote 55 | AP64: días | AR64: 0 | AS64: 0
A65: 56 | AE65: 0 | AF65: 0 | AG65: 0 | AH65: 0 | AI65: Lote 56 | AP65: días | AR65: 0 | AS65: 0
A66: 57 | AE66: 0 | AF66: 0 | AG66: 0 | AH66: 0 | AI66: Lote 57 | AP66: días | AR66: 0 | AS66: 0
A67: 58 | AE67: 0 | AF67: 0 | AG67: 0 | AH67: 0 | AI67: Lote 58 | AP67: días | AR67: 0 | AS67: 0
A68: 59 | AE68: 0 | AF68: 0 | AG68: 0 | AH68: 0 | AI68: Lote 59 | AP68: días | AR68: 0 | AS68: 0
A69: 60 | AE69: 0 | AF69: 0 | AG69: 0 | AH69: 0 | AI69: Lote 60 | AP69: días | AR69: 0 | AS69: 0
A70: 61 | AE70: 0 | AF70: 0 | AG70: 0 | AH70: 0 | AI70: Lote 61 | AP70: días | AR70: 0 | AS70: 0
A71: 62 | AE71: 0 | AF71: 0 | AG71: 0 | AH71: 0 | AI71: Lote 62 | AP71: días | AR71: 0 | AS71: 0
A72: 63 | AE72: 0 | AF72: 0 | AG72: 0 | AH72: 0 | AI72: Lote 63 | AP72: días | AR72: 0 | AS72: 0
A73: 64 | AE73: 0 | AF73: 0 | AG73: 0 | AH73: 0 | AI73: Lote 64 | AP73: días | AR73: 0 | AS73: 0
A74: 65 | E74: =IF($D74 ="","",IF(YEAR($D74)=$F$1,$D74,"01/01/2025")) ->  | G74: =IF($F74="","",IF(YEAR($F74)=$F$1,$F74,"31/12/2025")) ->  | H74: =IF(B74=0,"",$H$4) ->  | K74: =IF(H$5="sin dato","",IF(D74="","",D74+$H$5)) ->  | AE74: =B74 -> 0 | AF74: =C74 -> 0 | AG74: 0 | AH74: 0 | AI74: ="Lote "&A74 -> Lote 65 | AJ74: =IF(B74=0,"",B74&" animales") ->  | AK74: =IF(C74=0,"",C74&" animales") ->  | AL74: =IF(D74="","",D74) ->  | AM74: =H74 ->  | AN74: =IF(F74="","",F74) ->  | AO74: =I74 ->  | AP74: días | AR74: =IF(AH74=0,0,AO74*AH74) -> 0 | AS74: =IF(AH74=0,0,AM74*AH74) -> 0
A75: 66 | F75: =IF(D75="","",D75+H75) ->  | I75: =IF(G75="","",_xlfn.DAYS(G75,E75)) ->  | AE75: 0 | AF75: 0 | AG75: =(AE75+AF75)/2 -> 0 | AH75: =IF($AG$160=0,0,AG75/$AG$160) -> 0 | AI75: Lote 66 | AP75: =IF(AO75=0,"",AO75& " días") -> días | AR75: 0 | AS75: 0
A76: 67 | AE76: 0 | AF76: 0 | AG76: 0 | AH76: 0 | AI76: Lote 67 | AP76: días | AR76: 0 | AS76: 0
A77: 68 | AE77: 0 | AF77: 0 | AG77: 0 | AH77: 0 | AI77: Lote 68 | AP77: días | AR77: 0 | AS77: 0
A78: 69 | AE78: 0 | AF78: 0 | AG78: 0 | AH78: 0 | AI78: Lote 69 | AP78: días | AR78: 0 | AS78: 0
A79: 70 | AE79: 0 | AF79: 0 | AG79: 0 | AH79: 0 | AI79: Lote 70 | AP79: días | AR79: 0 | AS79: 0
A80: 71 | AE80: 0 | AF80: 0 | AG80: 0 | AH80: 0 | AI80: Lote 71 | AP80: días | AR80: 0 | AS80: 0
A81: 72 | AE81: 0 | AF81: 0 | AG81: 0 | AH81: 0 | AI81: Lote 72 | AP81: días | AR81: 0 | AS81: 0
A82: 73 | AE82: 0 | AF82: 0 | AG82: 0 | AH82: 0 | AI82: Lote 73 | AP82: días | AR82: 0 | AS82: 0
A83: 74 | AE83: 0 | AF83: 0 | AG83: 0 | AH83: 0 | AI83: Lote 74 | AP83: días | AR83: 0 | AS83: 0
A84: 75 | AE84: 0 | AF84: 0 | AG84: 0 | AH84: 0 | AI84: Lote 75 | AP84: días | AR84: 0 | AS84: 0
A85: 76 | AE85: 0 | AF85: 0 | AG85: 0 | AH85: 0 | AI85: Lote 76 | AP85: días | AR85: 0 | AS85: 0
A86: 77 | AE86: 0 | AF86: 0 | AG86: 0 | AH86: 0 | AI86: Lote 77 | AP86: días | AR86: 0 | AS86: 0
A87: 78 | AE87: 0 | AF87: 0 | AG87: 0 | AH87: 0 | AI87: Lote 78 | AP87: días | AR87: 0 | AS87: 0
A88: 79 | AE88: 0 | AF88: 0 | AG88: 0 | AH88: 0 | AI88: Lote 79 | AP88: días | AR88: 0 | AS88: 0
A89: 80 | AE89: 0 | AF89: 0 | AG89: 0 | AH89: 0 | AI89: Lote 80 | AP89: días | AR89: 0 | AS89: 0
A90: 81 | AE90: 0 | AF90: 0 | AG90: 0 | AH90: 0 | AI90: Lote 81 | AP90: días | AR90: 0 | AS90: 0
A91: 82 | AE91: 0 | AF91: 0 | AG91: 0 | AH91: 0 | AI91: Lote 82 | AP91: días | AR91: 0 | AS91: 0
A92: 83 | AE92: 0 | AF92: 0 | AG92: 0 | AH92: 0 | AI92: Lote 83 | AP92: días | AR92: 0 | AS92: 0
A93: 84 | AE93: 0 | AF93: 0 | AG93: 0 | AH93: 0 | AI93: Lote 84 | AP93: días | AR93: 0 | AS93: 0
A94: 85 | AE94: 0 | AF94: 0 | AG94: 0 | AH94: 0 | AI94: Lote 85 | AP94: días | AR94: 0 | AS94: 0
A95: 86 | AE95: 0 | AF95: 0 | AG95: 0 | AH95: 0 | AI95: Lote 86 | AP95: días | AR95: 0 | AS95: 0
A96: 87 | AE96: 0 | AF96: 0 | AG96: 0 | AH96: 0 | AI96: Lote 87 | AP96: días | AR96: 0 | AS96: 0
A97: 88 | AE97: 0 | AF97: 0 | AG97: 0 | AH97: 0 | AI97: Lote 88 | AP97: días | AR97: 0 | AS97: 0
A98: 89 | AE98: 0 | AF98: 0 | AG98: 0 | AH98: 0 | AI98: Lote 89 | AP98: días | AR98: 0 | AS98: 0
A99: 90 | AE99: 0 | AF99: 0 | AG99: 0 | AH99: 0 | AI99: Lote 90 | AP99: días | AR99: 0 | AS99: 0
A100: 91 | AE100: 0 | AF100: 0 | AG100: 0 | AH100: 0 | AI100: Lote 91 | AP100: días | AR100: 0 | AS100: 0
A101: 92 | AE101: 0 | AF101: 0 | AG101: 0 | AH101: 0 | AI101: Lote 92 | AP101: días | AR101: 0 | AS101: 0
A102: 93 | AE102: 0 | AF102: 0 | AG102: 0 | AH102: 0 | AI102: Lote 93 | AP102: días | AR102: 0 | AS102: 0
A103: 94 | AE103: 0 | AF103: 0 | AG103: 0 | AH103: 0 | AI103: Lote 94 | AP103: días | AR103: 0 | AS103: 0
A104: 95 | AE104: 0 | AF104: 0 | AG104: 0 | AH104: 0 | AI104: Lote 95 | AP104: días | AR104: 0 | AS104: 0
A105: 96 | AE105: 0 | AF105: 0 | AG105: 0 | AH105: 0 | AI105: Lote 96 | AP105: días | AR105: 0 | AS105: 0
A106: 97 | H106: =IF(B106=0,"",$H$4) ->  | K106: =IF(H$5="sin dato","",IF(D106="","",D106+$H$5)) ->  | AE106: =B106 -> 0 | AF106: =C106 -> 0 | AG106: 0 | AH106: 0 | AI106: ="Lote "&A106 -> Lote 97 | AJ106: =IF(B106=0,"",B106&" animales") ->  | AK106: =IF(C106=0,"",C106&" animales") ->  | AL106: =IF(D106="","",D106) ->  | AM106: =H106 ->  | AN106: =IF(F106="","",F106) ->  | AO106: =I106 ->  | AP106: días | AR106: =IF(AH106=0,0,AO106*AH106) -> 0 | AS106: =IF(AH106=0,0,AM106*AH106) -> 0
A107: 98 | AE107: 0 | AF107: 0 | AG107: 0 | AH107: 0 | AI107: Lote 98 | AP107: días | AR107: 0 | AS107: 0
A108: 99 | AE108: 0 | AF108: 0 | AG108: 0 | AH108: 0 | AI108: Lote 99 | AP108: días | AR108: 0 | AS108: 0
A109: 100 | AE109: 0 | AF109: 0 | AG109: 0 | AH109: 0 | AI109: Lote 100 | AP109: días | AR109: 0 | AS109: 0
A110: 101 | AE110: 0 | AF110: 0 | AG110: 0 | AH110: 0 | AI110: Lote 101 | AP110: días | AR110: 0 | AS110: 0
A111: 102 | AE111: 0 | AF111: 0 | AG111: 0 | AH111: 0 | AI111: Lote 102 | AP111: días | AR111: 0 | AS111: 0
A112: 103 | AE112: 0 | AF112: 0 | AG112: 0 | AH112: 0 | AI112: Lote 103 | AP112: días | AR112: 0 | AS112: 0
A113: 104 | AE113: 0 | AF113: 0 | AG113: 0 | AH113: 0 | AI113: Lote 104 | AP113: días | AR113: 0 | AS113: 0
A114: 105 | AE114: 0 | AF114: 0 | AG114: 0 | AH114: 0 | AI114: Lote 105 | AP114: días | AR114: 0 | AS114: 0
A115: 106 | AE115: 0 | AF115: 0 | AG115: 0 | AH115: 0 | AI115: Lote 106 | AP115: días | AR115: 0 | AS115: 0
A116: 107 | AE116: 0 | AF116: 0 | AG116: 0 | AH116: 0 | AI116: Lote 107 | AP116: días | AR116: 0 | AS116: 0
A117: 108 | AE117: 0 | AF117: 0 | AG117: 0 | AH117: 0 | AI117: Lote 108 | AP117: días | AR117: 0 | AS117: 0
A118: 109 | AE118: 0 | AF118: 0 | AG118: 0 | AH118: 0 | AI118: Lote 109 | AP118: días | AR118: 0 | AS118: 0
A119: 110 | AE119: 0 | AF119: 0 | AG119: 0 | AH119: 0 | AI119: Lote 110 | AP119: días | AR119: 0 | AS119: 0
A120: 111 | AE120: 0 | AF120: 0 | AG120: 0 | AH120: 0 | AI120: Lote 111 | AP120: días | AR120: 0 | AS120: 0
A121: 112 | AE121: 0 | AF121: 0 | AG121: 0 | AH121: 0 | AI121: Lote 112 | AP121: días | AR121: 0 | AS121: 0
A122: 113 | AE122: 0 | AF122: 0 | AG122: 0 | AH122: 0 | AI122: Lote 113 | AP122: días | AR122: 0 | AS122: 0
A123: 114 | AE123: 0 | AF123: 0 | AG123: 0 | AH123: 0 | AI123: Lote 114 | AP123: días | AR123: 0 | AS123: 0
A124: 115 | AE124: 0 | AF124: 0 | AG124: 0 | AH124: 0 | AI124: Lote 115 | AP124: días | AR124: 0 | AS124: 0
A125: 116 | AE125: 0 | AF125: 0 | AG125: 0 | AH125: 0 | AI125: Lote 116 | AP125: días | AR125: 0 | AS125: 0
A126: 117 | AE126: 0 | AF126: 0 | AG126: 0 | AH126: 0 | AI126: Lote 117 | AP126: días | AR126: 0 | AS126: 0
A127: 118 | AE127: 0 | AF127: 0 | AG127: 0 | AH127: 0 | AI127: Lote 118 | AP127: días | AR127: 0 | AS127: 0
A128: 119 | AE128: 0 | AF128: 0 | AG128: 0 | AH128: 0 | AI128: Lote 119 | AP128: días | AR128: 0 | AS128: 0
A129: 120 | AE129: 0 | AF129: 0 | AG129: 0 | AH129: 0 | AI129: Lote 120 | AP129: días | AR129: 0 | AS129: 0
A130: 121 | AE130: 0 | AF130: 0 | AG130: 0 | AH130: 0 | AI130: Lote 121 | AP130: días | AR130: 0 | AS130: 0
A131: 122 | AE131: 0 | AF131: 0 | AG131: 0 | AH131: 0 | AI131: Lote 122 | AP131: días | AR131: 0 | AS131: 0
A132: 123 | AE132: 0 | AF132: 0 | AG132: 0 | AH132: 0 | AI132: Lote 123 | AP132: días | AR132: 0 | AS132: 0
A133: 124 | AE133: 0 | AF133: 0 | AG133: 0 | AH133: 0 | AI133: Lote 124 | AP133: días | AR133: 0 | AS133: 0
A134: 125 | AE134: 0 | AF134: 0 | AG134: 0 | AH134: 0 | AI134: Lote 125 | AP134: días | AR134: 0 | AS134: 0
A135: 126 | AE135: 0 | AF135: 0 | AG135: 0 | AH135: 0 | AI135: Lote 126 | AP135: días | AR135: 0 | AS135: 0
A136: 127 | AE136: 0 | AF136: 0 | AG136: 0 | AH136: 0 | AI136: Lote 127 | AP136: días | AR136: 0 | AS136: 0
A137: 128 | AE137: 0 | AF137: 0 | AG137: 0 | AH137: 0 | AI137: Lote 128 | AP137: días | AR137: 0 | AS137: 0
A138: 129 | E138: =IF($D138 ="","",IF(YEAR($D138)=$F$1,$D138,"01/01/2025")) ->  | G138: =IF($F138="","",IF(YEAR($F138)=$F$1,$F138,"31/12/2025")) ->  | H138: =IF(B138=0,"",$H$4) ->  | K138: =IF(H$5="sin dato","",IF(D138="","",D138+$H$5)) ->  | AE138: =B138 -> 0 | AF138: =C138 -> 0 | AG138: 0 | AH138: 0 | AI138: ="Lote "&A138 -> Lote 129 | AJ138: =IF(B138=0,"",B138&" animales") ->  | AK138: =IF(C138=0,"",C138&" animales") ->  | AL138: =IF(D138="","",D138) ->  | AM138: =H138 ->  | AN138: =IF(F138="","",F138) ->  | AO138: =I138 ->  | AP138: días | AR138: =IF(AH138=0,0,AO138*AH138) -> 0 | AS138: 0
A139: 130 | F139: =IF(D139="","",D139+H139) ->  | I139: =IF(G139="","",_xlfn.DAYS(G139,E139)) ->  | AE139: 0 | AF139: 0 | AG139: =(AE139+AF139)/2 -> 0 | AH139: =IF($AG$160=0,0,AG139/$AG$160) -> 0 | AI139: Lote 130 | AP139: =IF(AO139=0,"",AO139& " días") -> días | AR139: 0 | AS139: =IF(AH139=0,0,AM139*AH139) -> 0
A140: 131 | AE140: 0 | AF140: 0 | AG140: 0 | AH140: 0 | AI140: Lote 131 | AP140: días | AR140: 0 | AS140: 0
A141: 132 | AE141: 0 | AF141: 0 | AG141: 0 | AH141: 0 | AI141: Lote 132 | AP141: días | AR141: 0 | AS141: 0
A142: 133 | AE142: 0 | AF142: 0 | AG142: 0 | AH142: 0 | AI142: Lote 133 | AP142: días | AR142: 0 | AS142: 0
A143: 134 | AE143: 0 | AF143: 0 | AG143: 0 | AH143: 0 | AI143: Lote 134 | AP143: días | AR143: 0 | AS143: 0
A144: 135 | AE144: 0 | AF144: 0 | AG144: 0 | AH144: 0 | AI144: Lote 135 | AP144: días | AR144: 0 | AS144: 0
A145: 136 | AE145: 0 | AF145: 0 | AG145: 0 | AH145: 0 | AI145: Lote 136 | AP145: días | AR145: 0 | AS145: 0
A146: 137 | AE146: 0 | AF146: 0 | AG146: 0 | AH146: 0 | AI146: Lote 137 | AP146: días | AR146: 0 | AS146: 0
A147: 138 | AE147: 0 | AF147: 0 | AG147: 0 | AH147: 0 | AI147: Lote 138 | AP147: días | AR147: 0 | AS147: 0
A148: 139 | AE148: 0 | AF148: 0 | AG148: 0 | AH148: 0 | AI148: Lote 139 | AP148: días | AR148: 0 | AS148: 0
A149: 140 | AE149: 0 | AF149: 0 | AG149: 0 | AH149: 0 | AI149: Lote 140 | AP149: días | AR149: 0 | AS149: 0
A150: 141 | AE150: 0 | AF150: 0 | AG150: 0 | AH150: 0 | AI150: Lote 141 | AP150: días | AR150: 0 | AS150: 0
A151: 142 | AE151: 0 | AF151: 0 | AG151: 0 | AH151: 0 | AI151: Lote 142 | AP151: días | AR151: 0 | AS151: 0
A152: 143 | AE152: 0 | AF152: 0 | AG152: 0 | AH152: 0 | AI152: Lote 143 | AP152: días | AR152: 0 | AS152: 0
A153: 144 | AE153: 0 | AF153: 0 | AG153: 0 | AH153: 0 | AI153: Lote 144 | AP153: días | AR153: 0 | AS153: 0
A154: 145 | AE154: 0 | AF154: 0 | AG154: 0 | AH154: 0 | AI154: Lote 145 | AP154: días | AR154: 0 | AS154: 0
A155: 146 | AE155: 0 | AF155: 0 | AG155: 0 | AH155: 0 | AI155: Lote 146 | AP155: días | AR155: 0 | AS155: 0
A156: 147 | AE156: 0 | AF156: 0 | AG156: 0 | AH156: 0 | AI156: Lote 147 | AP156: días | AR156: 0 | AS156: 0
A157: 148 | AE157: 0 | AF157: 0 | AG157: 0 | AH157: 0 | AI157: Lote 148 | AP157: días | AR157: 0 | AS157: 0
A158: 149 | AE158: 0 | AF158: 0 | AG158: 0 | AH158: 0 | AI158: Lote 149 | AP158: días | AR158: 0 | AS158: 0
A159: 150 | AE159: 0 | AF159: 0 | AG159: 0 | AH159: 0 | AI159: Lote 150 | AP159: días | AR159: 0 | AS159: 0
AE160: =SUM(AE10:AE159) -> 0 | AF160: =SUM(AF10:AF159) -> 0 | AG160: =ROUND(SUM(AG10:AG159),0) -> 0 | AH160: =SUM(AH10:AH159) -> 0 | AR160: =ROUND(SUM(AR10:AR159),0) -> 0 | AS160: =ROUND(SUM(AS10:AS159),0) -> 0

Sheet Categoria 6
B1: Año de declaración: | F1: =Base!B12 -> 2025 | M1: Datos a grabar en el paso 2 de ECOGAN | S1: Datos a grabar en el paso 4 de ECOGAN
Q2: nº total de animales que entran de esta categoría productiva: | R2: =AE160 -> 0 | W2: Periodo productivo total medio de la categoría productiva: | X2: =H4 -> 0
A3: Categoría productiva: | D3: Pasteros Hembra procedentes de vacas nodriza | Q3: nº total de animales vivos que finalizan de esta categoría productiva: | R3: =AF160 -> 0 | W3: días medios presentes de la categoría productiva: | X3: =AR160 -> 0
F4: Indique el periodo productivo medio de la categoría productiva (días): | I4: *
F5: Periodo productivo medio de referencia (días): | H5: =IFERROR(VLOOKUP(D3,Base!A2:B7,2,FALSE),"sin dato") -> 165 | I5: =IF(H5="sin dato","","("&ROUND(H5*0.9,0) &" - "&ROUND(H5*1.1,0)&")") -> (149 - 182) | N5: Si desea borrar datos grabados anteriormente, pulse aquí ¡Cuidado! Perderá toda la información
A6: * | B6: Número de días que por término medio los animales de una linea productiva permanecen en la granja desde que entran hasta que salen de ese alojamiento, de modo que el periodo es por ciclo productivo y no por año natural.
M7: =Base!F2 -> 45292 | N7: =Base!H3 -> 46387
A8: u | B8: Lote es el grupo de animales que van entrando de forma escalonada a los corrales. | M8: Diagrama de entradas y salidas
A9: lote u | B9: nº de animales que entran en cada lote | C9: nº de animales vivos que finalizan en cada lote | D9: Fecha de entrada del lote (dd/mm/aa) | F9: Fecha de finalización del lote (dd/mm/aa) | H9: Periodo productivo total medio (días) | I9: ="días presentes del lote en el año " & F1 -> días presentes del lote en el año 2025 | K9: =IF(H5="sin dato","","Fecha fin según fecha entrada y periodo de "&H5&" días") -> Fecha fin según fecha entrada y periodo de 165 días | AI9: lote | AL9: Fecha de entrada del lote | AM9: Periodo productivo total | AN9: Fecha de entrada del lote | AO9: ="días presentes del lote en el año " & AL1 -> días presentes del lote en el año | AR9: ="días presentes del lote en el año " & AO1 -> días presentes del lote en el año | AS9: Periodo productivo total
A10: 1 | E10: =IF($D10 ="","",IF(YEAR($D10)=$F$1,$D10,"01/01/2025")) ->  | F10: =IF(D10="","",D10+H10) ->  | G10: =IF($F10="","",IF(YEAR($F10)=$F$1,$F10,"31/12/2025")) ->  | H10: =IF(B10=0,"",$H$4) ->  | I10: =IF(G10="","",_xlfn.DAYS(G10,E10)) ->  | K10: =IF(H$5="sin dato","",IF(D10="","",D10+$H$5)) ->  | AE10: =B10 -> 0 | AF10: 0 | AG10: =(AE10+AF10)/2 -> 0 | AH10: =IF($AG$160=0,0,AG10/$AG$160) -> 0 | AI10: ="Lote "&A10 -> Lote 1 | AJ10: =IF(B10=0,"",B10&" animales") ->  | AL10: =IF(D10="","",D10) ->  | AM10: =H10 ->  | AN10: =IF(F10="","",F10) ->  | AO10: =I10 ->  | AP10: =IF(AO10=0,"",AO10& " días") -> días | AR10: =IF(AH10=0,0,AO10*AH10) -> 0 | AS10: =IF(AH10=0,0,AM10*AH10) -> 0
A11: 2 | F11: =IF(D11="","",D11+H11) ->  | I11: =IF(G11="","",_xlfn.DAYS(G11,E11)) ->  | AE11: 0 | AF11: 0 | AG11: =(AE11+AF11)/2 -> 0 | AH11: =IF($AG$160=0,0,AG11/$AG$160) -> 0 | AI11: Lote 2 | AP11: =IF(AO11=0,"",AO11& " días") -> días | AR11: 0 | AS11: 0
A12: 3 | AE12: 0 | AF12: 0 | AG12: 0 | AH12: 0 | AI12: Lote 3 | AP12: días | AR12: 0 | AS12: 0
A13: 4 | AE13: 0 | AF13: 0 | AG13: 0 | AH13: 0 | AI13: Lote 4 | AP13: días | AR13: 0 | AS13: 0
A14: 5 | AE14: 0 | AF14: 0 | AG14: 0 | AH14: 0 | AI14: Lote 5 | AP14: días | AR14: 0 | AS14: 0
A15: 6 | AE15: 0 | AF15: 0 | AG15: 0 | AH15: 0 | AI15: Lote 6 | AP15: días | AR15: 0 | AS15: 0
A16: 7 | AE16: 0 | AF16: 0 | AG16: 0 | AH16: 0 | AI16: Lote 7 | AP16: días | AR16: 0 | AS16: 0
A17: 8 | AE17: 0 | AF17: 0 | AG17: 0 | AH17: 0 | AI17: Lote 8 | AP17: días | AR17: 0 | AS17: 0
A18: 9 | AE18: 0 | AF18: 0 | AG18: 0 | AH18: 0 | AI18: Lote 9 | AP18: días | AR18: 0 | AS18: 0
A19: 10 | AE19: 0 | AF19: 0 | AG19: 0 | AH19: 0 | AI19: Lote 10 | AP19: días | AR19: 0 | AS19: 0
A20: 11 | AE20: 0 | AF20: 0 | AG20: 0 | AH20: 0 | AI20: Lote 11 | AP20: días | AR20: 0 | AS20: 0
A21: 12 | AE21: 0 | AF21: 0 | AG21: 0 | AH21: 0 | AI21: Lote 12 | AP21: días | AR21: 0 | AS21: 0
A22: 13 | AE22: 0 | AF22: 0 | AG22: 0 | AH22: 0 | AI22: Lote 13 | AP22: días | AR22: 0 | AS22: 0
A23: 14 | AE23: 0 | AF23: 0 | AG23: 0 | AH23: 0 | AI23: Lote 14 | AP23: días | AR23: 0 | AS23: 0
A24: 15 | AE24: 0 | AF24: 0 | AG24: 0 | AH24: 0 | AI24: Lote 15 | AP24: días | AR24: 0 | AS24: 0
A25: 16 | AE25: 0 | AF25: 0 | AG25: 0 | AH25: 0 | AI25: Lote 16 | AP25: días | AR25: 0 | AS25: 0
A26: 17 | AE26: 0 | AF26: 0 | AG26: 0 | AH26: 0 | AI26: Lote 17 | AP26: días | AR26: 0 | AS26: 0
A27: 18 | AE27: 0 | AF27: 0 | AG27: 0 | AH27: 0 | AI27: Lote 18 | AP27: días | AR27: 0 | AS27: 0
A28: 19 | AE28: 0 | AF28: 0 | AG28: 0 | AH28: 0 | AI28: Lote 19 | AP28: días | AR28: 0 | AS28: 0
A29: 20 | AE29: 0 | AF29: 0 | AG29: 0 | AH29: 0 | AI29: Lote 20 | AP29: días | AR29: 0 | AS29: 0
A30: 21 | AE30: 0 | AF30: 0 | AG30: 0 | AH30: 0 | AI30: Lote 21 | AP30: días | AR30: 0 | AS30: 0
A31: 22 | AE31: 0 | AF31: 0 | AG31: 0 | AH31: 0 | AI31: Lote 22 | AP31: días | AR31: 0 | AS31: 0
A32: 23 | AE32: 0 | AF32: 0 | AG32: 0 | AH32: 0 | AI32: Lote 23 | AP32: días | AR32: 0 | AS32: 0
A33: 24 | AE33: 0 | AF33: 0 | AG33: 0 | AH33: 0 | AI33: Lote 24 | AP33: días | AR33: 0 | AS33: 0
A34: 25 | AE34: 0 | AF34: 0 | AG34: 0 | AH34: 0 | AI34: Lote 25 | AP34: días | AR34: 0 | AS34: 0
A35: 26 | AE35: 0 | AF35: 0 | AG35: 0 | AH35: 0 | AI35: Lote 26 | AP35: días | AR35: 0 | AS35: 0
A36: 27 | AE36: 0 | AF36: 0 | AG36: 0 | AH36: 0 | AI36: Lote 27 | AP36: días | AR36: 0 | AS36: 0
A37: 28 | AE37: 0 | AF37: 0 | AG37: 0 | AH37: 0 | AI37: Lote 28 | AP37: días | AR37: 0 | AS37: 0
A38: 29 | AE38: 0 | AF38: 0 | AG38: 0 | AH38: 0 | AI38: Lote 29 | AP38: días | AR38: 0 | AS38: 0
A39: 30 | AE39: 0 | AF39: 0 | AG39: 0 | AH39: 0 | AI39: Lote 30 | AP39: días | AR39: 0 | AS39: 0
A40: 31 | AE40: 0 | AF40: 0 | AG40: 0 | AH40: 0 | AI40: Lote 31 | AP40: días | AR40: 0 | AS40: 0
A41: 32 | AE41: 0 | AF41: 0 | AG41: 0 | AH41: 0 | AI41: Lote 32 | AP41: días | AR41: 0 | AS41: 0
A42: 33 | H42: =IF(B42=0,"",$H$4) ->  | K42: =IF(H$5="sin dato","",IF(D42="","",D42+$H$5)) ->  | AE42: =B42 -> 0 | AF42: 0 | AG42: 0 | AH42: 0 | AI42: Lote 33 | AJ42: =IF(B42=0,"",B42&" animales") ->  | AP42: días | AR42: 0 | AS42: 0
A43: 34 | AE43: 0 | AF43: 0 | AG43: 0 | AH43: 0 | AI43: Lote 34 | AP43: días | AR43: 0 | AS43: 0
A44: 35 | AE44: 0 | AF44: 0 | AG44: 0 | AH44: 0 | AI44: Lote 35 | AP44: días | AR44: 0 | AS44: 0
A45: 36 | AE45: 0 | AF45: 0 | AG45: 0 | AH45: 0 | AI45: Lote 36 | AP45: días | AR45: 0 | AS45: 0
A46: 37 | AE46: 0 | AF46: 0 | AG46: 0 | AH46: 0 | AI46: Lote 37 | AP46: días | AR46: 0 | AS46: 0
A47: 38 | AE47: 0 | AF47: 0 | AG47: 0 | AH47: 0 | AI47: Lote 38 | AP47: días | AR47: 0 | AS47: 0
A48: 39 | AE48: 0 | AF48: 0 | AG48: 0 | AH48: 0 | AI48: Lote 39 | AP48: días | AR48: 0 | AS48: 0
A49: 40 | AE49: 0 | AF49: 0 | AG49: 0 | AH49: 0 | AI49: Lote 40 | AP49: días | AR49: 0 | AS49: 0
A50: 41 | AE50: 0 | AF50: 0 | AG50: 0 | AH50: 0 | AI50: Lote 41 | AP50: días | AR50: 0 | AS50: 0
A51: 42 | AE51: 0 | AF51: 0 | AG51: 0 | AH51: 0 | AI51: Lote 42 | AP51: días | AR51: 0 | AS51: 0
A52: 43 | AE52: 0 | AF52: 0 | AG52: 0 | AH52: 0 | AI52: Lote 43 | AP52: días | AR52: 0 | AS52: 0
A53: 44 | AE53: 0 | AF53: 0 | AG53: 0 | AH53: 0 | AI53: Lote 44 | AP53: días | AR53: 0 | AS53: 0
A54: 45 | AE54: 0 | AF54: 0 | AG54: 0 | AH54: 0 | AI54: Lote 45 | AP54: días | AR54: 0 | AS54: 0
A55: 46 | AE55: 0 | AF55: 0 | AG55: 0 | AH55: 0 | AI55: Lote 46 | AP55: días | AR55: 0 | AS55: 0
A56: 47 | AE56: 0 | AF56: 0 | AG56: 0 | AH56: 0 | AI56: Lote 47 | AP56: días | AR56: 0 | AS56: 0
A57: 48 | AE57: 0 | AF57: 0 | AG57: 0 | AH57: 0 | AI57: Lote 48 | AP57: días | AR57: 0 | AS57: 0
A58: 49 | AE58: 0 | AF58: 0 | AG58: 0 | AH58: 0 | AI58: Lote 49 | AP58: días | AR58: 0 | AS58: 0
A59: 50 | AE59: 0 | AF59: 0 | AG59: 0 | AH59: 0 | AI59: Lote 50 | AP59: días | AR59: 0 | AS59: 0
A60: 51 | AE60: 0 | AF60: 0 | AG60: 0 | AH60: 0 | AI60: Lote 51 | AP60: días | AR60: 0 | AS60: 0
A61: 52 | AE61: 0 | AF61: 0 | AG61: 0 | AH61: 0 | AI61: Lote 52 | AP61: días | AR61: 0 | AS61: 0
A62: 53 | AE62: 0 | AF62: 0 | AG62: 0 | AH62: 0 | AI62: Lote 53 | AP62: días | AR62: 0 | AS62: 0
A63: 54 | AE63: 0 | AF63: 0 | AG63: 0 | AH63: 0 | AI63: Lote 54 | AP63: días | AR63: 0 | AS63: 0
A64: 55 | AE64: 0 | AF64: 0 | AG64: 0 | AH64: 0 | AI64: Lote 55 | AP64: días | AR64: 0 | AS64: 0
A65: 56 | AE65: 0 | AF65: 0 | AG65: 0 | AH65: 0 | AI65: Lote 56 | AP65: días | AR65: 0 | AS65: 0
A66: 57 | AE66: 0 | AF66: 0 | AG66: 0 | AH66: 0 | AI66: Lote 57 | AP66: días | AR66: 0 | AS66: 0
A67: 58 | AE67: 0 | AF67: 0 | AG67: 0 | AH67: 0 | AI67: Lote 58 | AP67: días | AR67: 0 | AS67: 0
A68: 59 | AE68: 0 | AF68: 0 | AG68: 0 | AH68: 0 | AI68: Lote 59 | AP68: días | AR68: 0 | AS68: 0
A69: 60 | AE69: 0 | AF69: 0 | AG69: 0 | AH69: 0 | AI69: Lote 60 | AP69: días | AR69: 0 | AS69: 0
A70: 61 | AE70: 0 | AF70: 0 | AG70: 0 | AH70: 0 | AI70: Lote 61 | AP70: días | AR70: 0 | AS70: 0
A71: 62 | AE71: 0 | AF71: 0 | AG71: 0 | AH71: 0 | AI71: Lote 62 | AP71: días | AR71: 0 | AS71: 0
A72: 63 | AE72: 0 | AF72: 0 | AG72: 0 | AH72: 0 | AI72: Lote 63 | AP72: días | AR72: 0 | AS72: 0
A73: 64 | AE73: 0 | AF73: 0 | AG73: 0 | AH73: 0 | AI73: Lote 64 | AP73: días | AR73: 0 | AS73: 0
A74: 65 | E74: =IF($D74 ="","",IF(YEAR($D74)=$F$1,$D74,"01/01/2025")) ->  | G74: =IF($F74="","",IF(YEAR($F74)=$F$1,$F74,"31/12/2025")) ->  | H74: =IF(B74=0,"",$H$4) ->  | K74: =IF(H$5="sin dato","",IF(D74="","",D74+$H$5)) ->  | AE74: =B74 -> 0 | AF74: 0 | AG74: 0 | AH74: 0 | AI74: ="Lote "&A74 -> Lote 65 | AJ74: =IF(B74=0,"",B74&" animales") ->  | AL74: =IF(D74="","",D74) ->  | AM74: =H74 ->  | AN74: =IF(F74="","",F74) ->  | AO74: =I74 ->  | AP74: días | AR74: =IF(AH74=0,0,AO74*AH74) -> 0 | AS74: =IF(AH74=0,0,AM74*AH74) -> 0
A75: 66 | F75: =IF(D75="","",D75+H75) ->  | I75: =IF(G75="","",_xlfn.DAYS(G75,E75)) ->  | AE75: 0 | AF75: 0 | AG75: =(AE75+AF75)/2 -> 0 | AH75: =IF($AG$160=0,0,AG75/$AG$160) -> 0 | AI75: Lote 66 | AP75: =IF(AO75=0,"",AO75& " días") -> días | AR75: 0 | AS75: 0
A76: 67 | AE76: 0 | AF76: 0 | AG76: 0 | AH76: 0 | AI76: Lote 67 | AP76: días | AR76: 0 | AS76: 0
A77: 68 | AE77: 0 | AF77: 0 | AG77: 0 | AH77: 0 | AI77: Lote 68 | AP77: días | AR77: 0 | AS77: 0
A78: 69 | AE78: 0 | AF78: 0 | AG78: 0 | AH78: 0 | AI78: Lote 69 | AP78: días | AR78: 0 | AS78: 0
A79: 70 | AE79: 0 | AF79: 0 | AG79: 0 | AH79: 0 | AI79: Lote 70 | AP79: días | AR79: 0 | AS79: 0
A80: 71 | AE80: 0 | AF80: 0 | AG80: 0 | AH80: 0 | AI80: Lote 71 | AP80: días | AR80: 0 | AS80: 0
A81: 72 | AE81: 0 | AF81: 0 | AG81: 0 | AH81: 0 | AI81: Lote 72 | AP81: días | AR81: 0 | AS81: 0
A82: 73 | AE82: 0 | AF82: 0 | AG82: 0 | AH82: 0 | AI82: Lote 73 | AP82: días | AR82: 0 | AS82: 0
A83: 74 | AE83: 0 | AF83: 0 | AG83: 0 | AH83: 0 | AI83: Lote 74 | AP83: días | AR83: 0 | AS83: 0
A84: 75 | AE84: 0 | AF84: 0 | AG84: 0 | AH84: 0 | AI84: Lote 75 | AP84: días | AR84: 0 | AS84: 0
A85: 76 | AE85: 0 | AF85: 0 | AG85: 0 | AH85: 0 | AI85: Lote 76 | AP85: días | AR85: 0 | AS85: 0
A86: 77 | AE86: 0 | AF86: 0 | AG86: 0 | AH86: 0 | AI86: Lote 77 | AP86: días | AR86: 0 | AS86: 0
A87: 78 | AE87: 0 | AF87: 0 | AG87: 0 | AH87: 0 | AI87: Lote 78 | AP87: días | AR87: 0 | AS87: 0
A88: 79 | AE88: 0 | AF88: 0 | AG88: 0 | AH88: 0 | AI88: Lote 79 | AP88: días | AR88: 0 | AS88: 0
A89: 80 | AE89: 0 | AF89: 0 | AG89: 0 | AH89: 0 | AI89: Lote 80 | AP89: días | AR89: 0 | AS89: 0
A90: 81 | AE90: 0 | AF90: 0 | AG90: 0 | AH90: 0 | AI90: Lote 81 | AP90: días | AR90: 0 | AS90: 0
A91: 82 | AE91: 0 | AF91: 0 | AG91: 0 | AH91: 0 | AI91: Lote 82 | AP91: días | AR91: 0 | AS91: 0
A92: 83 | AE92: 0 | AF92: 0 | AG92: 0 | AH92: 0 | AI92: Lote 83 | AP92: días | AR92: 0 | AS92: 0
A93: 84 | AE93: 0 | AF93: 0 | AG93: 0 | AH93: 0 | AI93: Lote 84 | AP93: días | AR93: 0 | AS93: 0
A94: 85 | AE94: 0 | AF94: 0 | AG94: 0 | AH94: 0 | AI94: Lote 85 | AP94: días | AR94: 0 | AS94: 0
A95: 86 | AE95: 0 | AF95: 0 | AG95: 0 | AH95: 0 | AI95: Lote 86 | AP95: días | AR95: 0 | AS95: 0
A96: 87 | AE96: 0 | AF96: 0 | AG96: 0 | AH96: 0 | AI96: Lote 87 | AP96: días | AR96: 0 | AS96: 0
A97: 88 | AE97: 0 | AF97: 0 | AG97: 0 | AH97: 0 | AI97: Lote 88 | AP97: días | AR97: 0 | AS97: 0
A98: 89 | AE98: 0 | AF98: 0 | AG98: 0 | AH98: 0 | AI98: Lote 89 | AP98: días | AR98: 0 | AS98: 0
A99: 90 | AE99: 0 | AF99: 0 | AG99: 0 | AH99: 0 | AI99: Lote 90 | AP99: días | AR99: 0 | AS99: 0
A100: 91 | AE100: 0 | AF100: 0 | AG100: 0 | AH100: 0 | AI100: Lote 91 | AP100: días | AR100: 0 | AS100: 0
A101: 92 | AE101: 0 | AF101: 0 | AG101: 0 | AH101: 0 | AI101: Lote 92 | AP101: días | AR101: 0 | AS101: 0
A102: 93 | AE102: 0 | AF102: 0 | AG102: 0 | AH102: 0 | AI102: Lote 93 | AP102: días | AR102: 0 | AS102: 0
A103: 94 | AE103: 0 | AF103: 0 | AG103: 0 | AH103: 0 | AI103: Lote 94 | AP103: días | AR103: 0 | AS103: 0
A104: 95 | AE104: 0 | AF104: 0 | AG104: 0 | AH104: 0 | AI104: Lote 95 | AP104: días | AR104: 0 | AS104: 0
A105: 96 | AE105: 0 | AF105: 0 | AG105: 0 | AH105: 0 | AI105: Lote 96 | AP105: días | AR105: 0 | AS105: 0
A106: 97 | H106: =IF(B106=0,"",$H$4) ->  | K106: =IF(H$5="sin dato","",IF(D106="","",D106+$H$5)) ->  | AE106: =B106 -> 0 | AF106: 0 | AG106: 0 | AH106: 0 | AI106: Lote 97 | AJ106: =IF(B106=0,"",B106&" animales") ->  | AP106: días | AR106: 0 | AS106: 0
A107: 98 | AE107: 0 | AF107: 0 | AG107: 0 | AH107: 0 | AI107: Lote 98 | AP107: días | AR107: 0 | AS107: 0
A108: 99 | AE108: 0 | AF108: 0 | AG108: 0 | AH108: 0 | AI108: Lote 99 | AP108: días | AR108: 0 | AS108: 0
A109: 100 | AE109: 0 | AF109: 0 | AG109: 0 | AH109: 0 | AI109: Lote 100 | AP109: días | AR109: 0 | AS109: 0
A110: 101 | AE110: 0 | AF110: 0 | AG110: 0 | AH110: 0 | AI110: Lote 101 | AP110: días | AR110: 0 | AS110: 0
A111: 102 | AE111: 0 | AF111: 0 | AG111: 0 | AH111: 0 | AI111: Lote 102 | AP111: días | AR111: 0 | AS111: 0
A112: 103 | AE112: 0 | AF112: 0 | AG112: 0 | AH112: 0 | AI112: Lote 103 | AP112: días | AR112: 0 | AS112: 0
A113: 104 | AE113: 0 | AF113: 0 | AG113: 0 | AH113: 0 | AI113: Lote 104 | AP113: días | AR113: 0 | AS113: 0
A114: 105 | AE114: 0 | AF114: 0 | AG114: 0 | AH114: 0 | AI114: Lote 105 | AP114: días | AR114: 0 | AS114: 0
A115: 106 | AE115: 0 | AF115: 0 | AG115: 0 | AH115: 0 | AI115: Lote 106 | AP115: días | AR115: 0 | AS115: 0
A116: 107 | AE116: 0 | AF116: 0 | AG116: 0 | AH116: 0 | AI116: Lote 107 | AP116: días | AR116: 0 | AS116: 0
A117: 108 | AE117: 0 | AF117: 0 | AG117: 0 | AH117: 0 | AI117: Lote 108 | AP117: días | AR117: 0 | AS117: 0
A118: 109 | AE118: 0 | AF118: 0 | AG118: 0 | AH118: 0 | AI118: Lote 109 | AP118: días | AR118: 0 | AS118: 0
A119: 110 | AE119: 0 | AF119: 0 | AG119: 0 | AH119: 0 | AI119: Lote 110 | AP119: días | AR119: 0 | AS119: 0
A120: 111 | AE120: 0 | AF120: 0 | AG120: 0 | AH120: 0 | AI120: Lote 111 | AP120: días | AR120: 0 | AS120: 0
A121: 112 | AE121: 0 | AF121: 0 | AG121: 0 | AH121: 0 | AI121: Lote 112 | AP121: días | AR121: 0 | AS121: 0
A122: 113 | AE122: 0 | AF122: 0 | AG122: 0 | AH122: 0 | AI122: Lote 113 | AP122: días | AR122: 0 | AS122: 0
A123: 114 | AE123: 0 | AF123: 0 | AG123: 0 | AH123: 0 | AI123: Lote 114 | AP123: días | AR123: 0 | AS123: 0
A124: 115 | AE124: 0 | AF124: 0 | AG124: 0 | AH124: 0 | AI124: Lote 115 | AP124: días | AR124: 0 | AS124: 0
A125: 116 | AE125: 0 | AF125: 0 | AG125: 0 | AH125: 0 | AI125: Lote 116 | AP125: días | AR125: 0 | AS125: 0
A126: 117 | AE126: 0 | AF126: 0 | AG126: 0 | AH126: 0 | AI126: Lote 117 | AP126: días | AR126: 0 | AS126: 0
A127: 118 | AE127: 0 | AF127: 0 | AG127: 0 | AH127: 0 | AI127: Lote 118 | AP127: días | AR127: 0 | AS127: 0
A128: 119 | AE128: 0 | AF128: 0 | AG128: 0 | AH128: 0 | AI128: Lote 119 | AP128: días | AR128: 0 | AS128: 0
A129: 120 | AE129: 0 | AF129: 0 | AG129: 0 | AH129: 0 | AI129: Lote 120 | AP129: días | AR129: 0 | AS129: 0
A130: 121 | AE130: 0 | AF130: 0 | AG130: 0 | AH130: 0 | AI130: Lote 121 | AP130: días | AR130: 0 | AS130: 0
A131: 122 | AE131: 0 | AF131: 0 | AG131: 0 | AH131: 0 | AI131: Lote 122 | AP131: días | AR131: 0 | AS131: 0
A132: 123 | AE132: 0 | AF132: 0 | AG132: 0 | AH132: 0 | AI132: Lote 123 | AP132: días | AR132: 0 | AS132: 0
A133: 124 | AE133: 0 | AF133: 0 | AG133: 0 | AH133: 0 | AI133: Lote 124 | AP133: días | AR133: 0 | AS133: 0
A134: 125 | AE134: 0 | AF134: 0 | AG134: 0 | AH134: 0 | AI134: Lote 125 | AP134: días | AR134: 0 | AS134: 0
A135: 126 | AE135: 0 | AF135: 0 | AG135: 0 | AH135: 0 | AI135: Lote 126 | AP135: días | AR135: 0 | AS135: 0
A136: 127 | AE136: 0 | AF136: 0 | AG136: 0 | AH136: 0 | AI136: Lote 127 | AP136: días | AR136: 0 | AS136: 0
A137: 128 | AE137: 0 | AF137: 0 | AG137: 0 | AH137: 0 | AI137: Lote 128 | AP137: días | AR137: 0 | AS137: 0
A138: 129 | E138: =IF($D138 ="","",IF(YEAR($D138)=$F$1,$D138,"01/01/2025")) ->  | G138: =IF($F138="","",IF(YEAR($F138)=$F$1,$F138,"31/12/2025")) ->  | H138: =IF(B138=0,"",$H$4) ->  | K138: =IF(H$5="sin dato","",IF(D138="","",D138+$H$5)) ->  | AE138: =B138 -> 0 | AF138: 0 | AG138: 0 | AH138: 0 | AI138: ="Lote "&A138 -> Lote 129 | AJ138: =IF(B138=0,"",B138&" animales") ->  | AL138: =IF(D138="","",D138) ->  | AM138: =H138 ->  | AN138: =IF(F138="","",F138) ->  | AO138: =I138 ->  | AP138: días | AR138: =IF(AH138=0,0,AO138*AH138) -> 0 | AS138: =IF(AH138=0,0,AM138*AH138) -> 0
A139: 130 | F139: =IF(D139="","",D139+H139) ->  | I139: =IF(G139="","",_xlfn.DAYS(G139,E139)) ->  | AE139: 0 | AF139: 0 | AG139: =(AE139+AF139)/2 -> 0 | AH139: =IF($AG$160=0,0,AG139/$AG$160) -> 0 | AI139: Lote 130 | AP139: =IF(AO139=0,"",AO139& " días") -> días | AR139: 0 | AS139: 0
A140: 131 | AE140: 0 | AF140: 0 | AG140: 0 | AH140: 0 | AI140: Lote 131 | AP140: días | AR140: 0 | AS140: 0
A141: 132 | AE141: 0 | AF141: 0 | AG141: 0 | AH141: 0 | AI141: Lote 132 | AP141: días | AR141: 0 | AS141: 0
A142: 133 | AE142: 0 | AF142: 0 | AG142: 0 | AH142: 0 | AI142: Lote 133 | AP142: días | AR142: 0 | AS142: 0
A143: 134 | AE143: 0 | AF143: 0 | AG143: 0 | AH143: 0 | AI143: Lote 134 | AP143: días | AR143: 0 | AS143: 0
A144: 135 | AE144: 0 | AF144: 0 | AG144: 0 | AH144: 0 | AI144: Lote 135 | AP144: días | AR144: 0 | AS144: 0
A145: 136 | AE145: 0 | AF145: 0 | AG145: 0 | AH145: 0 | AI145: Lote 136 | AP145: días | AR145: 0 | AS145: 0
A146: 137 | AE146: 0 | AF146: 0 | AG146: 0 | AH146: 0 | AI146: Lote 137 | AP146: días | AR146: 0 | AS146: 0
A147: 138 | AE147: 0 | AF147: 0 | AG147: 0 | AH147: 0 | AI147: Lote 138 | AP147: días | AR147: 0 | AS147: 0
A148: 139 | AE148: 0 | AF148: 0 | AG148: 0 | AH148: 0 | AI148: Lote 139 | AP148: días | AR148: 0 | AS148: 0
A149: 140 | AE149: 0 | AF149: 0 | AG149: 0 | AH149: 0 | AI149: Lote 140 | AP149: días | AR149: 0 | AS149: 0
A150: 141 | AE150: 0 | AF150: 0 | AG150: 0 | AH150: 0 | AI150: Lote 141 | AP150: días | AR150: 0 | AS150: 0
A151: 142 | AE151: 0 | AF151: 0 | AG151: 0 | AH151: 0 | AI151: Lote 142 | AP151: días | AR151: 0 | AS151: 0
A152: 143 | AE152: 0 | AF152: 0 | AG152: 0 | AH152: 0 | AI152: Lote 143 | AP152: días | AR152: 0 | AS152: 0
A153: 144 | AE153: 0 | AF153: 0 | AG153: 0 | AH153: 0 | AI153: Lote 144 | AP153: días | AR153: 0 | AS153: 0
A154: 145 | AE154: 0 | AF154: 0 | AG154: 0 | AH154: 0 | AI154: Lote 145 | AP154: días | AR154: 0 | AS154: 0
A155: 146 | AE155: 0 | AF155: 0 | AG155: 0 | AH155: 0 | AI155: Lote 146 | AP155: días | AR155: 0 | AS155: 0
A156: 147 | AE156: 0 | AF156: 0 | AG156: 0 | AH156: 0 | AI156: Lote 147 | AP156: días | AR156: 0 | AS156: 0
A157: 148 | AE157: 0 | AF157: 0 | AG157: 0 | AH157: 0 | AI157: Lote 148 | AP157: días | AR157: 0 | AS157: 0
A158: 149 | AE158: 0 | AF158: 0 | AG158: 0 | AH158: 0 | AI158: Lote 149 | AP158: días | AR158: 0 | AS158: 0
A159: 150 | AE159: 0 | AF159: 0 | AG159: 0 | AH159: 0 | AI159: Lote 150 | AP159: días | AR159: 0 | AS159: 0
AE160: =SUM(AE10:AE159) -> 0 | AF160: =SUM(AF10:AF159) -> 0 | AG160: =ROUND(SUM(AG10:AG159),0) -> 0 | AH160: =SUM(AH10:AH159) -> 0 | AR160: =ROUND(SUM(AR10:AR159),0) -> 0 | AS160: =ROUND(SUM(AS10:AS159),0) -> 0

Sheet Categoria 7
B1: Año de declaración: | F1: =Base!B12 -> 2025 | M1: Datos a grabar en el paso 2 de ECOGAN | S1: Datos a grabar en el paso 4 de ECOGAN
Q2: nº total de animales que entran de esta categoría productiva: | R2: =AE160 -> 0 | W2: Periodo productivo total medio de la categoría productiva: | X2: =H4 -> 0
A3: Categoría productiva: | D3: Hembras adultas de descarte o desvieje | Q3: nº total de animales vivos que finalizan de esta categoría productiva: | R3: =AF160 -> 0 | W3: días medios presentes de la categoría productiva: | X3: =AR160 -> 0
F4: Indique el periodo productivo medio de la categoría productiva (días): | I4: *
F5: Periodo productivo medio de referencia (días): | H5: =IFERROR(VLOOKUP(D3,Base!A2:B7,2,FALSE),"sin dato") -> sin dato | I5: =IF(H5="sin dato","","("&ROUND(H5*0.9,0) &" - "&ROUND(H5*1.1,0)&")") ->  | N5: Si desea borrar datos grabados anteriormente, pulse aquí ¡Cuidado! Perderá toda la información
A6: * | B6: Número de días que por término medio los animales de una linea productiva permanecen en la granja desde que entran hasta que salen de ese alojamiento, de modo que el periodo es por ciclo productivo y no por año natural.
M7: =Base!F2 -> 45292 | N7: =Base!H3 -> 46387
A8: u | B8: Lote es el grupo de animales que van entrando de forma escalonada a los corrales. | M8: Diagrama de entradas y salidas
A9: lote u | B9: nº de animales que entran en cada lote | C9: nº de animales vivos que finalizan en cada lote | D9: Fecha de entrada del lote (dd/mm/aa) | F9: Fecha de finalización del lote (dd/mm/aa) | H9: Periodo productivo total medio (días) | I9: ="días presentes del lote en el año " & F1 -> días presentes del lote en el año 2025 | K9: =IF(H5="sin dato","","Fecha fin según fecha entrada y periodo de "&H5&" días") ->  | AI9: lote | AL9: Fecha de entrada del lote | AM9: Periodo productivo total | AN9: Fecha de entrada del lote | AO9: ="días presentes del lote en el año " & AL1 -> días presentes del lote en el año | AR9: ="días presentes del lote en el año " & AO1 -> días presentes del lote en el año | AS9: Periodo productivo total
A10: 1 | E10: =IF($D10 ="","",IF(YEAR($D10)=$F$1,$D10,"01/01/2025")) ->  | F10: =IF(D10="","",D10+H10) ->  | G10: =IF($F10="","",IF(YEAR($F10)=$F$1,$F10,"31/12/2025")) ->  | H10: =IF(B10=0,"",$H$4) ->  | I10: =IF(G10="","",_xlfn.DAYS(G10,E10)) ->  | K10: =IF(H$5="sin dato","",IF(D10="","",D10+$H$5)) ->  | AE10: =B10 -> 0 | AF10: 0 | AG10: =(AE10+AF10)/2 -> 0 | AH10: =IF($AG$160=0,0,AG10/$AG$160) -> 0 | AI10: ="Lote "&A10 -> Lote 1 | AJ10: =IF(B10=0,"",B10&" animales") ->  | AL10: =IF(D10="","",D10) ->  | AM10: =H10 ->  | AN10: =IF(F10="","",F10) ->  | AO10: =I10 ->  | AP10: =IF(AO10=0,"",AO10& " días") -> días | AR10: =IF(AH10=0,0,AO10*AH10) -> 0 | AS10: =IF(AH10=0,0,AM10*AH10) -> 0
A11: 2 | F11: =IF(D11="","",D11+H11) ->  | I11: =IF(G11="","",_xlfn.DAYS(G11,E11)) ->  | AE11: 0 | AF11: 0 | AG11: =(AE11+AF11)/2 -> 0 | AH11: =IF($AG$160=0,0,AG11/$AG$160) -> 0 | AI11: Lote 2 | AP11: =IF(AO11=0,"",AO11& " días") -> días | AR11: 0 | AS11: 0
A12: 3 | AE12: 0 | AF12: 0 | AG12: 0 | AH12: 0 | AI12: Lote 3 | AP12: días | AR12: 0 | AS12: 0
A13: 4 | AE13: 0 | AF13: 0 | AG13: 0 | AH13: 0 | AI13: Lote 4 | AP13: días | AR13: 0 | AS13: 0
A14: 5 | AE14: 0 | AF14: 0 | AG14: 0 | AH14: 0 | AI14: Lote 5 | AP14: días | AR14: 0 | AS14: 0
A15: 6 | AE15: 0 | AF15: 0 | AG15: 0 | AH15: 0 | AI15: Lote 6 | AP15: días | AR15: 0 | AS15: 0
A16: 7 | AE16: 0 | AF16: 0 | AG16: 0 | AH16: 0 | AI16: Lote 7 | AP16: días | AR16: 0 | AS16: 0
A17: 8 | AE17: 0 | AF17: 0 | AG17: 0 | AH17: 0 | AI17: Lote 8 | AP17: días | AR17: 0 | AS17: 0
A18: 9 | AE18: 0 | AF18: 0 | AG18: 0 | AH18: 0 | AI18: Lote 9 | AP18: días | AR18: 0 | AS18: 0
A19: 10 | AE19: 0 | AF19: 0 | AG19: 0 | AH19: 0 | AI19: Lote 10 | AP19: días | AR19: 0 | AS19: 0
A20: 11 | AE20: 0 | AF20: 0 | AG20: 0 | AH20: 0 | AI20: Lote 11 | AP20: días | AR20: 0 | AS20: 0
A21: 12 | AE21: 0 | AF21: 0 | AG21: 0 | AH21: 0 | AI21: Lote 12 | AP21: días | AR21: 0 | AS21: 0
A22: 13 | AE22: 0 | AF22: 0 | AG22: 0 | AH22: 0 | AI22: Lote 13 | AP22: días | AR22: 0 | AS22: 0
A23: 14 | AE23: 0 | AF23: 0 | AG23: 0 | AH23: 0 | AI23: Lote 14 | AP23: días | AR23: 0 | AS23: 0
A24: 15 | AE24: 0 | AF24: 0 | AG24: 0 | AH24: 0 | AI24: Lote 15 | AP24: días | AR24: 0 | AS24: 0
A25: 16 | AE25: 0 | AF25: 0 | AG25: 0 | AH25: 0 | AI25: Lote 16 | AP25: días | AR25: 0 | AS25: 0
A26: 17 | AE26: 0 | AF26: 0 | AG26: 0 | AH26: 0 | AI26: Lote 17 | AP26: días | AR26: 0 | AS26: 0
A27: 18 | AE27: 0 | AF27: 0 | AG27: 0 | AH27: 0 | AI27: Lote 18 | AP27: días | AR27: 0 | AS27: 0
A28: 19 | AE28: 0 | AF28: 0 | AG28: 0 | AH28: 0 | AI28: Lote 19 | AP28: días | AR28: 0 | AS28: 0
A29: 20 | AE29: 0 | AF29: 0 | AG29: 0 | AH29: 0 | AI29: Lote 20 | AP29: días | AR29: 0 | AS29: 0
A30: 21 | AE30: 0 | AF30: 0 | AG30: 0 | AH30: 0 | AI30: Lote 21 | AP30: días | AR30: 0 | AS30: 0
A31: 22 | AE31: 0 | AF31: 0 | AG31: 0 | AH31: 0 | AI31: Lote 22 | AP31: días | AR31: 0 | AS31: 0
A32: 23 | AE32: 0 | AF32: 0 | AG32: 0 | AH32: 0 | AI32: Lote 23 | AP32: días | AR32: 0 | AS32: 0
A33: 24 | AE33: 0 | AF33: 0 | AG33: 0 | AH33: 0 | AI33: Lote 24 | AP33: días | AR33: 0 | AS33: 0
A34: 25 | AE34: 0 | AF34: 0 | AG34: 0 | AH34: 0 | AI34: Lote 25 | AP34: días | AR34: 0 | AS34: 0
A35: 26 | AE35: 0 | AF35: 0 | AG35: 0 | AH35: 0 | AI35: Lote 26 | AP35: días | AR35: 0 | AS35: 0
A36: 27 | AE36: 0 | AF36: 0 | AG36: 0 | AH36: 0 | AI36: Lote 27 | AP36: días | AR36: 0 | AS36: 0
A37: 28 | AE37: 0 | AF37: 0 | AG37: 0 | AH37: 0 | AI37: Lote 28 | AP37: días | AR37: 0 | AS37: 0
A38: 29 | AE38: 0 | AF38: 0 | AG38: 0 | AH38: 0 | AI38: Lote 29 | AP38: días | AR38: 0 | AS38: 0
A39: 30 | AE39: 0 | AF39: 0 | AG39: 0 | AH39: 0 | AI39: Lote 30 | AP39: días | AR39: 0 | AS39: 0
A40: 31 | AE40: 0 | AF40: 0 | AG40: 0 | AH40: 0 | AI40: Lote 31 | AP40: días | AR40: 0 | AS40: 0
A41: 32 | AE41: 0 | AF41: 0 | AG41: 0 | AH41: 0 | AI41: Lote 32 | AP41: días | AR41: 0 | AS41: 0
A42: 33 | H42: =IF(B42=0,"",$H$4) ->  | K42: =IF(H$5="sin dato","",IF(D42="","",D42+$H$5)) ->  | AE42: =B42 -> 0 | AF42: 0 | AG42: 0 | AH42: 0 | AI42: Lote 33 | AJ42: =IF(B42=0,"",B42&" animales") ->  | AP42: días | AR42: 0 | AS42: 0
A43: 34 | AE43: 0 | AF43: 0 | AG43: 0 | AH43: 0 | AI43: Lote 34 | AP43: días | AR43: 0 | AS43: 0
A44: 35 | AE44: 0 | AF44: 0 | AG44: 0 | AH44: 0 | AI44: Lote 35 | AP44: días | AR44: 0 | AS44: 0
A45: 36 | AE45: 0 | AF45: 0 | AG45: 0 | AH45: 0 | AI45: Lote 36 | AP45: días | AR45: 0 | AS45: 0
A46: 37 | AE46: 0 | AF46: 0 | AG46: 0 | AH46: 0 | AI46: Lote 37 | AP46: días | AR46: 0 | AS46: 0
A47: 38 | AE47: 0 | AF47: 0 | AG47: 0 | AH47: 0 | AI47: Lote 38 | AP47: días | AR47: 0 | AS47: 0
A48: 39 | AE48: 0 | AF48: 0 | AG48: 0 | AH48: 0 | AI48: Lote 39 | AP48: días | AR48: 0 | AS48: 0
A49: 40 | AE49: 0 | AF49: 0 | AG49: 0 | AH49: 0 | AI49: Lote 40 | AP49: días | AR49: 0 | AS49: 0
A50: 41 | AE50: 0 | AF50: 0 | AG50: 0 | AH50: 0 | AI50: Lote 41 | AP50: días | AR50: 0 | AS50: 0
A51: 42 | AE51: 0 | AF51: 0 | AG51: 0 | AH51: 0 | AI51: Lote 42 | AP51: días | AR51: 0 | AS51: 0
A52: 43 | AE52: 0 | AF52: 0 | AG52: 0 | AH52: 0 | AI52: Lote 43 | AP52: días | AR52: 0 | AS52: 0
A53: 44 | AE53: 0 | AF53: 0 | AG53: 0 | AH53: 0 | AI53: Lote 44 | AP53: días | AR53: 0 | AS53: 0
A54: 45 | AE54: 0 | AF54: 0 | AG54: 0 | AH54: 0 | AI54: Lote 45 | AP54: días | AR54: 0 | AS54: 0
A55: 46 | AE55: 0 | AF55: 0 | AG55: 0 | AH55: 0 | AI55: Lote 46 | AP55: días | AR55: 0 | AS55: 0
A56: 47 | AE56: 0 | AF56: 0 | AG56: 0 | AH56: 0 | AI56: Lote 47 | AP56: días | AR56: 0 | AS56: 0
A57: 48 | AE57: 0 | AF57: 0 | AG57: 0 | AH57: 0 | AI57: Lote 48 | AP57: días | AR57: 0 | AS57: 0
A58: 49 | AE58: 0 | AF58: 0 | AG58: 0 | AH58: 0 | AI58: Lote 49 | AP58: días | AR58: 0 | AS58: 0
A59: 50 | AE59: 0 | AF59: 0 | AG59: 0 | AH59: 0 | AI59: Lote 50 | AP59: días | AR59: 0 | AS59: 0
A60: 51 | AE60: 0 | AF60: 0 | AG60: 0 | AH60: 0 | AI60: Lote 51 | AP60: días | AR60: 0 | AS60: 0
A61: 52 | AE61: 0 | AF61: 0 | AG61: 0 | AH61: 0 | AI61: Lote 52 | AP61: días | AR61: 0 | AS61: 0
A62: 53 | AE62: 0 | AF62: 0 | AG62: 0 | AH62: 0 | AI62: Lote 53 | AP62: días | AR62: 0 | AS62: 0
A63: 54 | AE63: 0 | AF63: 0 | AG63: 0 | AH63: 0 | AI63: Lote 54 | AP63: días | AR63: 0 | AS63: 0
A64: 55 | AE64: 0 | AF64: 0 | AG64: 0 | AH64: 0 | AI64: Lote 55 | AP64: días | AR64: 0 | AS64: 0
A65: 56 | AE65: 0 | AF65: 0 | AG65: 0 | AH65: 0 | AI65: Lote 56 | AP65: días | AR65: 0 | AS65: 0
A66: 57 | AE66: 0 | AF66: 0 | AG66: 0 | AH66: 0 | AI66: Lote 57 | AP66: días | AR66: 0 | AS66: 0
A67: 58 | AE67: 0 | AF67: 0 | AG67: 0 | AH67: 0 | AI67: Lote 58 | AP67: días | AR67: 0 | AS67: 0
A68: 59 | AE68: 0 | AF68: 0 | AG68: 0 | AH68: 0 | AI68: Lote 59 | AP68: días | AR68: 0 | AS68: 0
A69: 60 | AE69: 0 | AF69: 0 | AG69: 0 | AH69: 0 | AI69: Lote 60 | AP69: días | AR69: 0 | AS69: 0
A70: 61 | AE70: 0 | AF70: 0 | AG70: 0 | AH70: 0 | AI70: Lote 61 | AP70: días | AR70: 0 | AS70: 0
A71: 62 | AE71: 0 | AF71: 0 | AG71: 0 | AH71: 0 | AI71: Lote 62 | AP71: días | AR71: 0 | AS71: 0
A72: 63 | AE72: 0 | AF72: 0 | AG72: 0 | AH72: 0 | AI72: Lote 63 | AP72: días | AR72: 0 | AS72: 0
A73: 64 | AE73: 0 | AF73: 0 | AG73: 0 | AH73: 0 | AI73: Lote 64 | AP73: días | AR73: 0 | AS73: 0
A74: 65 | E74: =IF($D74 ="","",IF(YEAR($D74)=$F$1,$D74,"01/01/2025")) ->  | G74: =IF($F74="","",IF(YEAR($F74)=$F$1,$F74,"31/12/2025")) ->  | H74: =IF(B74=0,"",$H$4) ->  | K74: =IF(H$5="sin dato","",IF(D74="","",D74+$H$5)) ->  | AE74: =B74 -> 0 | AF74: 0 | AG74: 0 | AH74: 0 | AI74: ="Lote "&A74 -> Lote 65 | AJ74: =IF(B74=0,"",B74&" animales") ->  | AL74: =IF(D74="","",D74) ->  | AM74: =H74 ->  | AN74: =IF(F74="","",F74) ->  | AO74: =I74 ->  | AP74: días | AR74: =IF(AH74=0,0,AO74*AH74) -> 0 | AS74: =IF(AH74=0,0,AM74*AH74) -> 0
A75: 66 | F75: =IF(D75="","",D75+H75) ->  | I75: =IF(G75="","",_xlfn.DAYS(G75,E75)) ->  | AE75: 0 | AF75: 0 | AG75: =(AE75+AF75)/2 -> 0 | AH75: =IF($AG$160=0,0,AG75/$AG$160) -> 0 | AI75: Lote 66 | AP75: =IF(AO75=0,"",AO75& " días") -> días | AR75: 0 | AS75: 0
A76: 67 | AE76: 0 | AF76: 0 | AG76: 0 | AH76: 0 | AI76: Lote 67 | AP76: días | AR76: 0 | AS76: 0
A77: 68 | AE77: 0 | AF77: 0 | AG77: 0 | AH77: 0 | AI77: Lote 68 | AP77: días | AR77: 0 | AS77: 0
A78: 69 | AE78: 0 | AF78: 0 | AG78: 0 | AH78: 0 | AI78: Lote 69 | AP78: días | AR78: 0 | AS78: 0
A79: 70 | AE79: 0 | AF79: 0 | AG79: 0 | AH79: 0 | AI79: Lote 70 | AP79: días | AR79: 0 | AS79: 0
A80: 71 | AE80: 0 | AF80: 0 | AG80: 0 | AH80: 0 | AI80: Lote 71 | AP80: días | AR80: 0 | AS80: 0
A81: 72 | AE81: 0 | AF81: 0 | AG81: 0 | AH81: 0 | AI81: Lote 72 | AP81: días | AR81: 0 | AS81: 0
A82: 73 | AE82: 0 | AF82: 0 | AG82: 0 | AH82: 0 | AI82: Lote 73 | AP82: días | AR82: 0 | AS82: 0
A83: 74 | AE83: 0 | AF83: 0 | AG83: 0 | AH83: 0 | AI83: Lote 74 | AP83: días | AR83: 0 | AS83: 0
A84: 75 | AE84: 0 | AF84: 0 | AG84: 0 | AH84: 0 | AI84: Lote 75 | AP84: días | AR84: 0 | AS84: 0
A85: 76 | AE85: 0 | AF85: 0 | AG85: 0 | AH85: 0 | AI85: Lote 76 | AP85: días | AR85: 0 | AS85: 0
A86: 77 | AE86: 0 | AF86: 0 | AG86: 0 | AH86: 0 | AI86: Lote 77 | AP86: días | AR86: 0 | AS86: 0
A87: 78 | AE87: 0 | AF87: 0 | AG87: 0 | AH87: 0 | AI87: Lote 78 | AP87: días | AR87: 0 | AS87: 0
A88: 79 | AE88: 0 | AF88: 0 | AG88: 0 | AH88: 0 | AI88: Lote 79 | AP88: días | AR88: 0 | AS88: 0
A89: 80 | AE89: 0 | AF89: 0 | AG89: 0 | AH89: 0 | AI89: Lote 80 | AP89: días | AR89: 0 | AS89: 0
A90: 81 | AE90: 0 | AF90: 0 | AG90: 0 | AH90: 0 | AI90: Lote 81 | AP90: días | AR90: 0 | AS90: 0
A91: 82 | AE91: 0 | AF91: 0 | AG91: 0 | AH91: 0 | AI91: Lote 82 | AP91: días | AR91: 0 | AS91: 0
A92: 83 | AE92: 0 | AF92: 0 | AG92: 0 | AH92: 0 | AI92: Lote 83 | AP92: días | AR92: 0 | AS92: 0
A93: 84 | AE93: 0 | AF93: 0 | AG93: 0 | AH93: 0 | AI93: Lote 84 | AP93: días | AR93: 0 | AS93: 0
A94: 85 | AE94: 0 | AF94: 0 | AG94: 0 | AH94: 0 | AI94: Lote 85 | AP94: días | AR94: 0 | AS94: 0
A95: 86 | AE95: 0 | AF95: 0 | AG95: 0 | AH95: 0 | AI95: Lote 86 | AP95: días | AR95: 0 | AS95: 0
A96: 87 | AE96: 0 | AF96: 0 | AG96: 0 | AH96: 0 | AI96: Lote 87 | AP96: días | AR96: 0 | AS96: 0
A97: 88 | AE97: 0 | AF97: 0 | AG97: 0 | AH97: 0 | AI97: Lote 88 | AP97: días | AR97: 0 | AS97: 0
A98: 89 | AE98: 0 | AF98: 0 | AG98: 0 | AH98: 0 | AI98: Lote 89 | AP98: días | AR98: 0 | AS98: 0
A99: 90 | AE99: 0 | AF99: 0 | AG99: 0 | AH99: 0 | AI99: Lote 90 | AP99: días | AR99: 0 | AS99: 0
A100: 91 | AE100: 0 | AF100: 0 | AG100: 0 | AH100: 0 | AI100: Lote 91 | AP100: días | AR100: 0 | AS100: 0
A101: 92 | AE101: 0 | AF101: 0 | AG101: 0 | AH101: 0 | AI101: Lote 92 | AP101: días | AR101: 0 | AS101: 0
A102: 93 | AE102: 0 | AF102: 0 | AG102: 0 | AH102: 0 | AI102: Lote 93 | AP102: días | AR102: 0 | AS102: 0
A103: 94 | AE103: 0 | AF103: 0 | AG103: 0 | AH103: 0 | AI103: Lote 94 | AP103: días | AR103: 0 | AS103: 0
A104: 95 | AE104: 0 | AF104: 0 | AG104: 0 | AH104: 0 | AI104: Lote 95 | AP104: días | AR104: 0 | AS104: 0
A105: 96 | AE105: 0 | AF105: 0 | AG105: 0 | AH105: 0 | AI105: Lote 96 | AP105: días | AR105: 0 | AS105: 0
A106: 97 | H106: =IF(B106=0,"",$H$4) ->  | K106: =IF(H$5="sin dato","",IF(D106="","",D106+$H$5)) ->  | AE106: =B106 -> 0 | AF106: 0 | AG106: 0 | AH106: 0 | AI106: Lote 97 | AJ106: =IF(B106=0,"",B106&" animales") ->  | AP106: días | AR106: 0 | AS106: 0
A107: 98 | AE107: 0 | AF107: 0 | AG107: 0 | AH107: 0 | AI107: Lote 98 | AP107: días | AR107: 0 | AS107: 0
A108: 99 | AE108: 0 | AF108: 0 | AG108: 0 | AH108: 0 | AI108: Lote 99 | AP108: días | AR108: 0 | AS108: 0
A109: 100 | AE109: 0 | AF109: 0 | AG109: 0 | AH109: 0 | AI109: Lote 100 | AP109: días | AR109: 0 | AS109: 0
A110: 101 | AE110: 0 | AF110: 0 | AG110: 0 | AH110: 0 | AI110: Lote 101 | AP110: días | AR110: 0 | AS110: 0
A111: 102 | AE111: 0 | AF111: 0 | AG111: 0 | AH111: 0 | AI111: Lote 102 | AP111: días | AR111: 0 | AS111: 0
A112: 103 | AE112: 0 | AF112: 0 | AG112: 0 | AH112: 0 | AI112: Lote 103 | AP112: días | AR112: 0 | AS112: 0
A113: 104 | AE113: 0 | AF113: 0 | AG113: 0 | AH113: 0 | AI113: Lote 104 | AP113: días | AR113: 0 | AS113: 0
A114: 105 | AE114: 0 | AF114: 0 | AG114: 0 | AH114: 0 | AI114: Lote 105 | AP114: días | AR114: 0 | AS114: 0
A115: 106 | AE115: 0 | AF115: 0 | AG115: 0 | AH115: 0 | AI115: Lote 106 | AP115: días | AR115: 0 | AS115: 0
A116: 107 | AE116: 0 | AF116: 0 | AG116: 0 | AH116: 0 | AI116: Lote 107 | AP116: días | AR116: 0 | AS116: 0
A117: 108 | AE117: 0 | AF117: 0 | AG117: 0 | AH117: 0 | AI117: Lote 108 | AP117: días | AR117: 0 | AS117: 0
A118: 109 | AE118: 0 | AF118: 0 | AG118: 0 | AH118: 0 | AI118: Lote 109 | AP118: días | AR118: 0 | AS118: 0
A119: 110 | AE119: 0 | AF119: 0 | AG119: 0 | AH119: 0 | AI119: Lote 110 | AP119: días | AR119: 0 | AS119: 0
A120: 111 | AE120: 0 | AF120: 0 | AG120: 0 | AH120: 0 | AI120: Lote 111 | AP120: días | AR120: 0 | AS120: 0
A121: 112 | AE121: 0 | AF121: 0 | AG121: 0 | AH121: 0 | AI121: Lote 112 | AP121: días | AR121: 0 | AS121: 0
A122: 113 | AE122: 0 | AF122: 0 | AG122: 0 | AH122: 0 | AI122: Lote 113 | AP122: días | AR122: 0 | AS122: 0
A123: 114 | AE123: 0 | AF123: 0 | AG123: 0 | AH123: 0 | AI123: Lote 114 | AP123: días | AR123: 0 | AS123: 0
A124: 115 | AE124: 0 | AF124: 0 | AG124: 0 | AH124: 0 | AI124: Lote 115 | AP124: días | AR124: 0 | AS124: 0
A125: 116 | AE125: 0 | AF125: 0 | AG125: 0 | AH125: 0 | AI125: Lote 116 | AP125: días | AR125: 0 | AS125: 0
A126: 117 | AE126: 0 | AF126: 0 | AG126: 0 | AH126: 0 | AI126: Lote 117 | AP126: días | AR126: 0 | AS126: 0
A127: 118 | AE127: 0 | AF127: 0 | AG127: 0 | AH127: 0 | AI127: Lote 118 | AP127: días | AR127: 0 | AS127: 0
A128: 119 | AE128: 0 | AF128: 0 | AG128: 0 | AH128: 0 | AI128: Lote 119 | AP128: días | AR128: 0 | AS128: 0
A129: 120 | AE129: 0 | AF129: 0 | AG129: 0 | AH129: 0 | AI129: Lote 120 | AP129: días | AR129: 0 | AS129: 0
A130: 121 | AE130: 0 | AF130: 0 | AG130: 0 | AH130: 0 | AI130: Lote 121 | AP130: días | AR130: 0 | AS130: 0
A131: 122 | AE131: 0 | AF131: 0 | AG131: 0 | AH131: 0 | AI131: Lote 122 | AP131: días | AR131: 0 | AS131: 0
A132: 123 | AE132: 0 | AF132: 0 | AG132: 0 | AH132: 0 | AI132: Lote 123 | AP132: días | AR132: 0 | AS132: 0
A133: 124 | AE133: 0 | AF133: 0 | AG133: 0 | AH133: 0 | AI133: Lote 124 | AP133: días | AR133: 0 | AS133: 0
A134: 125 | AE134: 0 | AF134: 0 | AG134: 0 | AH134: 0 | AI134: Lote 125 | AP134: días | AR134: 0 | AS134: 0
A135: 126 | AE135: 0 | AF135: 0 | AG135: 0 | AH135: 0 | AI135: Lote 126 | AP135: días | AR135: 0 | AS135: 0
A136: 127 | AE136: 0 | AF136: 0 | AG136: 0 | AH136: 0 | AI136: Lote 127 | AP136: días | AR136: 0 | AS136: 0
A137: 128 | AE137: 0 | AF137: 0 | AG137: 0 | AH137: 0 | AI137: Lote 128 | AP137: días | AR137: 0 | AS137: 0
A138: 129 | E138: =IF($D138 ="","",IF(YEAR($D138)=$F$1,$D138,"01/01/2025")) ->  | G138: =IF($F138="","",IF(YEAR($F138)=$F$1,$F138,"31/12/2025")) ->  | H138: =IF(B138=0,"",$H$4) ->  | K138: =IF(H$5="sin dato","",IF(D138="","",D138+$H$5)) ->  | AE138: =B138 -> 0 | AF138: 0 | AG138: 0 | AH138: 0 | AI138: ="Lote "&A138 -> Lote 129 | AJ138: =IF(B138=0,"",B138&" animales") ->  | AL138: =IF(D138="","",D138) ->  | AM138: =H138 ->  | AN138: =IF(F138="","",F138) ->  | AO138: =I138 ->  | AP138: días | AR138: =IF(AH138=0,0,AO138*AH138) -> 0 | AS138: =IF(AH138=0,0,AM138*AH138) -> 0
A139: 130 | F139: =IF(D139="","",D139+H139) ->  | I139: =IF(G139="","",_xlfn.DAYS(G139,E139)) ->  | AE139: 0 | AF139: 0 | AG139: =(AE139+AF139)/2 -> 0 | AH139: =IF($AG$160=0,0,AG139/$AG$160) -> 0 | AI139: Lote 130 | AP139: =IF(AO139=0,"",AO139& " días") -> días | AR139: 0 | AS139: 0
A140: 131 | AE140: 0 | AF140: 0 | AG140: 0 | AH140: 0 | AI140: Lote 131 | AP140: días | AR140: 0 | AS140: 0
A141: 132 | AE141: 0 | AF141: 0 | AG141: 0 | AH141: 0 | AI141: Lote 132 | AP141: días | AR141: 0 | AS141: 0
A142: 133 | AE142: 0 | AF142: 0 | AG142: 0 | AH142: 0 | AI142: Lote 133 | AP142: días | AR142: 0 | AS142: 0
A143: 134 | AE143: 0 | AF143: 0 | AG143: 0 | AH143: 0 | AI143: Lote 134 | AP143: días | AR143: 0 | AS143: 0
A144: 135 | AE144: 0 | AF144: 0 | AG144: 0 | AH144: 0 | AI144: Lote 135 | AP144: días | AR144: 0 | AS144: 0
A145: 136 | AE145: 0 | AF145: 0 | AG145: 0 | AH145: 0 | AI145: Lote 136 | AP145: días | AR145: 0 | AS145: 0
A146: 137 | AE146: 0 | AF146: 0 | AG146: 0 | AH146: 0 | AI146: Lote 137 | AP146: días | AR146: 0 | AS146: 0
A147: 138 | AE147: 0 | AF147: 0 | AG147: 0 | AH147: 0 | AI147: Lote 138 | AP147: días | AR147: 0 | AS147: 0
A148: 139 | AE148: 0 | AF148: 0 | AG148: 0 | AH148: 0 | AI148: Lote 139 | AP148: días | AR148: 0 | AS148: 0
A149: 140 | AE149: 0 | AF149: 0 | AG149: 0 | AH149: 0 | AI149: Lote 140 | AP149: días | AR149: 0 | AS149: 0
A150: 141 | AE150: 0 | AF150: 0 | AG150: 0 | AH150: 0 | AI150: Lote 141 | AP150: días | AR150: 0 | AS150: 0
A151: 142 | AE151: 0 | AF151: 0 | AG151: 0 | AH151: 0 | AI151: Lote 142 | AP151: días | AR151: 0 | AS151: 0
A152: 143 | AE152: 0 | AF152: 0 | AG152: 0 | AH152: 0 | AI152: Lote 143 | AP152: días | AR152: 0 | AS152: 0
A153: 144 | AE153: 0 | AF153: 0 | AG153: 0 | AH153: 0 | AI153: Lote 144 | AP153: días | AR153: 0 | AS153: 0
A154: 145 | AE154: 0 | AF154: 0 | AG154: 0 | AH154: 0 | AI154: Lote 145 | AP154: días | AR154: 0 | AS154: 0
A155: 146 | AE155: 0 | AF155: 0 | AG155: 0 | AH155: 0 | AI155: Lote 146 | AP155: días | AR155: 0 | AS155: 0
A156: 147 | AE156: 0 | AF156: 0 | AG156: 0 | AH156: 0 | AI156: Lote 147 | AP156: días | AR156: 0 | AS156: 0
A157: 148 | AE157: 0 | AF157: 0 | AG157: 0 | AH157: 0 | AI157: Lote 148 | AP157: días | AR157: 0 | AS157: 0
A158: 149 | AE158: 0 | AF158: 0 | AG158: 0 | AH158: 0 | AI158: Lote 149 | AP158: días | AR158: 0 | AS158: 0
A159: 150 | AE159: 0 | AF159: 0 | AG159: 0 | AH159: 0 | AI159: Lote 150 | AP159: días | AR159: 0 | AS159: 0
AE160: =SUM(AE10:AE159) -> 0 | AF160: =SUM(AF10:AF159) -> 0 | AG160: =ROUND(SUM(AG10:AG159),0) -> 0 | AH160: =SUM(AH10:AH159) -> 0 | AR160: =ROUND(SUM(AR10:AR159),0) -> 0 | AS160: =ROUND(SUM(AS10:AS159),0) -> 0

Sheet Categoria 8
B1: Año de declaración: | F1: =Base!B12 -> 2025 | M1: Datos a grabar en el paso 2 de ECOGAN | S1: Datos a grabar en el paso 4 de ECOGAN
Q2: nº total de animales que entran de esta categoría productiva: | R2: =AE160 -> 0 | W2: Periodo productivo total medio de la categoría productiva: | X2: =H4 -> 0
A3: Categoría productiva: | D3: Cebones/Bueyes/Sementales de desvieje | Q3: nº total de animales vivos que finalizan de esta categoría productiva: | R3: =AF160 -> 0 | W3: días medios presentes de la categoría productiva: | X3: =AR160 -> 0
F4: Indique el periodo productivo medio de la categoría productiva (días): | I4: * | X4: =IF(X3>X2,"Los días medios presentes no deben superar el periodo productivo total medio. Revise que no haya casillas sombreadas en amarillo en la fecha de finalización de los lotes","") -> 
F5: Periodo productivo medio de referencia (días): | H5: =IFERROR(VLOOKUP(D3,Base!A2:B7,2,FALSE),"sin dato") -> sin dato | I5: =IF(H5="sin dato","","("&ROUND(H5*0.9,0) &" - "&ROUND(H5*1.1,0)&")") ->  | N5: Si desea borrar datos grabados anteriormente, pulse aquí ¡Cuidado! Perderá toda la información
A6: * | B6: Número de días que por término medio los animales de una linea productiva permanecen en la granja desde que entran hasta que salen de ese alojamiento, de modo que el periodo es por ciclo productivo y no por año natural.
M7: =Base!F2 -> 45292 | N7: =Base!H3 -> 46387
A8: u | B8: Lote es el grupo de animales que van entrando de forma escalonada a los corrales. | M8: Diagrama de entradas y salidas
A9: lote u | B9: nº de animales que entran en cada lote | C9: nº de animales vivos que finalizan en cada lote | D9: Fecha de entrada del lote (dd/mm/aa) | F9: Fecha de finalización del lote (dd/mm/aa) | H9: Periodo productivo total medio (días) | I9: ="días presentes del lote en el año " & F1 -> días presentes del lote en el año 2025 | K9: =IF(H5="sin dato","","Fecha fin según fecha entrada y periodo de "&H5&" días") ->  | AI9: lote | AL9: Fecha de entrada del lote | AM9: Periodo productivo total | AN9: Fecha de entrada del lote | AO9: ="días presentes del lote en el año " & AL1 -> días presentes del lote en el año | AR9: ="días presentes del lote en el año " & AO1 -> días presentes del lote en el año | AS9: Periodo productivo total
A10: 1 | E10: =IF($D10 ="","",IF(YEAR($D10)=$F$1,$D10,"01/01/2025")) ->  | F10: =IF(D10="","",D10+H10) ->  | G10: =IF($F10="","",IF(YEAR($F10)=$F$1,$F10,"31/12/2025")) ->  | H10: =IF(B10=0,"",$H$4) ->  | I10: =IF(G10="","",_xlfn.DAYS(G10,E10)) ->  | K10: =IF(H$5="sin dato","",IF(D10="","",D10+$H$5)) ->  | AE10: =B10 -> 0 | AF10: 0 | AG10: =(AE10+AF10)/2 -> 0 | AH10: =IF($AG$160=0,0,AG10/$AG$160) -> 0 | AI10: ="Lote "&A10 -> Lote 1 | AJ10: =IF(B10=0,"",B10&" animales") ->  | AL10: =IF(D10="","",D10) ->  | AM10: =H10 ->  | AN10: =IF(F10="","",F10) ->  | AO10: =I10 ->  | AP10: =IF(AO10=0,"",AO10& " días") -> días | AR10: =IF(AH10=0,0,AO10*AH10) -> 0 | AS10: =IF(AH10=0,0,AM10*AH10) -> 0
A11: 2 | F11: =IF(D11="","",D11+H11) ->  | I11: =IF(G11="","",_xlfn.DAYS(G11,E11)) ->  | AE11: 0 | AF11: 0 | AG11: =(AE11+AF11)/2 -> 0 | AH11: =IF($AG$160=0,0,AG11/$AG$160) -> 0 | AI11: Lote 2 | AP11: =IF(AO11=0,"",AO11& " días") -> días | AR11: 0 | AS11: 0
A12: 3 | AE12: 0 | AF12: 0 | AG12: 0 | AH12: 0 | AI12: Lote 3 | AP12: días | AR12: 0 | AS12: 0
A13: 4 | AE13: 0 | AF13: 0 | AG13: 0 | AH13: 0 | AI13: Lote 4 | AP13: días | AR13: 0 | AS13: 0
A14: 5 | AE14: 0 | AF14: 0 | AG14: 0 | AH14: 0 | AI14: Lote 5 | AP14: días | AR14: 0 | AS14: 0
A15: 6 | AE15: 0 | AF15: 0 | AG15: 0 | AH15: 0 | AI15: Lote 6 | AP15: días | AR15: 0 | AS15: 0
A16: 7 | AE16: 0 | AF16: 0 | AG16: 0 | AH16: 0 | AI16: Lote 7 | AP16: días | AR16: 0 | AS16: 0
A17: 8 | AE17: 0 | AF17: 0 | AG17: 0 | AH17: 0 | AI17: Lote 8 | AP17: días | AR17: 0 | AS17: 0
A18: 9 | AE18: 0 | AF18: 0 | AG18: 0 | AH18: 0 | AI18: Lote 9 | AP18: días | AR18: 0 | AS18: 0
A19: 10 | AE19: 0 | AF19: 0 | AG19: 0 | AH19: 0 | AI19: Lote 10 | AP19: días | AR19: 0 | AS19: 0
A20: 11 | AE20: 0 | AF20: 0 | AG20: 0 | AH20: 0 | AI20: Lote 11 | AP20: días | AR20: 0 | AS20: 0
A21: 12 | AE21: 0 | AF21: 0 | AG21: 0 | AH21: 0 | AI21: Lote 12 | AP21: días | AR21: 0 | AS21: 0
A22: 13 | AE22: 0 | AF22: 0 | AG22: 0 | AH22: 0 | AI22: Lote 13 | AP22: días | AR22: 0 | AS22: 0
A23: 14 | AE23: 0 | AF23: 0 | AG23: 0 | AH23: 0 | AI23: Lote 14 | AP23: días | AR23: 0 | AS23: 0
A24: 15 | AE24: 0 | AF24: 0 | AG24: 0 | AH24: 0 | AI24: Lote 15 | AP24: días | AR24: 0 | AS24: 0
A25: 16 | AE25: 0 | AF25: 0 | AG25: 0 | AH25: 0 | AI25: Lote 16 | AP25: días | AR25: 0 | AS25: 0
A26: 17 | AE26: 0 | AF26: 0 | AG26: 0 | AH26: 0 | AI26: Lote 17 | AP26: días | AR26: 0 | AS26: 0
A27: 18 | AE27: 0 | AF27: 0 | AG27: 0 | AH27: 0 | AI27: Lote 18 | AP27: días | AR27: 0 | AS27: 0
A28: 19 | AE28: 0 | AF28: 0 | AG28: 0 | AH28: 0 | AI28: Lote 19 | AP28: días | AR28: 0 | AS28: 0
A29: 20 | AE29: 0 | AF29: 0 | AG29: 0 | AH29: 0 | AI29: Lote 20 | AP29: días | AR29: 0 | AS29: 0
A30: 21 | AE30: 0 | AF30: 0 | AG30: 0 | AH30: 0 | AI30: Lote 21 | AP30: días | AR30: 0 | AS30: 0
A31: 22 | AE31: 0 | AF31: 0 | AG31: 0 | AH31: 0 | AI31: Lote 22 | AP31: días | AR31: 0 | AS31: 0
A32: 23 | AE32: 0 | AF32: 0 | AG32: 0 | AH32: 0 | AI32: Lote 23 | AP32: días | AR32: 0 | AS32: 0
A33: 24 | AE33: 0 | AF33: 0 | AG33: 0 | AH33: 0 | AI33: Lote 24 | AP33: días | AR33: 0 | AS33: 0
A34: 25 | AE34: 0 | AF34: 0 | AG34: 0 | AH34: 0 | AI34: Lote 25 | AP34: días | AR34: 0 | AS34: 0
A35: 26 | AE35: 0 | AF35: 0 | AG35: 0 | AH35: 0 | AI35: Lote 26 | AP35: días | AR35: 0 | AS35: 0
A36: 27 | AE36: 0 | AF36: 0 | AG36: 0 | AH36: 0 | AI36: Lote 27 | AP36: días | AR36: 0 | AS36: 0
A37: 28 | AE37: 0 | AF37: 0 | AG37: 0 | AH37: 0 | AI37: Lote 28 | AP37: días | AR37: 0 | AS37: 0
A38: 29 | AE38: 0 | AF38: 0 | AG38: 0 | AH38: 0 | AI38: Lote 29 | AP38: días | AR38: 0 | AS38: 0
A39: 30 | AE39: 0 | AF39: 0 | AG39: 0 | AH39: 0 | AI39: Lote 30 | AP39: días | AR39: 0 | AS39: 0
A40: 31 | AE40: 0 | AF40: 0 | AG40: 0 | AH40: 0 | AI40: Lote 31 | AP40: días | AR40: 0 | AS40: 0
A41: 32 | AE41: 0 | AF41: 0 | AG41: 0 | AH41: 0 | AI41: Lote 32 | AP41: días | AR41: 0 | AS41: 0
A42: 33 | H42: =IF(B42=0,"",$H$4) ->  | K42: =IF(H$5="sin dato","",IF(D42="","",D42+$H$5)) ->  | AE42: =B42 -> 0 | AF42: 0 | AG42: 0 | AH42: 0 | AI42: Lote 33 | AJ42: =IF(B42=0,"",B42&" animales") ->  | AP42: días | AR42: 0 | AS42: 0
A43: 34 | AE43: 0 | AF43: 0 | AG43: 0 | AH43: 0 | AI43: Lote 34 | AP43: días | AR43: 0 | AS43: 0
A44: 35 | AE44: 0 | AF44: 0 | AG44: 0 | AH44: 0 | AI44: Lote 35 | AP44: días | AR44: 0 | AS44: 0
A45: 36 | AE45: 0 | AF45: 0 | AG45: 0 | AH45: 0 | AI45: Lote 36 | AP45: días | AR45: 0 | AS45: 0
A46: 37 | AE46: 0 | AF46: 0 | AG46: 0 | AH46: 0 | AI46: Lote 37 | AP46: días | AR46: 0 | AS46: 0
A47: 38 | AE47: 0 | AF47: 0 | AG47: 0 | AH47: 0 | AI47: Lote 38 | AP47: días | AR47: 0 | AS47: 0
A48: 39 | AE48: 0 | AF48: 0 | AG48: 0 | AH48: 0 | AI48: Lote 39 | AP48: días | AR48: 0 | AS48: 0
A49: 40 | AE49: 0 | AF49: 0 | AG49: 0 | AH49: 0 | AI49: Lote 40 | AP49: días | AR49: 0 | AS49: 0
A50: 41 | AE50: 0 | AF50: 0 | AG50: 0 | AH50: 0 | AI50: Lote 41 | AP50: días | AR50: 0 | AS50: 0
A51: 42 | AE51: 0 | AF51: 0 | AG51: 0 | AH51: 0 | AI51: Lote 42 | AP51: días | AR51: 0 | AS51: 0
A52: 43 | AE52: 0 | AF52: 0 | AG52: 0 | AH52: 0 | AI52: Lote 43 | AP52: días | AR52: 0 | AS52: 0
A53: 44 | AE53: 0 | AF53: 0 | AG53: 0 | AH53: 0 | AI53: Lote 44 | AP53: días | AR53: 0 | AS53: 0
A54: 45 | AE54: 0 | AF54: 0 | AG54: 0 | AH54: 0 | AI54: Lote 45 | AP54: días | AR54: 0 | AS54: 0
A55: 46 | AE55: 0 | AF55: 0 | AG55: 0 | AH55: 0 | AI55: Lote 46 | AP55: días | AR55: 0 | AS55: 0
A56: 47 | AE56: 0 | AF56: 0 | AG56: 0 | AH56: 0 | AI56: Lote 47 | AP56: días | AR56: 0 | AS56: 0
A57: 48 | AE57: 0 | AF57: 0 | AG57: 0 | AH57: 0 | AI57: Lote 48 | AP57: días | AR57: 0 | AS57: 0
A58: 49 | AE58: 0 | AF58: 0 | AG58: 0 | AH58: 0 | AI58: Lote 49 | AP58: días | AR58: 0 | AS58: 0
A59: 50 | AE59: 0 | AF59: 0 | AG59: 0 | AH59: 0 | AI59: Lote 50 | AP59: días | AR59: 0 | AS59: 0
A60: 51 | AE60: 0 | AF60: 0 | AG60: 0 | AH60: 0 | AI60: Lote 51 | AP60: días | AR60: 0 | AS60: 0
A61: 52 | AE61: 0 | AF61: 0 | AG61: 0 | AH61: 0 | AI61: Lote 52 | AP61: días | AR61: 0 | AS61: 0
A62: 53 | AE62: 0 | AF62: 0 | AG62: 0 | AH62: 0 | AI62: Lote 53 | AP62: días | AR62: 0 | AS62: 0
A63: 54 | AE63: 0 | AF63: 0 | AG63: 0 | AH63: 0 | AI63: Lote 54 | AP63: días | AR63: 0 | AS63: 0
A64: 55 | AE64: 0 | AF64: 0 | AG64: 0 | AH64: 0 | AI64: Lote 55 | AP64: días | AR64: 0 | AS64: 0
A65: 56 | AE65: 0 | AF65: 0 | AG65: 0 | AH65: 0 | AI65: Lote 56 | AP65: días | AR65: 0 | AS65: 0
A66: 57 | AE66: 0 | AF66: 0 | AG66: 0 | AH66: 0 | AI66: Lote 57 | AP66: días | AR66: 0 | AS66: 0
A67: 58 | AE67: 0 | AF67: 0 | AG67: 0 | AH67: 0 | AI67: Lote 58 | AP67: días | AR67: 0 | AS67: 0
A68: 59 | AE68: 0 | AF68: 0 | AG68: 0 | AH68: 0 | AI68: Lote 59 | AP68: días | AR68: 0 | AS68: 0
A69: 60 | AE69: 0 | AF69: 0 | AG69: 0 | AH69: 0 | AI69: Lote 60 | AP69: días | AR69: 0 | AS69: 0
A70: 61 | AE70: 0 | AF70: 0 | AG70: 0 | AH70: 0 | AI70: Lote 61 | AP70: días | AR70: 0 | AS70: 0
A71: 62 | AE71: 0 | AF71: 0 | AG71: 0 | AH71: 0 | AI71: Lote 62 | AP71: días | AR71: 0 | AS71: 0
A72: 63 | AE72: 0 | AF72: 0 | AG72: 0 | AH72: 0 | AI72: Lote 63 | AP72: días | AR72: 0 | AS72: 0
A73: 64 | AE73: 0 | AF73: 0 | AG73: 0 | AH73: 0 | AI73: Lote 64 | AP73: días | AR73: 0 | AS73: 0
A74: 65 | E74: =IF($D74 ="","",IF(YEAR($D74)=$F$1,$D74,"01/01/2025")) ->  | G74: =IF($F74="","",IF(YEAR($F74)=$F$1,$F74,"31/12/2025")) ->  | H74: =IF(B74=0,"",$H$4) ->  | K74: =IF(H$5="sin dato","",IF(D74="","",D74+$H$5)) ->  | AE74: =B74 -> 0 | AF74: 0 | AG74: 0 | AH74: 0 | AI74: ="Lote "&A74 -> Lote 65 | AJ74: =IF(B74=0,"",B74&" animales") ->  | AL74: =IF(D74="","",D74) ->  | AM74: =H74 ->  | AN74: =IF(F74="","",F74) ->  | AO74: =I74 ->  | AP74: días | AR74: =IF(AH74=0,0,AO74*AH74) -> 0 | AS74: =IF(AH74=0,0,AM74*AH74) -> 0
A75: 66 | F75: =IF(D75="","",D75+H75) ->  | I75: =IF(G75="","",_xlfn.DAYS(G75,E75)) ->  | AE75: 0 | AF75: 0 | AG75: =(AE75+AF75)/2 -> 0 | AH75: =IF($AG$160=0,0,AG75/$AG$160) -> 0 | AI75: Lote 66 | AP75: =IF(AO75=0,"",AO75& " días") -> días | AR75: 0 | AS75: 0
A76: 67 | AE76: 0 | AF76: 0 | AG76: 0 | AH76: 0 | AI76: Lote 67 | AP76: días | AR76: 0 | AS76: 0
A77: 68 | AE77: 0 | AF77: 0 | AG77: 0 | AH77: 0 | AI77: Lote 68 | AP77: días | AR77: 0 | AS77: 0
A78: 69 | AE78: 0 | AF78: 0 | AG78: 0 | AH78: 0 | AI78: Lote 69 | AP78: días | AR78: 0 | AS78: 0
A79: 70 | AE79: 0 | AF79: 0 | AG79: 0 | AH79: 0 | AI79: Lote 70 | AP79: días | AR79: 0 | AS79: 0
A80: 71 | AE80: 0 | AF80: 0 | AG80: 0 | AH80: 0 | AI80: Lote 71 | AP80: días | AR80: 0 | AS80: 0
A81: 72 | AE81: 0 | AF81: 0 | AG81: 0 | AH81: 0 | AI81: Lote 72 | AP81: días | AR81: 0 | AS81: 0
A82: 73 | AE82: 0 | AF82: 0 | AG82: 0 | AH82: 0 | AI82: Lote 73 | AP82: días | AR82: 0 | AS82: 0
A83: 74 | AE83: 0 | AF83: 0 | AG83: 0 | AH83: 0 | AI83: Lote 74 | AP83: días | AR83: 0 | AS83: 0
A84: 75 | AE84: 0 | AF84: 0 | AG84: 0 | AH84: 0 | AI84: Lote 75 | AP84: días | AR84: 0 | AS84: 0
A85: 76 | AE85: 0 | AF85: 0 | AG85: 0 | AH85: 0 | AI85: Lote 76 | AP85: días | AR85: 0 | AS85: 0
A86: 77 | AE86: 0 | AF86: 0 | AG86: 0 | AH86: 0 | AI86: Lote 77 | AP86: días | AR86: 0 | AS86: 0
A87: 78 | AE87: 0 | AF87: 0 | AG87: 0 | AH87: 0 | AI87: Lote 78 | AP87: días | AR87: 0 | AS87: 0
A88: 79 | AE88: 0 | AF88: 0 | AG88: 0 | AH88: 0 | AI88: Lote 79 | AP88: días | AR88: 0 | AS88: 0
A89: 80 | AE89: 0 | AF89: 0 | AG89: 0 | AH89: 0 | AI89: Lote 80 | AP89: días | AR89: 0 | AS89: 0
A90: 81 | AE90: 0 | AF90: 0 | AG90: 0 | AH90: 0 | AI90: Lote 81 | AP90: días | AR90: 0 | AS90: 0
A91: 82 | AE91: 0 | AF91: 0 | AG91: 0 | AH91: 0 | AI91: Lote 82 | AP91: días | AR91: 0 | AS91: 0
A92: 83 | AE92: 0 | AF92: 0 | AG92: 0 | AH92: 0 | AI92: Lote 83 | AP92: días | AR92: 0 | AS92: 0
A93: 84 | AE93: 0 | AF93: 0 | AG93: 0 | AH93: 0 | AI93: Lote 84 | AP93: días | AR93: 0 | AS93: 0
A94: 85 | AE94: 0 | AF94: 0 | AG94: 0 | AH94: 0 | AI94: Lote 85 | AP94: días | AR94: 0 | AS94: 0
A95: 86 | AE95: 0 | AF95: 0 | AG95: 0 | AH95: 0 | AI95: Lote 86 | AP95: días | AR95: 0 | AS95: 0
A96: 87 | AE96: 0 | AF96: 0 | AG96: 0 | AH96: 0 | AI96: Lote 87 | AP96: días | AR96: 0 | AS96: 0
A97: 88 | AE97: 0 | AF97: 0 | AG97: 0 | AH97: 0 | AI97: Lote 88 | AP97: días | AR97: 0 | AS97: 0
A98: 89 | AE98: 0 | AF98: 0 | AG98: 0 | AH98: 0 | AI98: Lote 89 | AP98: días | AR98: 0 | AS98: 0
A99: 90 | AE99: 0 | AF99: 0 | AG99: 0 | AH99: 0 | AI99: Lote 90 | AP99: días | AR99: 0 | AS99: 0
A100: 91 | AE100: 0 | AF100: 0 | AG100: 0 | AH100: 0 | AI100: Lote 91 | AP100: días | AR100: 0 | AS100: 0
A101: 92 | AE101: 0 | AF101: 0 | AG101: 0 | AH101: 0 | AI101: Lote 92 | AP101: días | AR101: 0 | AS101: 0
A102: 93 | AE102: 0 | AF102: 0 | AG102: 0 | AH102: 0 | AI102: Lote 93 | AP102: días | AR102: 0 | AS102: 0
A103: 94 | AE103: 0 | AF103: 0 | AG103: 0 | AH103: 0 | AI103: Lote 94 | AP103: días | AR103: 0 | AS103: 0
A104: 95 | AE104: 0 | AF104: 0 | AG104: 0 | AH104: 0 | AI104: Lote 95 | AP104: días | AR104: 0 | AS104: 0
A105: 96 | AE105: 0 | AF105: 0 | AG105: 0 | AH105: 0 | AI105: Lote 96 | AP105: días | AR105: 0 | AS105: 0
A106: 97 | H106: =IF(B106=0,"",$H$4) ->  | K106: =IF(H$5="sin dato","",IF(D106="","",D106+$H$5)) ->  | AE106: =B106 -> 0 | AF106: 0 | AG106: 0 | AH106: 0 | AI106: Lote 97 | AJ106: =IF(B106=0,"",B106&" animales") ->  | AP106: días | AR106: 0 | AS106: 0
A107: 98 | AE107: 0 | AF107: 0 | AG107: 0 | AH107: 0 | AI107: Lote 98 | AP107: días | AR107: 0 | AS107: 0
A108: 99 | AE108: 0 | AF108: 0 | AG108: 0 | AH108: 0 | AI108: Lote 99 | AP108: días | AR108: 0 | AS108: 0
A109: 100 | AE109: 0 | AF109: 0 | AG109: 0 | AH109: 0 | AI109: Lote 100 | AP109: días | AR109: 0 | AS109: 0
A110: 101 | AE110: 0 | AF110: 0 | AG110: 0 | AH110: 0 | AI110: Lote 101 | AP110: días | AR110: 0 | AS110: 0
A111: 102 | AE111: 0 | AF111: 0 | AG111: 0 | AH111: 0 | AI111: Lote 102 | AP111: días | AR111: 0 | AS111: 0
A112: 103 | AE112: 0 | AF112: 0 | AG112: 0 | AH112: 0 | AI112: Lote 103 | AP112: días | AR112: 0 | AS112: 0
A113: 104 | AE113: 0 | AF113: 0 | AG113: 0 | AH113: 0 | AI113: Lote 104 | AP113: días | AR113: 0 | AS113: 0
A114: 105 | AE114: 0 | AF114: 0 | AG114: 0 | AH114: 0 | AI114: Lote 105 | AP114: días | AR114: 0 | AS114: 0
A115: 106 | AE115: 0 | AF115: 0 | AG115: 0 | AH115: 0 | AI115: Lote 106 | AP115: días | AR115: 0 | AS115: 0
A116: 107 | AE116: 0 | AF116: 0 | AG116: 0 | AH116: 0 | AI116: Lote 107 | AP116: días | AR116: 0 | AS116: 0
A117: 108 | AE117: 0 | AF117: 0 | AG117: 0 | AH117: 0 | AI117: Lote 108 | AP117: días | AR117: 0 | AS117: 0
A118: 109 | AE118: 0 | AF118: 0 | AG118: 0 | AH118: 0 | AI118: Lote 109 | AP118: días | AR118: 0 | AS118: 0
A119: 110 | AE119: 0 | AF119: 0 | AG119: 0 | AH119: 0 | AI119: Lote 110 | AP119: días | AR119: 0 | AS119: 0
A120: 111 | AE120: 0 | AF120: 0 | AG120: 0 | AH120: 0 | AI120: Lote 111 | AP120: días | AR120: 0 | AS120: 0
A121: 112 | AE121: 0 | AF121: 0 | AG121: 0 | AH121: 0 | AI121: Lote 112 | AP121: días | AR121: 0 | AS121: 0
A122: 113 | AE122: 0 | AF122: 0 | AG122: 0 | AH122: 0 | AI122: Lote 113 | AP122: días | AR122: 0 | AS122: 0
A123: 114 | AE123: 0 | AF123: 0 | AG123: 0 | AH123: 0 | AI123: Lote 114 | AP123: días | AR123: 0 | AS123: 0
A124: 115 | AE124: 0 | AF124: 0 | AG124: 0 | AH124: 0 | AI124: Lote 115 | AP124: días | AR124: 0 | AS124: 0
A125: 116 | AE125: 0 | AF125: 0 | AG125: 0 | AH125: 0 | AI125: Lote 116 | AP125: días | AR125: 0 | AS125: 0
A126: 117 | AE126: 0 | AF126: 0 | AG126: 0 | AH126: 0 | AI126: Lote 117 | AP126: días | AR126: 0 | AS126: 0
A127: 118 | AE127: 0 | AF127: 0 | AG127: 0 | AH127: 0 | AI127: Lote 118 | AP127: días | AR127: 0 | AS127: 0
A128: 119 | AE128: 0 | AF128: 0 | AG128: 0 | AH128: 0 | AI128: Lote 119 | AP128: días | AR128: 0 | AS128: 0
A129: 120 | AE129: 0 | AF129: 0 | AG129: 0 | AH129: 0 | AI129: Lote 120 | AP129: días | AR129: 0 | AS129: 0
A130: 121 | AE130: 0 | AF130: 0 | AG130: 0 | AH130: 0 | AI130: Lote 121 | AP130: días | AR130: 0 | AS130: 0
A131: 122 | AE131: 0 | AF131: 0 | AG131: 0 | AH131: 0 | AI131: Lote 122 | AP131: días | AR131: 0 | AS131: 0
A132: 123 | AE132: 0 | AF132: 0 | AG132: 0 | AH132: 0 | AI132: Lote 123 | AP132: días | AR132: 0 | AS132: 0
A133: 124 | AE133: 0 | AF133: 0 | AG133: 0 | AH133: 0 | AI133: Lote 124 | AP133: días | AR133: 0 | AS133: 0
A134: 125 | AE134: 0 | AF134: 0 | AG134: 0 | AH134: 0 | AI134: Lote 125 | AP134: días | AR134: 0 | AS134: 0
A135: 126 | AE135: 0 | AF135: 0 | AG135: 0 | AH135: 0 | AI135: Lote 126 | AP135: días | AR135: 0 | AS135: 0
A136: 127 | AE136: 0 | AF136: 0 | AG136: 0 | AH136: 0 | AI136: Lote 127 | AP136: días | AR136: 0 | AS136: 0
A137: 128 | AE137: 0 | AF137: 0 | AG137: 0 | AH137: 0 | AI137: Lote 128 | AP137: días | AR137: 0 | AS137: 0
A138: 129 | E138: =IF($D138 ="","",IF(YEAR($D138)=$F$1,$D138,"01/01/2025")) ->  | G138: =IF($F138="","",IF(YEAR($F138)=$F$1,$F138,"31/12/2025")) ->  | H138: =IF(B138=0,"",$H$4) ->  | K138: =IF(H$5="sin dato","",IF(D138="","",D138+$H$5)) ->  | AE138: =B138 -> 0 | AF138: 0 | AG138: 0 | AH138: 0 | AI138: ="Lote "&A138 -> Lote 129 | AJ138: =IF(B138=0,"",B138&" animales") ->  | AL138: =IF(D138="","",D138) ->  | AM138: =H138 ->  | AN138: =IF(F138="","",F138) ->  | AO138: =I138 ->  | AP138: días | AR138: =IF(AH138=0,0,AO138*AH138) -> 0 | AS138: =IF(AH138=0,0,AM138*AH138) -> 0
A139: 130 | F139: =IF(D139="","",D139+H139) ->  | I139: =IF(G139="","",_xlfn.DAYS(G139,E139)) ->  | AE139: 0 | AF139: 0 | AG139: =(AE139+AF139)/2 -> 0 | AH139: =IF($AG$160=0,0,AG139/$AG$160) -> 0 | AI139: Lote 130 | AP139: =IF(AO139=0,"",AO139& " días") -> días | AR139: 0 | AS139: 0
A140: 131 | AE140: 0 | AF140: 0 | AG140: 0 | AH140: 0 | AI140: Lote 131 | AP140: días | AR140: 0 | AS140: 0
A141: 132 | AE141: 0 | AF141: 0 | AG141: 0 | AH141: 0 | AI141: Lote 132 | AP141: días | AR141: 0 | AS141: 0
A142: 133 | AE142: 0 | AF142: 0 | AG142: 0 | AH142: 0 | AI142: Lote 133 | AP142: días | AR142: 0 | AS142: 0
A143: 134 | AE143: 0 | AF143: 0 | AG143: 0 | AH143: 0 | AI143: Lote 134 | AP143: días | AR143: 0 | AS143: 0
A144: 135 | AE144: 0 | AF144: 0 | AG144: 0 | AH144: 0 | AI144: Lote 135 | AP144: días | AR144: 0 | AS144: 0
A145: 136 | AE145: 0 | AF145: 0 | AG145: 0 | AH145: 0 | AI145: Lote 136 | AP145: días | AR145: 0 | AS145: 0
A146: 137 | AE146: 0 | AF146: 0 | AG146: 0 | AH146: 0 | AI146: Lote 137 | AP146: días | AR146: 0 | AS146: 0
A147: 138 | AE147: 0 | AF147: 0 | AG147: 0 | AH147: 0 | AI147: Lote 138 | AP147: días | AR147: 0 | AS147: 0
A148: 139 | AE148: 0 | AF148: 0 | AG148: 0 | AH148: 0 | AI148: Lote 139 | AP148: días | AR148: 0 | AS148: 0
A149: 140 | AE149: 0 | AF149: 0 | AG149: 0 | AH149: 0 | AI149: Lote 140 | AP149: días | AR149: 0 | AS149: 0
A150: 141 | AE150: 0 | AF150: 0 | AG150: 0 | AH150: 0 | AI150: Lote 141 | AP150: días | AR150: 0 | AS150: 0
A151: 142 | AE151: 0 | AF151: 0 | AG151: 0 | AH151: 0 | AI151: Lote 142 | AP151: días | AR151: 0 | AS151: 0
A152: 143 | AE152: 0 | AF152: 0 | AG152: 0 | AH152: 0 | AI152: Lote 143 | AP152: días | AR152: 0 | AS152: 0
A153: 144 | AE153: 0 | AF153: 0 | AG153: 0 | AH153: 0 | AI153: Lote 144 | AP153: días | AR153: 0 | AS153: 0
A154: 145 | AE154: 0 | AF154: 0 | AG154: 0 | AH154: 0 | AI154: Lote 145 | AP154: días | AR154: 0 | AS154: 0
A155: 146 | AE155: 0 | AF155: 0 | AG155: 0 | AH155: 0 | AI155: Lote 146 | AP155: días | AR155: 0 | AS155: 0
A156: 147 | AE156: 0 | AF156: 0 | AG156: 0 | AH156: 0 | AI156: Lote 147 | AP156: días | AR156: 0 | AS156: 0
A157: 148 | AE157: 0 | AF157: 0 | AG157: 0 | AH157: 0 | AI157: Lote 148 | AP157: días | AR157: 0 | AS157: 0
A158: 149 | AE158: 0 | AF158: 0 | AG158: 0 | AH158: 0 | AI158: Lote 149 | AP158: días | AR158: 0 | AS158: 0
A159: 150 | AE159: 0 | AF159: 0 | AG159: 0 | AH159: 0 | AI159: Lote 150 | AP159: días | AR159: 0 | AS159: 0
AE160: =SUM(AE10:AE159) -> 0 | AF160: =SUM(AF10:AF159) -> 0 | AG160: =ROUND(SUM(AG10:AG159),0) -> 0 | AH160: =SUM(AH10:AH159) -> 0 | AR160: =ROUND(SUM(AR10:AR159),0) -> 0 | AS160: =ROUND(SUM(AS10:AS159),0) -> 0
